Workbook

Sheet Intro

Sheet Metrics
B1: Metrics [scales used to assess assets, vulnerabilties, threats and risks]
B4: Asset Value Measurement Scale
B5: Value | C5: Magnitude
B6: 1 | C6: Very Low
B7: 2 | C7: Low
B8: 3 | C8: Medium
B9: 4 | C9: High
B10: 5 | C10: Very High
B12: Threat Value Measurement Scale | E12: Threat Value
B13: Value | C13: Description | E13: Capacity / Motivation | F13: 1 | G13: 2 | H13: 3
B14: 1 | C14: Very Low | E14: 1 | F14: 1 | G14: 2 | H14: 3
B15: 2 | C15: Low | E15: 2 | F15: 2 | G15: 3 | H15: 4
B16: 3 | C16: Medium | E16: 3 | F16: 3 | G16: 4 | H16: 5
B17: 4 | C17: High
B18: 5 | C18: Very High
B20: Vulnerability Value Measurement Scale | E20: Vulnerability Value
B21: Value | C21: Description | E21: Severity / Exposure | F21: 1 | G21: 2 | H21: 3
B22: 1 | C22: Very Low | E22: 1 | F22: 1 | G22: 2 | H22: 3
B23: 2 | C23: Low | E23: 2 | F23: 2 | G23: 3 | H23: 4
B24: 3 | C24: Medium | E24: 3 | F24: 3 | G24: 4 | H24: 5
B25: 4 | C25: High
B26: 5 | C26: Very High
B28: Information Security Risk Measurement Scale
B29: Minimum Risk | H29: Maximum Risk
B30: 1 | C30: 2 | D30: 3 | E30: 4 | F30: 5 | G30: 6 | H30: 7 | I30: 8 | J30: 9 | K30: 10 | L30: 11 | M30: 12 | N30: 13
B31: Very Low | D31: Low | G31: Medium | J31: High | M31: Very High
B34: Risk Assessment Scale
B35: Vulnerability Value | D35: 1 | I35: 2 | N35: 3 | S35: 4 | X35: 5
B36: Threat Value | D36: 1 | E36: 2 | F36: 3 | G36: 4 | H36: 5 | I36: 1 | J36: 2 | K36: 3 | L36: 4 | M36: 5 | N36: 1 | O36: 2 | P36: 3 | Q36: 4 | R36: 5 | S36: 1 | T36: 2 | U36: 3 | V36: 4 | W36: 5 | X36: 1 | Y36: 2 | Z36: 3 | AA36: 4 | AB36: 5
B37: Asset Value | C37: 1 | D37: 1 | E37: 2 | F37: 3 | G37: 4 | H37: 5 | I37: 2 | J37: 3 | K37: 4 | L37: 5 | M37: 6 | N37: 3 | O37: 4 | P37: 5 | Q37: 6 | R37: 7 | S37: 4 | T37: 5 | U37: 6 | V37: 7 | W37: 8 | X37: 5 | Y37: 6 | Z37: 7 | AA37: 8 | AB37: 9
C38: 2 | D38: 2 | E38: 3 | F38: 4 | G38: 5 | H38: 6 | I38: 3 | J38: 4 | K38: 5 | L38: 6 | M38: 7 | N38: 4 | O38: 5 | P38: 6 | Q38: 7 | R38: 8 | S38: 5 | T38: 6 | U38: 7 | V38: 8 | W38: 9 | X38: 6 | Y38: 7 | Z38: 8 | AA38: 9 | AB38: 10
C39: 3 | D39: 3 | E39: 4 | F39: 5 | G39: 6 | H39: 7 | I39: 4 | J39: 5 | K39: 6 | L39: 7 | M39: 8 | N39: 5 | O39: 6 | P39: 7 | Q39: 8 | R39: 9 | S39: 6 | T39: 7 | U39: 8 | V39: 9 | W39: 10 | X39: 7 | Y39: 8 | Z39: 9 | AA39: 10 | AB39: 11
C40: 4 | D40: 4 | E40: 5 | F40: 6 | G40: 7 | H40: 8 | I40: 5 | J40: 6 | K40: 7 | L40: 8 | M40: 9 | N40: 6 | O40: 7 | P40: 8 | Q40: 9 | R40: 10 | S40: 7 | T40: 8 | U40: 9 | V40: 10 | W40: 11 | X40: 8 | Y40: 9 | Z40: 10 | AA40: 11 | AB40: 12
C41: 5 | D41: 5 | E41: 6 | F41: 7 | G41: 8 | H41: 9 | I41: 6 | J41: 7 | K41: 8 | L41: 9 | M41: 10 | N41: 7 | O41: 8 | P41: 9 | Q41: 10 | R41: 11 | S41: 8 | T41: 9 | U41: 10 | V41: 11 | W41: 12 | X41: 9 | Y41: 10 | Z41: 11 | AA41: 12 | AB41: 13

Sheet Assets
A1: Assets [tangible or intangible: any devices, technologies, applications, processes, data of value ]
A3: ID | B3: Asset | C3: Description or reference to above described elements | D3: Owner [involved actors / organisations] | E3: Value | F3: Impact Areas (as in worksheet "Impact Areas")
A4: Intangible | F4: IA1 | G4: IA2 | H4: IA3 | I4: IA4 | J4: IA5 | K4: IA6 | L4: IA7 | M4: IA8 | O4: I1 | P4: I2 | Q4: I3 | R4: I4 | S4: I5 | T4: I6 | U4: I7 | V4: I8
A5: A1. | B5: Actors’ digital presence not including social or professional reputation | C5: Identity, avatars, profile etc | E5: =MAX(F5:M5) -> 3 | F5: =O5*'Impact Areas'!$D$5 -> 3 | G5: =P5*'Impact Areas'!$D$6 -> 2.4 | H5: =Q5*'Impact Areas'!$D$7 -> 2.8 | I5: =R5*'Impact Areas'!$D$8 -> 1.4 | J5: =S5*'Impact Areas'!$D$9 -> 1.5 | K5: =T5*'Impact Areas'!$D$10 -> 0.6 | L5: =U5*'Impact Areas'!$D$11 -> 2.8 | M5: =V5*'Impact Areas'!$D$12 -> 1.75 | O5: 3 | P5: 3 | Q5: 4 | R5: 2 | S5: 2.5 | T5: 1.5 | U5: 4 | V5: 2.5
A6: A2. | B6: Social reputation | C6: Parts of digital identity relating affecting social reputing | E6: =MAX(F6:M6) -> 4 | F6: =O6*'Impact Areas'!$D$5 -> 4 | G6: =P6*'Impact Areas'!$D$6 -> 3.6 | H6: =Q6*'Impact Areas'!$D$7 -> 3.5 | I6: =R6*'Impact Areas'!$D$8 -> 1.4 | J6: =S6*'Impact Areas'!$D$9 -> 1.5 | K6: =T6*'Impact Areas'!$D$10 -> 0.4 | L6: =U6*'Impact Areas'!$D$11 -> 2.8 | M6: =V6*'Impact Areas'!$D$12 -> 2.1 | O6: 4 | P6: 4.5 | Q6: 5 | R6: 2 | S6: 2.5 | T6: 1 | U6: 4 | V6: 3
A7: A3. | B7: Professional reputation | C7: Parts of digital identify affecting professional reputation | E7: 4 | F7: =O7*'Impact Areas'!$D$5 -> 4 | G7: =P7*'Impact Areas'!$D$6 -> 3.6 | H7: =Q7*'Impact Areas'!$D$7 -> 3.5 | I7: =R7*'Impact Areas'!$D$8 -> 2.8 | J7: =S7*'Impact Areas'!$D$9 -> 1.2 | K7: =T7*'Impact Areas'!$D$10 -> 0.4 | L7: =U7*'Impact Areas'!$D$11 -> 3.5 | M7: =V7*'Impact Areas'!$D$12 -> 2.1 | O7: 4 | P7: 4.5 | Q7: 5 | R7: 4 | S7: 2 | T7: 1 | U7: 5 | V7: 3
A8: A4. | B8: Sentiments | C8: Includes any subjective feeling, emotion or information. It can include personal opinions (e.g. strong rejection of an ideology), bias, attitude, tonality, affective/emotional state etc | E8: 4 | F8: =O8*'Impact Areas'!$D$5 -> 4 | G8: =P8*'Impact Areas'!$D$6 -> 2.4 | H8: =Q8*'Impact Areas'!$D$7 -> 3.5 | I8: =R8*'Impact Areas'!$D$8 -> 1.4 | J8: =S8*'Impact Areas'!$D$9 -> 0.6 | K8: =T8*'Impact Areas'!$D$10 -> 0.4 | L8: =U8*'Impact Areas'!$D$11 -> 2.1 | M8: =V8*'Impact Areas'!$D$12 -> 0.7 | O8: 4 | P8: 3 | Q8: 5 | R8: 2 | S8: 1 | T8: 1 | U8: 3 | V8: 1
A9: A5. | B9: Ideas | C9: Includes any result of creative process, reflection or in general any use of intellect with the purpose of creating a new concept or knowledge. | E9: 3.2 | F9: =O9*'Impact Areas'!$D$5 -> 3 | G9: =P9*'Impact Areas'!$D$6 -> 3.2 | H9: =Q9*'Impact Areas'!$D$7 -> 2.8 | I9: =R9*'Impact Areas'!$D$8 -> 1.4 | J9: =S9*'Impact Areas'!$D$9 -> 0.6 | K9: =T9*'Impact Areas'!$D$10 -> 0.4 | L9: =U9*'Impact Areas'!$D$11 -> 1.4 | M9: =V9*'Impact Areas'!$D$12 -> 0.7 | O9: 3 | P9: 4 | Q9: 4 | R9: 2 | S9: 1 | T9: 1 | U9: 2 | V9: 1
A10: A6. | B10: Life-logging services | E10: =MAX(F10:M10) -> 2.5 | F10: =O10*'Impact Areas'!$D$5 -> 2.5 | G10: =P10*'Impact Areas'!$D$6 -> 2.4 | H10: =Q10*'Impact Areas'!$D$7 -> 2.1 | I10: =R10*'Impact Areas'!$D$8 -> 1.4 | J10: =S10*'Impact Areas'!$D$9 -> 1.8 | K10: =T10*'Impact Areas'!$D$10 -> 1.2 | L10: =U10*'Impact Areas'!$D$11 -> 2.1 | M10: =V10*'Impact Areas'!$D$12 -> 2.1 | O10: 2.5 | P10: 3 | Q10: 3 | R10: 2 | S10: 3 | T10: 3 | U10: 3 | V10: 3
A11: A7. | B11: Social networking services | C11: Blogs, photo-sharing, Christer’s brushy game, “Nebula” gaming center … as they affect the user (not service provider) | E11: 3.2 | F11: =O11*'Impact Areas'!$D$5 -> 2.5 | G11: =P11*'Impact Areas'!$D$6 -> 3.2 | H11: =Q11*'Impact Areas'!$D$7 -> 2.1 | I11: =R11*'Impact Areas'!$D$8 -> 1.4 | J11: =S11*'Impact Areas'!$D$9 -> 1.8 | K11: =T11*'Impact Areas'!$D$10 -> 0.6 | L11: =U11*'Impact Areas'!$D$11 -> 2.8 | M11: =V11*'Impact Areas'!$D$12 -> 1.75 | O11: 2.5 | P11: 4 | Q11: 3 | R11: 2 | S11: 3 | T11: 1.5 | U11: 4 | V11: 2.5
A12: A8. | B12: Smart home objects / appliances | C12: Fridge, mirror, dishwasher, IP TVs | E12: 2.1 | F12: =O12*'Impact Areas'!$D$5 -> 2 | G12: =P12*'Impact Areas'!$D$6 -> 1.6 | H12: =Q12*'Impact Areas'!$D$7 -> 1.75 | I12: =R12*'Impact Areas'!$D$8 -> 2.1 | J12: =S12*'Impact Areas'!$D$9 -> 1.8 | K12: =T12*'Impact Areas'!$D$10 -> 1 | L12: =U12*'Impact Areas'!$D$11 -> 1.4 | M12: =V12*'Impact Areas'!$D$12 -> 1.4 | O12: 2 | P12: 2 | Q12: 2.5 | R12: 3 | S12: 3 | T12: 2.5 | U12: 2 | V12: 2
A13: A9. | B13: PC and home infrastructure | E13: 2.8 | F13: =O13*'Impact Areas'!$D$5 -> 2 | G13: =P13*'Impact Areas'!$D$6 -> 2.8 | H13: =Q13*'Impact Areas'!$D$7 -> 1.4 | I13: =R13*'Impact Areas'!$D$8 -> 2.1 | J13: =S13*'Impact Areas'!$D$9 -> 1.8 | K13: =T13*'Impact Areas'!$D$10 -> 0.8 | L13: =U13*'Impact Areas'!$D$11 -> 2.1 | M13: =V13*'Impact Areas'!$D$12 -> 1.4 | O13: 2 | P13: 3.5 | Q13: 2 | R13: 3 | S13: 3 | T13: 2 | U13: 3 | V13: 2
A14: A10. | B14: Smart phone / mobile phone / life-logging devices | C14: Including data stored | E14: 3.2 | F14: =O14*'Impact Areas'!$D$5 -> 3 | G14: =P14*'Impact Areas'!$D$6 -> 3.2 | H14: =Q14*'Impact Areas'!$D$7 -> 1.4 | I14: =R14*'Impact Areas'!$D$8 -> 2.8 | J14: =S14*'Impact Areas'!$D$9 -> 2.4 | K14: =T14*'Impact Areas'!$D$10 -> 2 | L14: =U14*'Impact Areas'!$D$11 -> 2.1 | M14: =V14*'Impact Areas'!$D$12 -> 2.1 | O14: 3 | P14: 4 | Q14: 2 | R14: 4 | S14: 4 | T14: 5 | U14: 3 | V14: 3
A15: A11. | B15: e-cars and e-bikes | C15: Including car monitoring system? Where loss of asset does not affect safety of user | E15: 3 | F15: =O15*'Impact Areas'!$D$5 -> 3 | G15: =P15*'Impact Areas'!$D$6 -> 1.6 | H15: =Q15*'Impact Areas'!$D$7 -> 1.75 | I15: =R15*'Impact Areas'!$D$8 -> 2.8 | J15: =S15*'Impact Areas'!$D$9 -> 2.4 | K15: =T15*'Impact Areas'!$D$10 -> 0.8 | L15: =U15*'Impact Areas'!$D$11 -> 2.1 | M15: =V15*'Impact Areas'!$D$12 -> 2.1 | O15: 3 | P15: 2 | Q15: 2.5 | R15: 4 | S15: 4 | T15: 2 | U15: 3 | V15: 3
A16: A12. | B16: Home security system | C16: Home CCTVs | E16: 3 | F16: =O16*'Impact Areas'!$D$5 -> 3 | G16: =P16*'Impact Areas'!$D$6 -> 2 | H16: =Q16*'Impact Areas'!$D$7 -> 2.1 | I16: =R16*'Impact Areas'!$D$8 -> 2.1 | J16: =S16*'Impact Areas'!$D$9 -> 1.8 | K16: =T16*'Impact Areas'!$D$10 -> 0.8 | L16: =U16*'Impact Areas'!$D$11 -> 2.8 | M16: =V16*'Impact Areas'!$D$12 -> 1.75 | O16: 3 | P16: 2.5 | Q16: 3 | R16: 3 | S16: 3 | T16: 2 | U16: 4 | V16: 2.5
A17: A13. | B17: Energy management system | C17: including energy sensors installed in the house... | E17: 2 | F17: =O17*'Impact Areas'!$D$5 -> 1 | G17: =P17*'Impact Areas'!$D$6 -> 2 | H17: =Q17*'Impact Areas'!$D$7 -> 1.75 | I17: =R17*'Impact Areas'!$D$8 -> 1.75 | J17: =S17*'Impact Areas'!$D$9 -> 1.8 | K17: =T17*'Impact Areas'!$D$10 -> 0.6 | L17: =U17*'Impact Areas'!$D$11 -> 1.05 | M17: =V17*'Impact Areas'!$D$12 -> 1.75 | O17: 1 | P17: 2.5 | Q17: 2.5 | R17: 2.5 | S17: 3 | T17: 1.5 | U17: 1.5 | V17: 2.5
A18: A14. | B18: External recognition / monitoring system | C18: Image or speech recognition [unknown to the participants] | E18: 2.1 | F18: =O18*'Impact Areas'!$D$5 -> 1 | G18: =P18*'Impact Areas'!$D$6 -> 1.6 | H18: =Q18*'Impact Areas'!$D$7 -> 1.4 | I18: =R18*'Impact Areas'!$D$8 -> 1.4 | J18: =S18*'Impact Areas'!$D$9 -> 1.2 | K18: =T18*'Impact Areas'!$D$10 -> 0.4 | L18: =U18*'Impact Areas'!$D$11 -> 2.1 | M18: =V18*'Impact Areas'!$D$12 -> 0.7 | O18: 1 | P18: 2 | Q18: 2 | R18: 2 | S18: 2 | T18: 1 | U18: 3 | V18: 1
A19: A15. | B19: Databases of aggregated data | C19: Residing in various data centres. Includes aggregated health data | E19: 3.2 | F19: =O19*'Impact Areas'!$D$5 -> 3 | G19: =P19*'Impact Areas'!$D$6 -> 3.2 | H19: =Q19*'Impact Areas'!$D$7 -> 2.1 | I19: =R19*'Impact Areas'!$D$8 -> 2.1 | J19: =S19*'Impact Areas'!$D$9 -> 1.2 | K19: =T19*'Impact Areas'!$D$10 -> 0.6 | L19: =U19*'Impact Areas'!$D$11 -> 2.8 | M19: =V19*'Impact Areas'!$D$12 -> 2.1 | O19: 3 | P19: 4 | Q19: 3 | R19: 3 | S19: 2 | T19: 1.5 | U19: 4 | V19: 3
A20: A16. | B20: Data mining pack / software | C20: e.g. online scripting package [Annika to mashup pages pulled in all of Christer’s various records] | E20: 2.1 | F20: =O20*'Impact Areas'!$D$5 -> 2 | G20: =P20*'Impact Areas'!$D$6 -> 2 | H20: =Q20*'Impact Areas'!$D$7 -> 2.1 | I20: =R20*'Impact Areas'!$D$8 -> 0.7 | J20: =S20*'Impact Areas'!$D$9 -> 0.9 | K20: =T20*'Impact Areas'!$D$10 -> 0.8 | L20: =U20*'Impact Areas'!$D$11 -> 1.4 | M20: =V20*'Impact Areas'!$D$12 -> 1.4 | O20: 2 | P20: 2.5 | Q20: 3 | R20: 1 | S20: 1.5 | T20: 2 | U20: 2 | V20: 2
A21: A17. | B21: Recommendation systems | C21: Service /systems generating personalised recommendations to users | E21: 2.8 | F21: =O21*'Impact Areas'!$D$5 -> 2 | G21: =P21*'Impact Areas'!$D$6 -> 2.4 | H21: =Q21*'Impact Areas'!$D$7 -> 2.1 | I21: =R21*'Impact Areas'!$D$8 -> 2.1 | J21: =S21*'Impact Areas'!$D$9 -> 1.8 | K21: =T21*'Impact Areas'!$D$10 -> 0.8 | L21: =U21*'Impact Areas'!$D$11 -> 2.8 | M21: =V21*'Impact Areas'!$D$12 -> 1.75 | O21: 2 | P21: 3 | Q21: 3 | R21: 3 | S21: 3 | T21: 2 | U21: 4 | V21: 2.5
A22: A18. | B22: Bio-sensors / Personal health devices, Small sensor patches, health data [user end] | C22: The devices themselves, not the data they collect | E22: 3.5 | F22: =O22*'Impact Areas'!$D$5 -> 3.5 | G22: =P22*'Impact Areas'!$D$6 -> 2.4 | H22: =Q22*'Impact Areas'!$D$7 -> 2.8 | I22: =R22*'Impact Areas'!$D$8 -> 1.4 | J22: =S22*'Impact Areas'!$D$9 -> 1.8 | K22: =T22*'Impact Areas'!$D$10 -> 0.8 | L22: =U22*'Impact Areas'!$D$11 -> 2.1 | M22: =V22*'Impact Areas'!$D$12 -> 1.4 | O22: 3.5 | P22: 3 | Q22: 4 | R22: 2 | S22: 3 | T22: 2 | U22: 3 | V22: 2
B25: =A5 -> A1. | C25: =B5 -> Actors’ digital presence not including social or professional reputation | D25: A1. Actors’ digital presence not including social or professional reputation | E25: 3
B26: =A6 -> A2. | C26: =B6 -> Social reputation | D26: A2. Social reputation | E26: 4
B27: =A7 -> A3. | C27: =B7 -> Professional reputation | D27: A3. Professional reputation | E27: 4
B28: =A8 -> A4. | C28: Sentiments | D28: A4. Sentiments | E28: 4
B29: A5. | C29: Ideas | D29: A5. Ideas | E29: 3.2
B30: A6. | C30: Life-logging services | D30: A6. Life-logging services | E30: 2.5
B31: A7. | C31: Social networking services | D31: A7. Social networking services | E31: 3.2
B32: =A12 -> A8. | C32: Smart home objects / appliances | D32: A8. Smart home objects / appliances | E32: 2.1
B33: A9. | C33: =B13 -> PC and home infrastructure | D33: A9. Laptops and PC computers | E33: 2.8
B34: A10. | C34: Smart phone / mobile phone / life-logging devices | D34: A10. Smart phone / mobile phone / life-logging devices | E34: 3.2
B35: A11. | C35: e-cars and e-bikes | D35: A11. e-cars and e-bikes | E35: 3
B36: A12. | C36: Home security system | D36: A12. Home security system | E36: 3
B37: A13. | C37: Energy management system | D37: A13. Energy management system | E37: 2
B38: A14. | C38: External recognition / monitoring system | D38: A14. External recognition / monitoring system | E38: 2.1
B39: A15. | C39: Databases of aggregated data | D39: A15. Databases of aggregated data | E39: 3.2
B40: A16. | C40: Data mining pack / software | D40: A16. Data mining pack / software | E40: 2.1
B41: A17. | C41: Recommendation systems | D41: A17. Recommendation systems | E41: 2.8
B42: A18. | C42: Bio-sensors / Personal health devices, Small sensor patches, health data [user end] | D42: A18. Bio-sensors / Personal health devices, Small sensor patches, health data [user end] | E42: 3.5

Sheet Impact Areas
A1: Impact Areas [estimation of impact of the identified threats; it is closely related to the asset value, so you need to consider that]
A3: No. | B3: Impact | C3: Description | D3: Weighting Factor (Maximum 1)
D4: [maximum 1]
A5: I01 | B5: Health / Life / well-being | C5: Refers to the physical and psychological condition of an individual; his/her physical and psychological well-being and absence of disease. Sense of self. | D5: 1
A6: I02 | B6: Human rights and social values | C6: Human rights and social values, e.g. Privacy, autonomy, Non-Discrimination, Dignity, social inclusion, trusted human relationships and e-inclusion etc. | D6: 0.8
A7: I03 | B7: Human agency | C7: Behaviour, socialising i.e. how we do things | D7: 0.7
A8: I04 | B8: Financial / Economical | C8: Cost considerations for companies and individuals | D8: 0.7
A9: I05 | B9: Comfort, convenience and ease of access | C9: Smooth processes, adequate services, peace of mind | D9: 0.6
A10: I06 | B10: Interoperability | C10: Interoperability between networks, sensors, devices, organisations, and users is central to the scenario. | D10: 0.4
A11: I07 | B11: Trust | D11: 0.7
A12: I08 | B12: Legal | D12: 0.7

Sheet Vulnerabilities
A1: Vulnerabilities [of the tangible / intangible assets]
A3: No | B3: Vulnerability Description | C3: Exposure [Metric Values are 1-3]* | D3: Severity [Metric Values are 1-3]* | E3: Vulnerability Assessment Value* | F3: Comments / Additional Info | H3: LOOKUP
A4: V1. | B4: Flawed/insufficient design, implementation and/or capacity of devices and systems. Includes software bugs and design flaws. | C4: 2 | D4: 2 | E4: 3 | J4: =CONCATENATE(A4," ",B4) -> V1. Flawed/insufficient design, implementation and/or capacity of devices and systems. Includes software bugs and design flaws. | K4: =E4 -> 3
A5: V2. | B5: Inadequate policy framework | C5: 1 | D5: 2 | E5: 2 | J5: V2. Inadequate policy framework | K5: =E5 -> 2
A6: V3. | B6: Inadequate privacy/security interfaces (poor interface design) | C6: 2 | D6: 2 | E6: 3 | J6: V3. Inadequate privacy/security interfaces (poor interface design) | K6: 3
A7: V4. | B7: Increase in centralization of data storage and processing and over-reliance on these centralised facilities | C7: 2 | D7: 3 | E7: =C7+D7-1 -> 4 | J7: V4. Increase in centralization of data storage and processing and over-reliance on these centralised facilities | K7: 4
A8: V5. | B8: Inherent features of smart devices (size, material etc.): easy to lose or steal | C8: 3 | D8: 3 | E8: 5 | J8: V5. Inherent features of smart devices (size, material etc.): easy to lose or steal | K8: 5
A9: V6. | B9: Lack of appropriate, common or harmonized legislation in EU Member States | C9: 2 | D9: 2 | E9: 3 | J9: V6. Lack of appropriate, common or harmonized legislation in EU Member States | K9: 3
A10: V7. | B10: Lack of interoperability between devices/ services/ technologies and/or systems | C10: 3 | D10: 3 | E10: 5 | J10: V7. Lack of interoperability between devices/ services/ technologies and/or systems | K10: 5
A11: V8. | B11: Lack of or inadequate user identification, authentication and access controls; e.g. use of new devices as authentication tools | C11: 3 | D11: 3 | E11: 5 | J11: V8. Lack of or inadequate user identification, authentication and access controls; e.g. use of new devices as authentication tools | K11: 5
A12: V9. | B12: Lack of third party system reviews and software integrity certification | C12: 2 | D12: 2 | E12: 3 | J12: V9. Lack of third party system reviews and software integrity certification | K12: 3
A13: V10. | B13: Over reliance and excessive dependency on electronic devices and systems | C13: 3 | D13: 3 | E13: 4 | J13: V10. Over reliance and excessive dependency on electronic devices and systems | K13: 4
A14: V11. | B14: PC and home infrastructure vulnerabilities | C14: 3 | D14: 3 | E14: 4 | J14: V11. PC and home infrastructure vulnerabilities | K14: 4
A15: V12. | B15: Smart phone vulnerabilities | C15: 3 | D15: 3 | E15: 5 | J15: V12. Smart phone vulnerabilities | K15: 5
A16: V13. | B16: Lack of revocation/correction/deletion mechanisms | C16: 3 | D16: 2 | E16: 3 | J16: V13. Lack of revocation/correction/deletion mechanisms | K16: 3
A17: V14. | B17: Lack of (usable) privacy controls, e.g., overly permissive defaults, too coarse granularity, ... | C17: 2 | D17: 1 | E17: 2 | J17: V14. Lack of (usable) privacy controls, e.g., overly permissive defaults, too coarse granularity, ... | K17: 2
A18: V15. | B18: Lack of (usable) logging controls/policies/ reminders. E.g. capturing some embarrassing scene of someone else or yourself | C18: 3 | D18: 2 | E18: 3 | J18: V15. Lack of (usable) logging controls/policies/ reminders. E.g. capturing some embarrassing scene of someone else or yourself | K18: 3
A19: V16. | B19: Lack of secure transmission and storage of data; also includes lack of (usable) transmission control (who gets the data) | C19: 3 | D19: 3 | E19: 5 | J19: V16. Lack of secure transmission and storage of data; also includes lack of (usable) transmission control (who gets the data) | K19: 5
A20: V17. | B20: Lack of mechanisms to validate reputation or trustworthiness of service provider | C20: 3 | D20: 3 | E20: 4 | J20: V17. Lack of mechanisms to validate reputation or trustworthiness of service provider | K20: 4
A21: V18. | B21: Lack of noticeable (and usable) notification systems | C21: 2 | D21: 2 | E21: 2 | J21: V18. Lack of noticeable (and usable) notification systems | K21: 2
A22: V19. | B22: Increased complexity of controls (making it difficult for users to follow) | C22: 2 | D22: 2 | E22: 3 | J22: V19. Increased complexity of controls (making it difficult for users to follow) | K22: 3
A23: V20. | B23: Increase of (unprotected) data storage capacity in smart-devices | C23: 3 | D23: 3 | E23: 5 | J23: V20. Increase of (unprotected) data storage capacity in smart-devices | K23: 5
A24: V21. | B24: Reliance on legacy, un-patched systems or integration mistakes | C24: 2 | D24: 2 | E24: 3 | J24: V21. Reliance on legacy, un-patched systems or integration mistakes | K24: 3
A25: V22. | B25: Lack of appropriate assurance procedures (e.g. third party audits) or enforcement of such, regarding the implementation of security controls, especially from the state, other regulatory and public authority | C25: 3 | D25: 2 | E25: 4 | J25: V22. Lack of appropriate assurance procedures (e.g. third party audits) or enforcement of such, regarding the implementation of security controls, especially from the state, other regulatory and public authority | K25: 4
A26: V23. | B26: Lack of transparency and “social translucency”, i.e., audit logs (who accessed my profile/data) | C26: 3 | D26: 3 | E26: 4 | J26: V23. Lack of transparency and “social translucency”, i.e., audit logs (who accessed my profile/data) | K26: 4
A27: V24. | B27: Social reliance/over-confidence and trust on individual’s digital identity | C27: 2 | D27: 2 | E27: 3 | J27: V24. Social reliance/over-confidence and trust on individual’s digital identity | K27: 3
A28: V25. | B28: Inadequate user education, lack of awareness and training particularly in security and privacy; lack of context awareness | C28: 3 | D28: 3 | E28: 5 | J28: V25. Inadequate user education, lack of awareness and training particularly in security and privacy; lack of context awareness | K28: 5
A29: V26. | B29: Psychological vulnerability (low self esteem and confidence to self, high influence potential by others, naïve and suggestible, etc ; weak perception of self) | C29: 2 | D29: 4 | E29: 5 | J29: V26. Psychological vulnerability (low self esteem and confidence to self, high influence potential by others, naïve and suggestible, etc ; weak perception of self) | K29: 5
A30: V27. | B30: Cognitive biases – Some people accept what they should not… | C30: 2 | D30: 3 | E30: 4 | J30: V27. Cognitive biases – Some people accept what they should not… | K30: 4
A31: V28. | B31: Data linkability / lifelogging data can be aggregated with other data | C31: 2 | D31: 2 | E31: 3 | J31: V28. Data linkability / lifelogging data can be aggregated with other data | K31: 3

Sheet Threats
A1: Threats and Threat Agents [perceived threats that could exploit the identified vulnerabilities of the assets]
A3: Threat ID | B3: Threats | C3: Threat Agent (source of threat or person who initiates threat) | D3: TA Motivation | E3: TA Capacity (knowledge etc.) | F3: Sugested Threat Assessment Value | G3: FINAL Threat Assessment Value | I3: LOOKUP
A4: T1. | B4: Accidental loss of device | C4: User / individual | D4: 3 | E4: 0 | F4: =D4+E4-1 -> 2 | G4: 4 | I4: T1. | J4: T1 | K4: 3 | L4: =CONCATENATE(A4," ",B4) -> T1. Accidental loss of device | M4: =G4 -> 4
A5: T2. | B5: Identity theft | C5: Malicious attacker / impostors Fraudsters | D5: 3 | E5: 3 | F5: =D5+E5-1 -> 5 | G5: 4 | I5: T3. | J5: T3 | K5: 4 | L5: =CONCATENATE(A5," ",B5) -> T2. Identity theft | M5: =G5 -> 4
A6: T3. | B6: Intentional misuse, unauthorised disclosure, modification or destruction of individual’s data | C6: Service provider (e.g. exploits data in an unexpected, for user, manner) Malicious attacker | D6: 2 | E6: 3 | F6: 4 | G6: 5 | I6: T4. | J6: T4 | K6: 3 | L6: T3. Intentional misuse, unauthorised disclosure, modification or destruction of individual’s data | M6: 5
A7: T4. | B7: Unintentional misuse, unauthorised disclosure, modification or destruction of individual’s data | C7: Individual’s peers, friends, family | D7: 2 | E7: 1 | F7: 2 | G7: 5 | I7: T5. | J7: T5 | K7: 3 | L7: T4. Unintentional misuse, unauthorised disclosure, modification or destruction of individual’s data | M7: 5
A8: T5. | B8: Intermittent or no connectivity | C8: Physical | D8: 1 | E8: 1 | F8: 1 | G8: 2 | I8: T7. | J8: T7 | K8: 4 | L8: T5. Intermittent or no connectivity | M8: 2
A9: T6. | B9: Malicious physical attacks (theft, vandalism, misuse, etc.) | C9: Malicious attacker | D9: 1 | E9: 1 | F9: 1 | G9: 4 | I9: T8. | J9: T8 | K9: 4 | L9: T6. Malicious physical attacks (theft, vandalism, misuse, etc.) | M9: 4
A10: T7. | B10: Malicious (logical) attacks on devices and systems | C10: Malicious attacker | D10: 2 | E10: 2 | F10: 3 | G10: 2 | I10: T10 | J10: T10 | K10: 4 | L10: T7. Malicious (logical) attacks on devices and systems | M10: 2
A11: T8. | B11: Overhearing/recording logging/blogging activity | C11: Service provider Malicious attacker Individual’s peers, friends, family | D11: 1 | E11: 3 | F11: 3 | G11: 3 | I11: T11 | J11: T11 | K11: 3 | L11: T8. Overhearing/recording logging/blogging activity | M11: 3
A12: T9. | B12: Exploring new ‘vulnerabilities’ in the new applications | C12: Malware authors Cyber-criminals | D12: 1 | E12: 3 | F12: 3 | G12: 2 | I12: T12 | J12: T12 | K12: 4 | L12: T9. Exploring new ‘vulnerabilities’ in the new applications | M12: 2
A13: T10. | B13: Spamming of users with ads and other non-solicited information; they can also use open, public information | C13: Companies / service providers | D13: 2 | E13: 3 | F13: 4 | G13: 3 | I13: T13 | J13: T13 | K13: 4 | L13: T10. Spamming of users with ads and other non-solicited information; they can also use open, public information | M13: 3
A14: T11. | B14: Constrain consumer choices | C14: Companies (e.g. those offering life-logging services) | D14: 2 | E14: 3 | F14: 4 | G14: 3 | I14: T14 | J14: T14 | K14: 4 | L14: T11. Constrain consumer choices | M14: 3
A15: T12. | B15: Vested interests | C15: Service providers, providers in market sectors, public sector / state | D15: 2 | E15: 3 | F15: 4 | G15: 4 | I15: T19 | J15: T19 | K15: 2 | L15: T12. Vested interests | M15: 4
A16: T13. | B16: Peer-pressure and social pressure to constantly share data and conform; fear of violent response / or ridicule from peers, friends etc; | C16: Individual’s peers, friends etc | D16: 3 | E16: 3 | F16: 5 | G16: 4 | I16: T20 | J16: T20 | K16: 3 | L16: T13. Peer-pressure and social pressure to constantly share data and conform; fear of violent response / or ridicule from peers, friends etc; | M16: 4
A17: T14. | B17: Individual being negligent, careless, making mistakes; e.g. does not follow procedures appropriately, e.g. clicks through | C17: Individual | D17: 3 | E17: 1 | F17: 3 | G17: 4 | I17: T22 | J17: T22 | K17: 4 | L17: T14. Individual being negligent, careless, making mistakes; e.g. does not follow procedures appropriately, e.g. clicks through | M17: 4
A18: T15. | B18: Increased need for attention / social exposure | C18: Individual | D18: 3 | E18: 0 | F18: 2 | G18: 3 | I18: T26 | J18: T26 | K18: 5 | L18: T15. Increased need for attention / social exposure | M18: 3
A19: T16. | B19: Changes in perception of privacy and / or privacy needs | C19: Individual State | D19: 3 | E19: 1 | F19: 3 | G19: 4 | L19: T16. Changes in perception of privacy and / or privacy needs | M19: 4
A20: T17. | B20: Data mining and profiling (large-scale, excessive and/or inappropriate) | C20: Companies / service providers, State Individual’s peers, friends etc | D20: 3 | E20: 3 | F20: 5 | G20: 5 | L20: T17. Data mining and profiling (large-scale, excessive and/or inappropriate) | M20: 5
A21: T18. | B21: Monitoring and surveillance | C21: Companies / service providers on citizens and their employees State on citizens Individual’s peers, friends etc for personal purposes | D21: 2 | E21: 3 | F21: 4 | G21: 4 | L21: T18. Monitoring and surveillance | M21: 4

Sheet Sheet1 (hidden)
A2: 1 | B2: Flawed/insufficient design, implementation and/or capacity of devices and systems. Includes software bugs and design flaws. | C2: 2 | D2: 2
A3: 2 | B3: Inadequate policy framework | C3: 1 | D3: 2
A4: 3 | B4: Inadequate privacy/security interfaces (poor interface design) | C4: 2 | D4: 2
A5: 4 | B5: Increase in centralization of data storage and processing and over-reliance on these centralised facilities | C5: 2 | D5: 3
A6: 5 | B6: Inherent features of smart devices (size, material etc.) They may be easy to lose or to be stolen, oversensitivity of sensors (for example, leading to inaccuracies) | C6: 3 | D6: 3
A7: 6 | B7: Lack of appropriate, common or harmonized legislation in EU Member States | C7: 2 | D7: 2
A8: 7 | B8: Lack of interoperability between devices/ services/ technologies and/or systems | C8: 3 | D8: 3
A9: 8 | B9: Lack of or inadequate user identification, authentication and access controls; e.g. use of new devices as authentication tools | C9: 3 | D9: 3
A10: 9 | B10: Lack of third party system reviews and software integrity certification | C10: 2 | D10: 2
A11: 10 | B11: Over reliance and excessive dependency on electronic devices and systems | C11: 3 | D11: 3
A12: 11 | B12: PC vulnerabilities | C12: 3 | D12: 3
A13: 12 | B13: Smart phone vulnerabilities | C13: 3 | D13: 3
A14: 13 | B14: Erroneous sensor calibration | C14: 1 | D14: 1
A15: 14 | B15: Lack of revocation/correction/deletion mechanisms | C15: 3 | D15: 2
A16: 15 | B16: Lack of (usable) privacy controls, e.g., overly permissive defaults, too coarse granularity, ... | C16: 2 | D16: 1
A17: 16 | B17: Lack of (usable) logging controls/policies/ reminders. E.g. capturing some embarrassing scene of someone else or yourself | C17: 3 | D17: 2
A18: 17 | B18: Lack of secure transmission and storage of data; also includes lack of (usable) transmission control (who gets the data) | C18: 3 | D18: 3
A19: 18 | B19: Lack of mechanisms to validate reputation or trustworthiness of service provider | C19: 3 | D19: 3
A20: 19 | B20: Lack of noticeable (and usable) notification systems So that you don’t know when you’re logged on someone else’s system | C20: 2 | D20: 2
A21: 21 | B21: Increased complexity of controls (making it difficult for users to follow) | C21: 2 | D21: 2
A22: 22 | B22: Increase of (unprotected) data storage capacity in smart-devices | C22: 3 | D22: 3
A23: 23 | B23: Reliance on legacy, un-patched systems or integration mistakes | C23: 2 | D23: 2
A24: 24 | B24: Lack of appropriate assurance procedures (e.g. third party audits) or enforcement of such, regarding the implementation of security controls, especially from the state, other regulatory and public authority | C24: 3 | D24: 2
A25: 25 | B25: Lack of “social translucency”, i.e., audit logs (who accessed my profile/data) | C25: 3 | D25: 3
A26: 26 | B26: Social reliance/over-confidence and trust on individual’s digital identity | C26: 2 | D26: 2
A27: 27 | B27: Inadequate user education, lack of awareness and training particularly in security and privacy; lack of context awareness, i.e. in which context the data should be used | C27: 3 | D27: 3
A28: 28 | B28: Psychological vulnerability (low self esteem and confidence to self, high influence potential by others, naïve and suggestible, etc ; weak perception of self) | C28: 2 | D28: 4
A29: 29 | B29: Cognitive biases – Some people accept what they should not… | C29: 2 | D29: 3
A30: 30 | B30: Data linkability / lifelogging data can be aggregated with other data | C30: 2 | D30: 2

Sheet A-V Mapping
B1: =Vulnerabilities!J4 -> V1. Flawed/insufficient design, implementation and/or capacity of devices and systems. Includes software bugs and design flaws. | C1: =Vulnerabilities!J5 -> V2. Inadequate policy framework | D1: =Vulnerabilities!J6 -> V3. Inadequate privacy/security interfaces (poor interface design) | E1: =Vulnerabilities!J7 -> V4. Increase in centralization of data storage and processing and over-reliance on these centralised facilities | F1: =Vulnerabilities!J8 -> V5. Inherent features of smart devices (size, material etc.): easy to lose or steal | G1: =Vulnerabilities!J9 -> V6. Lack of appropriate, common or harmonized legislation in EU Member States | H1: =Vulnerabilities!J10 -> V7. Lack of interoperability between devices/ services/ technologies and/or systems | I1: =Vulnerabilities!J11 -> V8. Lack of or inadequate user identification, authentication and access controls; e.g. use of new devices as authentication tools | J1: =Vulnerabilities!J12 -> V9. Lack of third party system reviews and software integrity certification | K1: =Vulnerabilities!J13 -> V10. Over reliance and excessive dependency on electronic devices and systems | L1: =Vulnerabilities!J14 -> V11. PC and home infrastructure vulnerabilities | M1: =Vulnerabilities!J15 -> V12. Smart phone vulnerabilities | N1: =Vulnerabilities!J16 -> V13. Lack of revocation/correction/deletion mechanisms | O1: =Vulnerabilities!J17 -> V14. Lack of (usable) privacy controls, e.g., overly permissive defaults, too coarse granularity, ... | P1: =Vulnerabilities!J18 -> V15. Lack of (usable) logging controls/policies/ reminders. E.g. capturing some embarrassing scene of someone else or yourself | Q1: =Vulnerabilities!J19 -> V16. Lack of secure transmission and storage of data; also includes lack of (usable) transmission control (who gets the data) | R1: =Vulnerabilities!J20 -> V17. Lack of mechanisms to validate reputation or trustworthiness of service provider | S1: =Vulnerabilities!J21 -> V18. Lack of noticeable (and usable) notification systems | T1: =Vulnerabilities!J22 -> V19. Increased complexity of controls (making it difficult for users to follow) | U1: =Vulnerabilities!J23 -> V20. Increase of (unprotected) data storage capacity in smart-devices | V1: =Vulnerabilities!J24 -> V21. Reliance on legacy, un-patched systems or integration mistakes | W1: =Vulnerabilities!J25 -> V22. Lack of appropriate assurance procedures (e.g. third party audits) or enforcement of such, regarding the implementation of security controls, especially from the state, other regulatory and public authority | X1: =Vulnerabilities!J26 -> V23. Lack of transparency and “social translucency”, i.e., audit logs (who accessed my profile/data) | Y1: =Vulnerabilities!J27 -> V24. Social reliance/over-confidence and trust on individual’s digital identity | Z1: =Vulnerabilities!J28 -> V25. Inadequate user education, lack of awareness and training particularly in security and privacy; lack of context awareness | AA1: =Vulnerabilities!J29 -> V26. Psychological vulnerability (low self esteem and confidence to self, high influence potential by others, naïve and suggestible, etc ; weak perception of self) | AB1: =Vulnerabilities!J30 -> V27. Cognitive biases – Some people accept what they should not… | AC1: =Vulnerabilities!J31 -> V28. Data linkability / lifelogging data can be aggregated with other data | AD1: CHECK (Assets not associated with a Vuln)
A2: A1. Actors’ digital presence not including social or professional reputation | C2: 1 | D2: 1 | E2: 1 | F2: 1 | G2: 1 | I2: 1 | K2: 1 | L2: 1 | M2: 1 | O2: 1 | Q2: 1 | S2: 1 | T2: 1 | X2: 1 | Y2: 1 | Z2: 1 | AC2: 1 | AD2: =IF(SUM(B2:AC2)=0,1,0) -> 0
A3: A2. Social reputation | B3: 1 | C3: 1 | D3: 1 | E3: 1 | F3: 1 | G3: 1 | I3: 1 | K3: 1 | L3: 1 | M3: 1 | P3: 1 | Q3: 1 | X3: 1 | Y3: 1 | Z3: 1 | AA3: 1 | AB3: 1 | AC3: 1 | AD3: 0
A4: A3. Professional reputation | B4: 1 | C4: 1 | D4: 1 | E4: 1 | F4: 1 | G4: 1 | I4: 1 | K4: 1 | L4: 1 | M4: 1 | P4: 1 | Q4: 1 | X4: 1 | Y4: 1 | Z4: 1 | AA4: 1 | AB4: 1 | AC4: 1 | AD4: 0
A5: A4. Sentiments | D5: 1 | K5: 1 | P5: 1 | X5: 1 | Y5: 1 | Z5: 1 | AA5: 1 | AB5: 1 | AC5: 1 | AD5: 0
A6: A5. Ideas | K6: 1 | X6: 1 | Y6: 1 | AA6: 1 | AB6: 1 | AC6: 1 | AD6: 0
A7: A6. Life-logging services | B7: 1 | C7: 1 | D7: 1 | E7: 1 | G7: 1 | H7: 1 | I7: 1 | K7: 1 | N7: 1 | O7: 1 | P7: 1 | Q7: 1 | R7: 1 | S7: 1 | T7: 1 | W7: 1 | X7: 1 | Y7: 1 | Z7: 1 | AA7: 1 | AC7: 1 | AD7: 0
A8: A7. Social networking services | B8: 1 | C8: 1 | D8: 1 | G8: 1 | H8: 1 | I8: 1 | N8: 1 | O8: 1 | P8: 1 | Q8: 1 | R8: 1 | S8: 1 | T8: 1 | W8: 1 | X8: 1 | Z8: 1 | AA8: 1 | AB8: 1 | AC8: 1 | AD8: 0
A9: A8. Smart home objects / appliances | B9: 1 | C9: 1 | D9: 1 | F9: 1 | I9: 1 | J9: 1 | L9: 1 | N9: 1 | Q9: 1 | U9: 1 | V9: 1 | Z9: 1 | AD9: 0
A10: A9. Laptops and PC computers | B10: 1 | D10: 1 | F10: 1 | I10: 1 | L10: 1 | O10: 1 | Q10: 1 | T10: 1 | V10: 1 | Z10: 1 | AD10: 0
A11: A10. Smart phone / mobile phone / life-logging devices | B11: 1 | C11: 1 | D11: 1 | F11: 1 | I11: 1 | M11: 1 | O11: 1 | S11: 1 | T11: 1 | U11: 1 | V11: 1 | W11: 1 | Z11: 1 | AD11: 0
A12: A11. e-cars and e-bikes | B12: 1 | C12: 1 | AD12: 0
A13: A12. Home security system | B13: 1 | C13: 1 | D13: 1 | I13: 1 | N13: 1 | AD13: 0
A14: A13. Energy management system | B14: 1 | C14: 1 | I14: 1 | N14: 1 | AD14: 0
A15: A14. External recognition / monitoring system | C15: 1 | Z15: 1 | AD15: 0
A16: A15. Databases of aggregated data | B16: 1 | C16: 1 | D16: 1 | E16: 1 | G16: 1 | H16: 1 | I16: 1 | J16: 1 | K16: 1 | N16: 1 | Q16: 1 | W16: 1 | X16: 1 | AC16: 1 | AD16: 0
A17: A16. Data mining pack / software | C17: 1 | G17: 1 | N17: 1 | O17: 1 | P17: 1 | X17: 1 | Z17: 1 | AB17: 1 | AC17: 1 | AD17: 0
A18: A17. Recommendation systems | B18: 1 | C18: 1 | D18: 1 | G18: 1 | O18: 1 | R18: 1 | T18: 1 | Z18: 1 | AC18: 1 | AD18: 0
A19: A18. Bio-sensors / Personal health devices, Small sensor patches, health data [user end] | AD19: 1
A21: CHECK (Vulns with no asset associated) | B21: =IF(SUM(B1:B19)=0,1,0) -> 0 | C21: =IF(SUM(C1:C19)=0,1,0) -> 0 | D21: 0 | E21: 0 | F21: 0 | G21: 0 | H21: 0 | I21: 0 | J21: 0 | K21: 0 | L21: 0 | M21: 0 | N21: 0 | O21: 0 | P21: 0 | Q21: 0 | R21: 0 | S21: 0 | T21: 0 | U21: 0 | V21: 0 | W21: 0 | X21: 0 | Y21: 0 | Z21: 0 | AA21: 0 | AB21: 0 | AC21: 0

Sheet V-T Mapping
B1: =Threats!L4 -> T1. Accidental loss of device | C1: =Threats!L5 -> T2. Identity theft | D1: =Threats!L6 -> T3. Intentional misuse, unauthorised disclosure, modification or destruction of individual’s data | E1: =Threats!L7 -> T4. Unintentional misuse, unauthorised disclosure, modification or destruction of individual’s data | F1: =Threats!L8 -> T5. Intermittent or no connectivity | G1: =Threats!L9 -> T6. Malicious physical attacks (theft, vandalism, misuse, etc.) | H1: =Threats!L10 -> T7. Malicious (logical) attacks on devices and systems | I1: =Threats!L11 -> T8. Overhearing/recording logging/blogging activity | J1: =Threats!L12 -> T9. Exploring new ‘vulnerabilities’ in the new applications | K1: =Threats!L13 -> T10. Spamming of users with ads and other non-solicited information; they can also use open, public information | L1: =Threats!L14 -> T11. Constrain consumer choices | M1: =Threats!L15 -> T12. Vested interests | N1: =Threats!L16 -> T13. Peer-pressure and social pressure to constantly share data and conform; fear of violent response / or ridicule from peers, friends etc; | O1: =Threats!L17 -> T14. Individual being negligent, careless, making mistakes; e.g. does not follow procedures appropriately, e.g. clicks through | P1: =Threats!L18 -> T15. Increased need for attention / social exposure | Q1: =Threats!L19 -> T16. Changes in perception of privacy and / or privacy needs | R1: =Threats!L20 -> T17. Data mining and profiling (large-scale, excessive and/or inappropriate) | S1: =Threats!L21 -> T18. Monitoring and surveillance | U1: CHECK (Vulns with no Threat)
A2: =Vulnerabilities!J4 -> V1. Flawed/insufficient design, implementation and/or capacity of devices and systems. Includes software bugs and design flaws. | D2: 1 | F2: 1 | J2: 1 | U2: =IF(SUM(B2:T2)=0,1,0) -> 0
A3: =Vulnerabilities!J5 -> V2. Inadequate policy framework | D3: 1 | I3: 1 | K3: 1 | L3: 1 | M3: 1 | R3: 1 | S3: 1 | U3: 0
A4: =Vulnerabilities!J6 -> V3. Inadequate privacy/security interfaces (poor interface design) | C4: 1 | D4: 1 | E4: 1 | I4: 1 | K4: 1 | O4: 1 | Q4: 1 | R4: 1 | S4: 1 | U4: 0
A5: =Vulnerabilities!J7 -> V4. Increase in centralization of data storage and processing and over-reliance on these centralised facilities | D5: 1 | E5: 1 | H5: 1 | L5: 1 | M5: 1 | Q5: 1 | R5: 1 | S5: 1 | U5: 0
A6: =Vulnerabilities!J8 -> V5. Inherent features of smart devices (size, material etc.): easy to lose or steal | B6: 1 | C6: 1 | D6: 1 | E6: 1 | G6: 1 | I6: 1 | L6: 1 | O6: 1 | S6: 1 | U6: 0
A7: =Vulnerabilities!J9 -> V6. Lack of appropriate, common or harmonized legislation in EU Member States | D7: 1 | I7: 1 | L7: 1 | M7: 1 | R7: 1 | S7: 1 | U7: 0
A8: =Vulnerabilities!J10 -> V7. Lack of interoperability between devices/ services/ technologies and/or systems | E8: 1 | F8: 1 | I8: 1 | L8: 1 | M8: 1 | U8: 0
A9: =Vulnerabilities!J11 -> V8. Lack of or inadequate user identification, authentication and access controls; e.g. use of new devices as authentication tools | C9: 1 | D9: 1 | E9: 1 | O9: 1 | S9: 1 | U9: 0
A10: =Vulnerabilities!J12 -> V9. Lack of third party system reviews and software integrity certification | D10: 1 | E10: 1 | F10: 1 | H10: 1 | J10: 1 | U10: 0
A11: =Vulnerabilities!J13 -> V10. Over reliance and excessive dependency on electronic devices and systems | B11: 1 | C11: 1 | D11: 1 | L11: 1 | M11: 1 | O11: 1 | Q11: 1 | U11: 0
A12: =Vulnerabilities!J14 -> V11. PC and home infrastructure vulnerabilities | D12: 1 | E12: 1 | F12: 1 | G12: 1 | H12: 1 | S12: 1 | U12: 0
A13: =Vulnerabilities!J15 -> V12. Smart phone vulnerabilities | B13: 1 | D13: 1 | E13: 1 | F13: 1 | G13: 1 | H13: 1 | J13: 1 | S13: 1 | U13: 0
A14: =Vulnerabilities!J16 -> V13. Lack of revocation/correction/deletion mechanisms | D14: 1 | E14: 1 | R14: 1 | S14: 1 | U14: 0
A15: =Vulnerabilities!J17 -> V14. Lack of (usable) privacy controls, e.g., overly permissive defaults, too coarse granularity, ... | C15: 1 | D15: 1 | E15: 1 | H15: 1 | I15: 1 | K15: 1 | M15: 1 | O15: 1 | Q15: 1 | R15: 1 | S15: 1 | U15: 0
A16: =Vulnerabilities!J18 -> V15. Lack of (usable) logging controls/policies/ reminders. E.g. capturing some embarrassing scene of someone else or yourself | E16: 1 | I16: 1 | N16: 1 | O16: 1 | P16: 1 | Q16: 1 | S16: 1 | U16: 0
A17: =Vulnerabilities!J19 -> V16. Lack of secure transmission and storage of data; also includes lack of (usable) transmission control (who gets the data) | D17: 1 | H17: 1 | I17: 1 | O17: 1 | R17: 1 | S17: 1 | U17: 0
A18: =Vulnerabilities!J20 -> V17. Lack of mechanisms to validate reputation or trustworthiness of service provider | I18: 1 | J18: 1 | K18: 1 | M18: 1 | O18: 1 | S18: 1 | U18: 0
A19: =Vulnerabilities!J21 -> V18. Lack of noticeable (and usable) notification systems | C19: 1 | I19: 1 | O19: 1 | R19: 1 | S19: 1 | U19: 0
A20: =Vulnerabilities!J22 -> V19. Increased complexity of controls (making it difficult for users to follow) | E20: 1 | I20: 1 | M20: 1 | O20: 1 | Q20: 1 | U20: 0
A21: =Vulnerabilities!J23 -> V20. Increase of (unprotected) data storage capacity in smart-devices | D21: 1 | E21: 1 | H21: 1 | O21: 1 | R21: 1 | S21: 1 | U21: 0
A22: =Vulnerabilities!J24 -> V21. Reliance on legacy, un-patched systems or integration mistakes | D22: 1 | F22: 1 | H22: 1 | U22: 0
A23: =Vulnerabilities!J25 -> V22. Lack of appropriate assurance procedures (e.g. third party audits) or enforcement of such, regarding the implementation of security controls, especially from the state, other regulatory and public authority | D23: 1 | E23: 1 | H23: 1 | R23: 1 | S23: 1 | U23: 0
A24: =Vulnerabilities!J26 -> V23. Lack of transparency and “social translucency”, i.e., audit logs (who accessed my profile/data) | I24: 1 | L24: 1 | M24: 1 | R24: 1 | S24: 1 | U24: 0
A25: =Vulnerabilities!J27 -> V24. Social reliance/over-confidence and trust on individual’s digital identity | C25: 1 | I25: 1 | M25: 1 | N25: 1 | O25: 1 | P25: 1 | Q25: 1 | R25: 1 | S25: 1 | U25: 0
A26: =Vulnerabilities!J28 -> V25. Inadequate user education, lack of awareness and training particularly in security and privacy; lack of context awareness | B26: 1 | C26: 1 | D26: 1 | G26: 1 | H26: 1 | I26: 1 | L26: 1 | M26: 1 | O26: 1 | Q26: 1 | R26: 1 | S26: 1 | U26: 0
A27: =Vulnerabilities!J29 -> V26. Psychological vulnerability (low self esteem and confidence to self, high influence potential by others, naïve and suggestible, etc ; weak perception of self) | L27: 1 | M27: 1 | N27: 1 | P27: 1 | Q27: 1 | S27: 1 | U27: 0
A28: =Vulnerabilities!J30 -> V27. Cognitive biases – Some people accept what they should not… | I28: 1 | K28: 1 | L28: 1 | M28: 1 | N28: 1 | Q28: 1 | R28: 1 | S28: 1 | U28: 0
A29: =Vulnerabilities!J31 -> V28. Data linkability / lifelogging data can be aggregated with other data | C29: 1 | D29: 1 | I29: 1 | L29: 1 | M29: 1 | R29: 1 | S29: 1 | U29: 0
A31: CHECK (Threat with no Vuln) | B31: =IF(SUM(B2:B29)=0,1,0) -> 0 | C31: 0 | D31: 0 | E31: 0 | F31: 0 | G31: 0 | H31: 0 | I31: 0 | J31: 0 | K31: 0 | L31: =IF(SUM(L2:L29)=0,1,0) -> 0 | M31: =IF(SUM(M2:M29)=0,1,0) -> 0 | N31: 0 | O31: =IF(SUM(O2:O29)=0,1,0) -> 0 | P31: 0 | Q31: 0 | R31: 0 | S31: 0

Sheet Risk Assessment
C1: Identification & Assessment of Risks (Asset - Threat - Vulnerability)
B4: Aggregate Risk -ID | C4: Risk-ID | D4: Risk Value | E4: Asset Description | F4: Asset Value | G4: Vulnerability Description | H4: Vulnerability Value | I4: Threat Description | J4: Threat Value | K4: A/V/T ID | L4: Risk ID | M4: Risk Value | N4: Risk Value (Final) | O4: Final Risk from 0-8 | Q4: Values | R4: Counts | S4: Weighted Average
B5: R1, R4, R6, R9, R12 | C5: =CONCATENATE("R.",LEFT(E5,SEARCH(".",E5,1)),LEFT(G5,SEARCH(".",G5,1)),LEFT(I5,SEARCH(".",I5,1))) -> R.A1.V25.T14. | D5: 10 | E5: A1. Actors’ digital presence not including social or professional reputation | F5: 3 | G5: V25. Inadequate user education, lack of awareness and training particularly in security and privacy; lack of context awareness | H5: 5 | I5: T14. Individual being negligent, careless, making mistakes; e.g. does not follow procedures appropriately, e.g. clicks through | J5: 4 | O5: =IF(R5=1,P5+W5-1,IF(R5=2,P5+W5,IF(R5=3,P5+W5+1,IF(R5=4,P5+W5+2,IF(R5=5,P5+W5+3))))) -> FALSE | Q5: 1 | R5: =COUNTIF($C$4:$D$1257,Q5) -> 0 | S5: =SUMPRODUCT(Q5:Q17,R5:R17)/R18 -> 8.724660814
B6: R1, R4, R9 | C6: R.A1.V25.T8. | D6: 9 | E6: A1. Actors’ digital presence not including social or professional reputation | F6: 3 | G6: V25. Inadequate user education, lack of awareness and training particularly in security and privacy; lack of context awareness | H6: 5 | I6: T8. Overhearing/recording logging/blogging activity | J6: 3 | O6: FALSE | Q6: 2 | R6: =COUNTIF($C$4:$D$1257,Q6) -> 0
B7: R1, R4, R9 | C7: R.A1.V25.T7. | D7: 8 | E7: A1. Actors’ digital presence not including social or professional reputation | F7: 3 | G7: V25. Inadequate user education, lack of awareness and training particularly in security and privacy; lack of context awareness | H7: 5 | I7: T7. Malicious (logical) attacks on devices and systems | J7: 2 | O7: FALSE | Q7: 3 | R7: 0
B8: R1, R4, R9 | C8: R.A1.V25.T6. | D8: 10 | E8: A1. Actors’ digital presence not including social or professional reputation | F8: 3 | G8: V25. Inadequate user education, lack of awareness and training particularly in security and privacy; lack of context awareness | H8: 5 | I8: T6. Malicious physical attacks (theft, vandalism, misuse, etc.) | J8: 4 | O8: FALSE | Q8: 4 | R8: 0
B9: R1, R4, R9 | C9: R.A1.V25.T3. | D9: 11 | E9: A1. Actors’ digital presence not including social or professional reputation | F9: 3 | G9: V25. Inadequate user education, lack of awareness and training particularly in security and privacy; lack of context awareness | H9: 5 | I9: T3. Intentional misuse, unauthorised disclosure, modification or destruction of individual’s data | J9: 5 | O9: FALSE | Q9: 5 | R9: 25
B10: R1, R4, R9 | C10: R.A1.V25.T2. | D10: 10 | E10: A1. Actors’ digital presence not including social or professional reputation | F10: 3 | G10: V25. Inadequate user education, lack of awareness and training particularly in security and privacy; lack of context awareness | H10: 5 | I10: T2. Identity theft | J10: 4 | O10: FALSE | Q10: 6 | R10: 78
B11: R1, R4 | C11: R.A1.V25.T1. | D11: 10 | E11: A1. Actors’ digital presence not including social or professional reputation | F11: 3 | G11: V25. Inadequate user education, lack of awareness and training particularly in security and privacy; lack of context awareness | H11: 5 | I11: T1. Accidental loss of device | J11: 4 | O11: FALSE | Q11: 7 | R11: 162
B12: R1 | C12: R.A1.V16.T18. | D12: 10 | E12: A1. Actors’ digital presence not including social or professional reputation | F12: 3 | G12: V16. Lack of secure transmission and storage of data; also includes lack of (usable) transmission control (who gets the data) | H12: 5 | I12: T18. Monitoring and surveillance | J12: 4 | O12: FALSE | Q12: 8 | R12: 271
B13: R1 | C13: R.A1.V16.T17. | D13: 11 | E13: A1. Actors’ digital presence not including social or professional reputation | F13: 3 | G13: V16. Lack of secure transmission and storage of data; also includes lack of (usable) transmission control (who gets the data) | H13: 5 | I13: T17. Data mining and profiling (large-scale, excessive and/or inappropriate) | J13: 5 | O13: FALSE | Q13: 9 | R13: 310
B14: R1 | C14: R.A1.V16.T14. | D14: 10 | E14: A1. Actors’ digital presence not including social or professional reputation | F14: 3 | G14: V16. Lack of secure transmission and storage of data; also includes lack of (usable) transmission control (who gets the data) | H14: 5 | I14: T14. Individual being negligent, careless, making mistakes; e.g. does not follow procedures appropriately, e.g. clicks through | J14: 4 | O14: FALSE | Q14: 10 | R14: 252
B15: R1 | C15: R.A1.V16.T8. | D15: 9 | E15: A1. Actors’ digital presence not including social or professional reputation | F15: 3 | G15: V16. Lack of secure transmission and storage of data; also includes lack of (usable) transmission control (who gets the data) | H15: 5 | I15: T8. Overhearing/recording logging/blogging activity | J15: 3 | O15: FALSE | Q15: 11 | R15: 133
B16: R1 | C16: R.A1.V16.T7. | D16: 8 | E16: A1. Actors’ digital presence not including social or professional reputation | F16: 3 | G16: V16. Lack of secure transmission and storage of data; also includes lack of (usable) transmission control (who gets the data) | H16: 5 | I16: T7. Malicious (logical) attacks on devices and systems | J16: 2 | O16: FALSE | Q16: 12 | R16: 22
B17: R1 | C17: R.A1.V16.T3. | D17: 11 | E17: A1. Actors’ digital presence not including social or professional reputation | F17: 3 | G17: V16. Lack of secure transmission and storage of data; also includes lack of (usable) transmission control (who gets the data) | H17: 5 | I17: T3. Intentional misuse, unauthorised disclosure, modification or destruction of individual’s data | J17: 5 | O17: FALSE | Q17: 13 | R17: 0
B18: R1 | C18: R.A1.V12.T9. | D18: 8 | E18: A1. Actors’ digital presence not including social or professional reputation | F18: 3 | G18: V12. Smart phone vulnerabilities | H18: 5 | I18: T9. Exploring new ‘vulnerabilities’ in the new applications | J18: 2 | O18: FALSE | R18: =SUM(R5:R17) -> 1253
B19: R1, R4 | C19: R.A1.V12.T7. | D19: 8 | E19: A1. Actors’ digital presence not including social or professional reputation | F19: 3 | G19: V12. Smart phone vulnerabilities | H19: 5 | I19: T7. Malicious (logical) attacks on devices and systems | J19: 2 | O19: FALSE
B20: R1, R4 | C20: R.A1.V12.T6. | D20: 10 | E20: A1. Actors’ digital presence not including social or professional reputation | F20: 3 | G20: V12. Smart phone vulnerabilities | H20: 5 | I20: T6. Malicious physical attacks (theft, vandalism, misuse, etc.) | J20: 4 | O20: FALSE
C21: R.A1.V12.T5. | D21: 8 | E21: A1. Actors’ digital presence not including social or professional reputation | F21: 3 | G21: V12. Smart phone vulnerabilities | H21: 5 | I21: T5. Intermittent or no connectivity | J21: 2 | O21: FALSE
B22: R1, R4 | C22: R.A1.V12.T3. | D22: 11 | E22: A1. Actors’ digital presence not including social or professional reputation | F22: 3 | G22: V12. Smart phone vulnerabilities | H22: 5 | I22: T3. Intentional misuse, unauthorised disclosure, modification or destruction of individual’s data | J22: 5 | O22: FALSE
B23: R1, R4 | C23: R.A1.V12.T1. | D23: 10 | E23: A1. Actors’ digital presence not including social or professional reputation | F23: 3 | G23: V12. Smart phone vulnerabilities | H23: 5 | I23: T1. Accidental loss of device | J23: 4 | O23: FALSE
B24: R1, R4 | C24: R.A1.V11.T7. | D24: 7 | E24: A1. Actors’ digital presence not including social or professional reputation | F24: 3 | G24: V11. PC and home infrastructure vulnerabilities | H24: 4 | I24: T7. Malicious (logical) attacks on devices and systems | J24: 2 | O24: FALSE
B25: R1, R4 | C25: R.A1.V11.T6. | D25: 9 | E25: A1. Actors’ digital presence not including social or professional reputation | F25: 3 | G25: V11. PC and home infrastructure vulnerabilities | H25: 4 | I25: T6. Malicious physical attacks (theft, vandalism, misuse, etc.) | J25: 4 | O25: FALSE
C26: R.A1.V11.T5. | D26: 7 | E26: A1. Actors’ digital presence not including social or professional reputation | F26: 3 | G26: V11. PC and home infrastructure vulnerabilities | H26: 4 | I26: T5. Intermittent or no connectivity | J26: 2 | O26: FALSE
B27: R1, R4 | C27: R.A1.V11.T3. | D27: 10 | E27: A1. Actors’ digital presence not including social or professional reputation | F27: 3 | G27: V11. PC and home infrastructure vulnerabilities | H27: 4 | I27: T3. Intentional misuse, unauthorised disclosure, modification or destruction of individual’s data | J27: 5 | O27: FALSE
B28: R1, R4 | C28: R.A1.V10.T3. | D28: 10 | E28: A1. Actors’ digital presence not including social or professional reputation | F28: 3 | G28: V10. Over reliance and excessive dependency on electronic devices and systems | H28: 4 | I28: T3. Intentional misuse, unauthorised disclosure, modification or destruction of individual’s data | J28: 5 | O28: FALSE
B29: R1, R4 | C29: R.A1.V10.T1. | D29: 9 | E29: A1. Actors’ digital presence not including social or professional reputation | F29: 3 | G29: V10. Over reliance and excessive dependency on electronic devices and systems | H29: 4 | I29: T1. Accidental loss of device | J29: 4 | O29: FALSE
B30: R1, R4 | C30: R.A1.V8.T14. | D30: 10 | E30: A1. Actors’ digital presence not including social or professional reputation | F30: 3 | G30: V8. Lack of or inadequate user identification, authentication and access controls; e.g. use of new devices as authentication tools | H30: 5 | I30: T14. Individual being negligent, careless, making mistakes; e.g. does not follow procedures appropriately, e.g. clicks through | J30: 4 | O30: FALSE
B31: R1, R4 | C31: R.A1.V8.T3. | D31: 11 | E31: A1. Actors’ digital presence not including social or professional reputation | F31: 3 | G31: V8. Lack of or inadequate user identification, authentication and access controls; e.g. use of new devices as authentication tools | H31: 5 | I31: T3. Intentional misuse, unauthorised disclosure, modification or destruction of individual’s data | J31: 5 | O31: FALSE
B32: R1, R4 | C32: R.A1.V8.T2. | D32: 10 | E32: A1. Actors’ digital presence not including social or professional reputation | F32: 3 | G32: V8. Lack of or inadequate user identification, authentication and access controls; e.g. use of new devices as authentication tools | H32: 5 | I32: T2. Identity theft | J32: 4 | O32: FALSE
B33: R1, R4 | C33: R.A1.V5.T14. | D33: 10 | E33: A1. Actors’ digital presence not including social or professional reputation | F33: 3 | G33: V5. Inherent features of smart devices (size, material etc.): easy to lose or steal | H33: 5 | I33: T14. Individual being negligent, careless, making mistakes; e.g. does not follow procedures appropriately, e.g. clicks through | J33: 4 | O33: FALSE
B34: R4 | C34: R.A1.V5.T11. | D34: 9 | E34: A1. Actors’ digital presence not including social or professional reputation | F34: 3 | G34: V5. Inherent features of smart devices (size, material etc.): easy to lose or steal | H34: 5 | I34: T11. Constrain consumer choices | J34: 3 | O34: FALSE
B35: R1, R4 | C35: R.A1.V5.T8. | D35: 9 | E35: A1. Actors’ digital presence not including social or professional reputation | F35: 3 | G35: V5. Inherent features of smart devices (size, material etc.): easy to lose or steal | H35: 5 | I35: T8. Overhearing/recording logging/blogging activity | J35: 3 | O35: FALSE
B36: R1, R4 | C36: R.A1.V5.T6. | D36: 10 | E36: A1. Actors’ digital presence not including social or professional reputation | F36: 3 | G36: V5. Inherent features of smart devices (size, material etc.): easy to lose or steal | H36: 5 | I36: T6. Malicious physical attacks (theft, vandalism, misuse, etc.) | J36: 4 | O36: FALSE
B37: R1, R4 | C37: R.A1.V5.T3. | D37: 11 | E37: A1. Actors’ digital presence not including social or professional reputation | F37: 3 | G37: V5. Inherent features of smart devices (size, material etc.): easy to lose or steal | H37: 5 | I37: T3. Intentional misuse, unauthorised disclosure, modification or destruction of individual’s data | J37: 5 | O37: FALSE
B38: R1, R4 | C38: R.A1.V5.T2. | D38: 10 | E38: A1. Actors’ digital presence not including social or professional reputation | F38: 3 | G38: V5. Inherent features of smart devices (size, material etc.): easy to lose or steal | H38: 5 | I38: T2. Identity theft | J38: 4 | O38: FALSE
B39: R1, R4 | C39: R.A1.V5.T1. | D39: 10 | E39: A1. Actors’ digital presence not including social or professional reputation | F39: 3 | G39: V5. Inherent features of smart devices (size, material etc.): easy to lose or steal | H39: 5 | I39: T1. Accidental loss of device | J39: 4 | O39: FALSE
B40: R1, R4, R9, R12 | C40: R.A1.V3.T14. | D40: 8 | E40: A1. Actors’ digital presence not including social or professional reputation | F40: 3 | G40: V3. Inadequate privacy/security interfaces (poor interface design) | H40: 3 | I40: T14. Individual being negligent, careless, making mistakes; e.g. does not follow procedures appropriately, e.g. clicks through | J40: 4 | O40: FALSE
B41: R1, R4, R9 | C41: R.A1.V3.T8. | D41: 7 | E41: A1. Actors’ digital presence not including social or professional reputation | F41: 3 | G41: V3. Inadequate privacy/security interfaces (poor interface design) | H41: 3 | I41: T8. Overhearing/recording logging/blogging activity | J41: 3 | O41: FALSE
B42: R1, R4, R9 | C42: R.A1.V3.T3. | D42: 9 | E42: A1. Actors’ digital presence not including social or professional reputation | F42: 3 | G42: V3. Inadequate privacy/security interfaces (poor interface design) | H42: 3 | I42: T3. Intentional misuse, unauthorised disclosure, modification or destruction of individual’s data | J42: 5 | O42: FALSE
B43: R1, R4 | C43: R.A1.V3.T2. | D43: 8 | E43: A1. Actors’ digital presence not including social or professional reputation | F43: 3 | G43: V3. Inadequate privacy/security interfaces (poor interface design) | H43: 3 | I43: T2. Identity theft | J43: 4 | O43: FALSE
B44: R1, R4, R7, R8, R11, R12 | C44: R.A2.V25.T14. | D44: 11 | E44: A2. Social reputation | F44: 4 | G44: V25. Inadequate user education, lack of awareness and training particularly in security and privacy; lack of context awareness | H44: 5 | I44: T14. Individual being negligent, careless, making mistakes; e.g. does not follow procedures appropriately, e.g. clicks through | J44: 4 | O44: FALSE
B45: R1, R4, R8, R11 | C45: R.A2.V25.T8. | D45: 10 | E45: A2. Social reputation | F45: 4 | G45: V25. Inadequate user education, lack of awareness and training particularly in security and privacy; lack of context awareness | H45: 5 | I45: T8. Overhearing/recording logging/blogging activity | J45: 3 | O45: FALSE
B46: R1, R4, R8 | C46: R.A2.V25.T7. | D46: 9 | E46: A2. Social reputation | F46: 4 | G46: V25. Inadequate user education, lack of awareness and training particularly in security and privacy; lack of context awareness | H46: 5 | I46: T7. Malicious (logical) attacks on devices and systems | J46: 2 | O46: FALSE
B47: R1, R4, R8 | C47: R.A2.V25.T6. | D47: 11 | E47: A2. Social reputation | F47: 4 | G47: V25. Inadequate user education, lack of awareness and training particularly in security and privacy; lack of context awareness | H47: 5 | I47: T6. Malicious physical attacks (theft, vandalism, misuse, etc.) | J47: 4 | O47: FALSE
B48: R1, R4, R8, R11 | C48: R.A2.V25.T3. | D48: 12 | E48: A2. Social reputation | F48: 4 | G48: V25. Inadequate user education, lack of awareness and training particularly in security and privacy; lack of context awareness | H48: 5 | I48: T3. Intentional misuse, unauthorised disclosure, modification or destruction of individual’s data | J48: 5 | O48: FALSE
B49: R1, R4, R8 | C49: R.A2.V25.T2. | D49: 11 | E49: A2. Social reputation | F49: 4 | G49: V25. Inadequate user education, lack of awareness and training particularly in security and privacy; lack of context awareness | H49: 5 | I49: T2. Identity theft | J49: 4 | O49: FALSE
B50: R1, R4, R8 | C50: R.A2.V25.T1. | D50: 11 | E50: A2. Social reputation | F50: 4 | G50: V25. Inadequate user education, lack of awareness and training particularly in security and privacy; lack of context awareness | H50: 5 | I50: T1. Accidental loss of device | J50: 4 | O50: FALSE
B51: R1 | C51: R.A2.V12.T9. | D51: 9 | E51: A2. Social reputation | F51: 4 | G51: V12. Smart phone vulnerabilities | H51: 5 | I51: T9. Exploring new ‘vulnerabilities’ in the new applications | J51: 2 | O51: FALSE
B52: R1, R4 | C52: R.A2.V12.T7. | D52: 9 | E52: A2. Social reputation | F52: 4 | G52: V12. Smart phone vulnerabilities | H52: 5 | I52: T7. Malicious (logical) attacks on devices and systems | J52: 2 | O52: FALSE
B53: R1, R4 | C53: R.A2.V12.T6. | D53: 11 | E53: A2. Social reputation | F53: 4 | G53: V12. Smart phone vulnerabilities | H53: 5 | I53: T6. Malicious physical attacks (theft, vandalism, misuse, etc.) | J53: 4 | O53: FALSE
B54: R1, R4 | C54: R.A2.V12.T3. | D54: 12 | E54: A2. Social reputation | F54: 4 | G54: V12. Smart phone vulnerabilities | H54: 5 | I54: T3. Intentional misuse, unauthorised disclosure, modification or destruction of individual’s data | J54: 5 | O54: FALSE
B55: R1, R4 | C55: R.A2.V12.T1. | D55: 11 | E55: A2. Social reputation | F55: 4 | G55: V12. Smart phone vulnerabilities | H55: 5 | I55: T1. Accidental loss of device | J55: 4 | O55: FALSE
B56: R1, R4 | C56: R.A2.V11.T7. | D56: 8 | E56: A2. Social reputation | F56: 4 | G56: V11. PC and home infrastructure vulnerabilities | H56: 4 | I56: T7. Malicious (logical) attacks on devices and systems | J56: 2 | O56: FALSE
B57: R1, R4 | C57: R.A2.V11.T6. | D57: 10 | E57: A2. Social reputation | F57: 4 | G57: V11. PC and home infrastructure vulnerabilities | H57: 4 | I57: T6. Malicious physical attacks (theft, vandalism, misuse, etc.) | J57: 4 | O57: FALSE
B58: R1, R4 | C58: R.A2.V11.T3. | D58: 11 | E58: A2. Social reputation | F58: 4 | G58: V11. PC and home infrastructure vulnerabilities | H58: 4 | I58: T3. Intentional misuse, unauthorised disclosure, modification or destruction of individual’s data | J58: 5 | O58: FALSE
B59: R1, R4, R10 | C59: R.A2.V10.T3. | D59: 11 | E59: A2. Social reputation | F59: 4 | G59: V10. Over reliance and excessive dependency on electronic devices and systems | H59: 4 | I59: T3. Intentional misuse, unauthorised disclosure, modification or destruction of individual’s data | J59: 5 | O59: FALSE
B60: R1, R4 | C60: R.A2.V10.T1. | D60: 10 | E60: A2. Social reputation | F60: 4 | G60: V10. Over reliance and excessive dependency on electronic devices and systems | H60: 4 | I60: T1. Accidental loss of device | J60: 4 | O60: FALSE
B61: R1, R4, R10 | C61: R.A2.V8.T14. | D61: 11 | E61: A2. Social reputation | F61: 4 | G61: V8. Lack of or inadequate user identification, authentication and access controls; e.g. use of new devices as authentication tools | H61: 5 | I61: T14. Individual being negligent, careless, making mistakes; e.g. does not follow procedures appropriately, e.g. clicks through | J61: 4 | O61: FALSE
B62: R1, R4, R10 | C62: R.A2.V8.T3. | D62: 12 | E62: A2. Social reputation | F62: 4 | G62: V8. Lack of or inadequate user identification, authentication and access controls; e.g. use of new devices as authentication tools | H62: 5 | I62: T3. Intentional misuse, unauthorised disclosure, modification or destruction of individual’s data | J62: 5 | O62: FALSE
B63: R1, R4 | C63: R.A2.V8.T2. | D63: 11 | E63: A2. Social reputation | F63: 4 | G63: V8. Lack of or inadequate user identification, authentication and access controls; e.g. use of new devices as authentication tools | H63: 5 | I63: T2. Identity theft | J63: 4 | O63: FALSE
B64: R1, R4 | C64: R.A2.V5.T14. | D64: 11 | E64: A2. Social reputation | F64: 4 | G64: V5. Inherent features of smart devices (size, material etc.): easy to lose or steal | H64: 5 | I64: T14. Individual being negligent, careless, making mistakes; e.g. does not follow procedures appropriately, e.g. clicks through | J64: 4 | O64: FALSE
B65: R1, R4 | C65: R.A2.V5.T8. | D65: 10 | E65: A2. Social reputation | F65: 4 | G65: V5. Inherent features of smart devices (size, material etc.): easy to lose or steal | H65: 5 | I65: T8. Overhearing/recording logging/blogging activity | J65: 3 | O65: FALSE
B66: R1, R4 | C66: R.A2.V5.T6. | D66: 11 | E66: A2. Social reputation | F66: 4 | G66: V5. Inherent features of smart devices (size, material etc.): easy to lose or steal | H66: 5 | I66: T6. Malicious physical attacks (theft, vandalism, misuse, etc.) | J66: 4 | O66: FALSE
B67: R1, R4 | C67: =CONCATENATE("R.",LEFT(E67,SEARCH(".",E67,1)),LEFT(G67,SEARCH(".",G67,1)),LEFT(I67,SEARCH(".",I67,1))) -> R.A2.V5.T3. | D67: 12 | E67: A2. Social reputation | F67: 4 | G67: V5. Inherent features of smart devices (size, material etc.): easy to lose or steal | H67: 5 | I67: T3. Intentional misuse, unauthorised disclosure, modification or destruction of individual’s data | J67: 5 | O67: FALSE
B68: R1, R4 | C68: R.A2.V5.T2. | D68: 11 | E68: A2. Social reputation | F68: 4 | G68: V5. Inherent features of smart devices (size, material etc.): easy to lose or steal | H68: 5 | I68: T2. Identity theft | J68: 4 | O68: FALSE
B69: R1, R4 | C69: R.A2.V5.T1. | D69: 11 | E69: A2. Social reputation | F69: 4 | G69: V5. Inherent features of smart devices (size, material etc.): easy to lose or steal | H69: 5 | I69: T1. Accidental loss of device | J69: 4 | O69: =IF(R69=1,P69+W69-1,IF(R69=2,P69+W69,IF(R69=3,P69+W69+1,IF(R69=4,P69+W69+2,IF(R69=5,P69+W69+3))))) -> FALSE
B70: R1, R4, R8, R10, R12 | C70: R.A2.V3.T14. | D70: 9 | E70: A2. Social reputation | F70: 4 | G70: V3. Inadequate privacy/security interfaces (poor interface design) | H70: 3 | I70: T14. Individual being negligent, careless, making mistakes; e.g. does not follow procedures appropriately, e.g. clicks through | J70: 4 | O70: FALSE
B71: R1, R4, R8, R10 | C71: R.A2.V3.T8. | D71: 8 | E71: A2. Social reputation | F71: 4 | G71: V3. Inadequate privacy/security interfaces (poor interface design) | H71: 3 | I71: T8. Overhearing/recording logging/blogging activity | J71: 3 | O71: FALSE
B72: R1, R4, R8, R10 | C72: R.A2.V3.T3. | D72: 10 | E72: A2. Social reputation | F72: 4 | G72: V3. Inadequate privacy/security interfaces (poor interface design) | H72: 3 | I72: T3. Intentional misuse, unauthorised disclosure, modification or destruction of individual’s data | J72: 5 | O72: FALSE
B73: R1, R4, R8 | C73: R.A2.V3.T2. | D73: 9 | E73: A2. Social reputation | F73: 4 | G73: V3. Inadequate privacy/security interfaces (poor interface design) | H73: 3 | I73: T2. Identity theft | J73: 4 | O73: FALSE
B74: R1, R10 | C74: R.A2.V1.T9. | D74: 7 | E74: A2. Social reputation | F74: 4 | G74: V1. Flawed/insufficient design, implementation and/or capacity of devices and systems. Includes software bugs and design flaws. | H74: 3 | I74: T9. Exploring new ‘vulnerabilities’ in the new applications | J74: 2 | O74: FALSE
B75: R1, R4, R10 | C75: R.A2.V1.T3. | D75: 10 | E75: A2. Social reputation | F75: 4 | G75: V1. Flawed/insufficient design, implementation and/or capacity of devices and systems. Includes software bugs and design flaws. | H75: 3 | I75: T3. Intentional misuse, unauthorised disclosure, modification or destruction of individual’s data | J75: 5 | O75: FALSE
B76: R1, R4, R7, R8, R11 | C76: R.A3.V25.T14. | D76: 11 | E76: A3. Professional reputation | F76: 4 | G76: V25. Inadequate user education, lack of awareness and training particularly in security and privacy; lack of context awareness | H76: 5 | I76: T14. Individual being negligent, careless, making mistakes; e.g. does not follow procedures appropriately, e.g. clicks through | J76: 4 | O76: FALSE
B77: R1, R4, R8, R11 | C77: R.A3.V25.T8. | D77: 10 | E77: A3. Professional reputation | F77: 4 | G77: V25. Inadequate user education, lack of awareness and training particularly in security and privacy; lack of context awareness | H77: 5 | I77: T8. Overhearing/recording logging/blogging activity | J77: 3 | O77: FALSE
B78: R1, R4, R8 | C78: R.A3.V25.T7. | D78: 9 | E78: A3. Professional reputation | F78: 4 | G78: V25. Inadequate user education, lack of awareness and training particularly in security and privacy; lack of context awareness | H78: 5 | I78: T7. Malicious (logical) attacks on devices and systems | J78: 2 | O78: FALSE
B79: R1, R4, R8 | C79: R.A3.V25.T6. | D79: 11 | E79: A3. Professional reputation | F79: 4 | G79: V25. Inadequate user education, lack of awareness and training particularly in security and privacy; lack of context awareness | H79: 5 | I79: T6. Malicious physical attacks (theft, vandalism, misuse, etc.) | J79: 4 | O79: FALSE
B80: R1, R4, R8, R11 | C80: R.A3.V25.T3. | D80: 12 | E80: A3. Professional reputation | F80: 4 | G80: V25. Inadequate user education, lack of awareness and training particularly in security and privacy; lack of context awareness | H80: 5 | I80: T3. Intentional misuse, unauthorised disclosure, modification or destruction of individual’s data | J80: 5 | O80: FALSE
B81: R1, R4, R8 | C81: R.A3.V25.T2. | D81: 11 | E81: A3. Professional reputation | F81: 4 | G81: V25. Inadequate user education, lack of awareness and training particularly in security and privacy; lack of context awareness | H81: 5 | I81: T2. Identity theft | J81: 4 | O81: FALSE
B82: R1, R4, R8 | C82: R.A3.V25.T1. | D82: 11 | E82: A3. Professional reputation | F82: 4 | G82: V25. Inadequate user education, lack of awareness and training particularly in security and privacy; lack of context awareness | H82: 5 | I82: T1. Accidental loss of device | J82: 4 | O82: FALSE
B83: R1 | C83: R.A3.V12.T9. | D83: 9 | E83: A3. Professional reputation | F83: 4 | G83: V12. Smart phone vulnerabilities | H83: 5 | I83: T9. Exploring new ‘vulnerabilities’ in the new applications | J83: 2 | O83: FALSE
B84: R1, R4 | C84: R.A3.V12.T7. | D84: 9 | E84: A3. Professional reputation | F84: 4 | G84: V12. Smart phone vulnerabilities | H84: 5 | I84: T7. Malicious (logical) attacks on devices and systems | J84: 2 | O84: FALSE
B85: R1, R4 | C85: R.A3.V12.T6. | D85: 11 | E85: A3. Professional reputation | F85: 4 | G85: V12. Smart phone vulnerabilities | H85: 5 | I85: T6. Malicious physical attacks (theft, vandalism, misuse, etc.) | J85: 4 | O85: FALSE
B86: R1, R4 | C86: R.A3.V12.T3. | D86: 12 | E86: A3. Professional reputation | F86: 4 | G86: V12. Smart phone vulnerabilities | H86: 5 | I86: T3. Intentional misuse, unauthorised disclosure, modification or destruction of individual’s data | J86: 5 | O86: FALSE
B87: R1, R4 | C87: R.A3.V12.T1. | D87: 11 | E87: A3. Professional reputation | F87: 4 | G87: V12. Smart phone vulnerabilities | H87: 5 | I87: T1. Accidental loss of device | J87: 4 | O87: FALSE
B88: R1, R4 | C88: R.A3.V11.T7. | D88: 8 | E88: A3. Professional reputation | F88: 4 | G88: V11. PC and home infrastructure vulnerabilities | H88: 4 | I88: T7. Malicious (logical) attacks on devices and systems | J88: 2 | O88: FALSE
B89: R1, R4 | C89: R.A3.V11.T6. | D89: 10 | E89: A3. Professional reputation | F89: 4 | G89: V11. PC and home infrastructure vulnerabilities | H89: 4 | I89: T6. Malicious physical attacks (theft, vandalism, misuse, etc.) | J89: 4 | O89: FALSE
B90: R1, R4 | C90: R.A3.V11.T3. | D90: 11 | E90: A3. Professional reputation | F90: 4 | G90: V11. PC and home infrastructure vulnerabilities | H90: 4 | I90: T3. Intentional misuse, unauthorised disclosure, modification or destruction of individual’s data | J90: 5 | O90: FALSE
B91: R1, R4, R10 | C91: R.A3.V10.T3. | D91: 11 | E91: A3. Professional reputation | F91: 4 | G91: V10. Over reliance and excessive dependency on electronic devices and systems | H91: 4 | I91: T3. Intentional misuse, unauthorised disclosure, modification or destruction of individual’s data | J91: 5 | O91: FALSE
B92: R1, R4 | C92: R.A3.V10.T1. | D92: 10 | E92: A3. Professional reputation | F92: 4 | G92: V10. Over reliance and excessive dependency on electronic devices and systems | H92: 4 | I92: T1. Accidental loss of device | J92: 4 | O92: FALSE
B93: R1, R4, R10 | C93: R.A3.V8.T14. | D93: 11 | E93: A3. Professional reputation | F93: 4 | G93: V8. Lack of or inadequate user identification, authentication and access controls; e.g. use of new devices as authentication tools | H93: 5 | I93: T14. Individual being negligent, careless, making mistakes; e.g. does not follow procedures appropriately, e.g. clicks through | J93: 4 | O93: FALSE
B94: R1, R4, R10 | C94: R.A3.V8.T3. | D94: 12 | E94: A3. Professional reputation | F94: 4 | G94: V8. Lack of or inadequate user identification, authentication and access controls; e.g. use of new devices as authentication tools | H94: 5 | I94: T3. Intentional misuse, unauthorised disclosure, modification or destruction of individual’s data | J94: 5 | O94: FALSE
B95: R1, R4 | C95: R.A3.V8.T2. | D95: 11 | E95: A3. Professional reputation | F95: 4 | G95: V8. Lack of or inadequate user identification, authentication and access controls; e.g. use of new devices as authentication tools | H95: 5 | I95: T2. Identity theft | J95: 4 | O95: FALSE
B96: R1, R4 | C96: R.A3.V5.T14. | D96: 11 | E96: A3. Professional reputation | F96: 4 | G96: V5. Inherent features of smart devices (size, material etc.): easy to lose or steal | H96: 5 | I96: T14. Individual being negligent, careless, making mistakes; e.g. does not follow procedures appropriately, e.g. clicks through | J96: 4 | O96: FALSE
B97: R1, R4 | C97: R.A3.V5.T8. | D97: 10 | E97: A3. Professional reputation | F97: 4 | G97: V5. Inherent features of smart devices (size, material etc.): easy to lose or steal | H97: 5 | I97: T8. Overhearing/recording logging/blogging activity | J97: 3 | O97: FALSE
B98: R1, R4 | C98: R.A3.V5.T6. | D98: 11 | E98: A3. Professional reputation | F98: 4 | G98: V5. Inherent features of smart devices (size, material etc.): easy to lose or steal | H98: 5 | I98: T6. Malicious physical attacks (theft, vandalism, misuse, etc.) | J98: 4 | O98: FALSE
B99: R1, R4 | C99: R.A3.V5.T3. | D99: 12 | E99: A3. Professional reputation | F99: 4 | G99: V5. Inherent features of smart devices (size, material etc.): easy to lose or steal | H99: 5 | I99: T3. Intentional misuse, unauthorised disclosure, modification or destruction of individual’s data | J99: 5 | O99: FALSE
B100: R1, R4 | C100: R.A3.V5.T2. | D100: 11 | E100: A3. Professional reputation | F100: 4 | G100: V5. Inherent features of smart devices (size, material etc.): easy to lose or steal | H100: 5 | I100: T2. Identity theft | J100: 4 | O100: FALSE
B101: R1, R4 | C101: R.A3.V5.T1. | D101: 11 | E101: A3. Professional reputation | F101: 4 | G101: V5. Inherent features of smart devices (size, material etc.): easy to lose or steal | H101: 5 | I101: T1. Accidental loss of device | J101: 4 | O101: FALSE
B102: R1, R4, R8, R10 | C102: R.A3.V3.T14. | D102: 9 | E102: A3. Professional reputation | F102: 4 | G102: V3. Inadequate privacy/security interfaces (poor interface design) | H102: 3 | I102: T14. Individual being negligent, careless, making mistakes; e.g. does not follow procedures appropriately, e.g. clicks through | J102: 4 | O102: FALSE
B103: R1, R4, R8, R10 | C103: R.A3.V3.T8. | D103: 8 | E103: A3. Professional reputation | F103: 4 | G103: V3. Inadequate privacy/security interfaces (poor interface design) | H103: 3 | I103: T8. Overhearing/recording logging/blogging activity | J103: 3 | O103: FALSE
B104: R1, R4, R8, R10 | C104: R.A3.V3.T3. | D104: 10 | E104: A3. Professional reputation | F104: 4 | G104: V3. Inadequate privacy/security interfaces (poor interface design) | H104: 3 | I104: T3. Intentional misuse, unauthorised disclosure, modification or destruction of individual’s data | J104: 5 | O104: FALSE
B105: R1, R4, R8 | C105: R.A3.V3.T2. | D105: 9 | E105: A3. Professional reputation | F105: 4 | G105: V3. Inadequate privacy/security interfaces (poor interface design) | H105: 3 | I105: T2. Identity theft | J105: 4 | O105: FALSE
B106: R1, R10 | C106: R.A3.V1.T9. | D106: 7 | E106: A3. Professional reputation | F106: 4 | G106: V1. Flawed/insufficient design, implementation and/or capacity of devices and systems. Includes software bugs and design flaws. | H106: 3 | I106: T9. Exploring new ‘vulnerabilities’ in the new applications | J106: 2 | O106: FALSE
B107: R1, R4, R10 | C107: R.A3.V1.T3. | D107: 10 | E107: A3. Professional reputation | F107: 4 | G107: V1. Flawed/insufficient design, implementation and/or capacity of devices and systems. Includes software bugs and design flaws. | H107: 3 | I107: T3. Intentional misuse, unauthorised disclosure, modification or destruction of individual’s data | J107: 5 | O107: FALSE
B108: R1, R4, R5, R6, R7, R8, R12 | C108: R.A6.V25.T14. | D108: 10 | E108: A6. Life-logging services | F108: 3 | G108: V25. Inadequate user education, lack of awareness and training particularly in security and privacy; lack of context awareness | H108: 5 | I108: T14. Individual being negligent, careless, making mistakes; e.g. does not follow procedures appropriately, e.g. clicks through | J108: 4 | O108: FALSE
B109: R1, R4, R8 | C109: R.A6.V25.T8. | D109: 9 | E109: A6. Life-logging services | F109: 3 | G109: V25. Inadequate user education, lack of awareness and training particularly in security and privacy; lack of context awareness | H109: 5 | I109: T8. Overhearing/recording logging/blogging activity | J109: 3 | O109: FALSE
B110: R1, R4, R8 | C110: R.A6.V25.T7. | D110: 8 | E110: A6. Life-logging services | F110: 3 | G110: V25. Inadequate user education, lack of awareness and training particularly in security and privacy; lack of context awareness | H110: 5 | I110: T7. Malicious (logical) attacks on devices and systems | J110: 2 | O110: FALSE
B111: R1, R4, R8 | C111: R.A6.V25.T6. | D111: 10 | E111: A6. Life-logging services | F111: 3 | G111: V25. Inadequate user education, lack of awareness and training particularly in security and privacy; lack of context awareness | H111: 5 | I111: T6. Malicious physical attacks (theft, vandalism, misuse, etc.) | J111: 4 | O111: FALSE
B112: R1, R4, R8 | C112: R.A6.V25.T3. | D112: 11 | E112: A6. Life-logging services | F112: 3 | G112: V25. Inadequate user education, lack of awareness and training particularly in security and privacy; lack of context awareness | H112: 5 | I112: T3. Intentional misuse, unauthorised disclosure, modification or destruction of individual’s data | J112: 5 | O112: FALSE
B113: R1, R4, R8 | C113: R.A6.V25.T2. | D113: 10 | E113: A6. Life-logging services | F113: 3 | G113: V25. Inadequate user education, lack of awareness and training particularly in security and privacy; lack of context awareness | H113: 5 | I113: T2. Identity theft | J113: 4 | O113: FALSE
B114: R1, R4, R8 | C114: R.A6.V25.T1. | D114: 10 | E114: A6. Life-logging services | F114: 3 | G114: V25. Inadequate user education, lack of awareness and training particularly in security and privacy; lack of context awareness | H114: 5 | I114: T1. Accidental loss of device | J114: 4 | O114: FALSE
B115: R1, R4, R10 | C115: R.A6.V10.T3. | D115: 10 | E115: A6. Life-logging services | F115: 3 | G115: V10. Over reliance and excessive dependency on electronic devices and systems | H115: 4 | I115: T3. Intentional misuse, unauthorised disclosure, modification or destruction of individual’s data | J115: 5 | O115: FALSE
B116: R1, R4 | C116: R.A6.V10.T1. | D116: 9 | E116: A6. Life-logging services | F116: 3 | G116: V10. Over reliance and excessive dependency on electronic devices and systems | H116: 4 | I116: T1. Accidental loss of device | J116: 4 | O116: FALSE
B117: R1, R4, R10 | C117: R.A6.V8.T14. | D117: 10 | E117: A6. Life-logging services | F117: 3 | G117: V8. Lack of or inadequate user identification, authentication and access controls; e.g. use of new devices as authentication tools | H117: 5 | I117: T14. Individual being negligent, careless, making mistakes; e.g. does not follow procedures appropriately, e.g. clicks through | J117: 4 | O117: FALSE
B118: R1, R4, R10 | C118: R.A6.V8.T3. | D118: 11 | E118: A6. Life-logging services | F118: 3 | G118: V8. Lack of or inadequate user identification, authentication and access controls; e.g. use of new devices as authentication tools | H118: 5 | I118: T3. Intentional misuse, unauthorised disclosure, modification or destruction of individual’s data | J118: 5 | O118: FALSE
B119: R1, R4 | C119: R.A6.V8.T2. | D119: 10 | E119: A6. Life-logging services | F119: 3 | G119: V8. Lack of or inadequate user identification, authentication and access controls; e.g. use of new devices as authentication tools | H119: 5 | I119: T2. Identity theft | J119: 4 | O119: FALSE
B120: R1, R4, R5, R8, R10, R12 | C120: R.A6.V3.T14. | D120: 8 | E120: A6. Life-logging services | F120: 3 | G120: V3. Inadequate privacy/security interfaces (poor interface design) | H120: 3 | I120: T14. Individual being negligent, careless, making mistakes; e.g. does not follow procedures appropriately, e.g. clicks through | J120: 4 | O120: FALSE
B121: R1, R4, R8, R10 | C121: R.A6.V3.T8. | D121: 7 | E121: A6. Life-logging services | F121: 3 | G121: V3. Inadequate privacy/security interfaces (poor interface design) | H121: 3 | I121: T8. Overhearing/recording logging/blogging activity | J121: 3 | O121: FALSE
B122: R1, R4, R8, R10 | C122: R.A6.V3.T3. | D122: 9 | E122: A6. Life-logging services | F122: 3 | G122: V3. Inadequate privacy/security interfaces (poor interface design) | H122: 3 | I122: T3. Intentional misuse, unauthorised disclosure, modification or destruction of individual’s data | J122: 5 | O122: FALSE
B123: R1, R4, R8 | C123: R.A6.V3.T2. | D123: 8 | E123: A6. Life-logging services | F123: 3 | G123: V3. Inadequate privacy/security interfaces (poor interface design) | H123: 3 | I123: T2. Identity theft | J123: 4 | O123: FALSE
B124: R1, R10 | C124: R.A6.V1.T9. | D124: 6 | E124: A6. Life-logging services | F124: 3 | G124: V1. Flawed/insufficient design, implementation and/or capacity of devices and systems. Includes software bugs and design flaws. | H124: 3 | I124: T9. Exploring new ‘vulnerabilities’ in the new applications | J124: 2 | O124: FALSE
B125: R1, R4, R10 | C125: =CONCATENATE("R.",LEFT(E125,SEARCH(".",E125,1)),LEFT(G125,SEARCH(".",G125,1)),LEFT(I125,SEARCH(".",I125,1))) -> R.A6.V1.T3. | D125: 9 | E125: A6. Life-logging services | F125: 3 | G125: V1. Flawed/insufficient design, implementation and/or capacity of devices and systems. Includes software bugs and design flaws. | H125: 3 | I125: T3. Intentional misuse, unauthorised disclosure, modification or destruction of individual’s data | J125: 5 | O125: FALSE
B126: R1, R2, R5, R12 | C126: R.A8.V25.T14. | D126: 9 | E126: A8. Smart home objects / appliances | F126: 2.1 | G126: V25. Inadequate user education, lack of awareness and training particularly in security and privacy; lack of context awareness | H126: 5 | I126: T14. Individual being negligent, careless, making mistakes; e.g. does not follow procedures appropriately, e.g. clicks through | J126: 4 | O126: FALSE
B127: R1 | C127: R.A8.V25.T8. | D127: 8 | E127: A8. Smart home objects / appliances | F127: 2.1 | G127: V25. Inadequate user education, lack of awareness and training particularly in security and privacy; lack of context awareness | H127: 5 | I127: T8. Overhearing/recording logging/blogging activity | J127: 3 | O127: FALSE
B128: R1 | C128: R.A8.V25.T7. | D128: 7 | E128: A8. Smart home objects / appliances | F128: 2.1 | G128: V25. Inadequate user education, lack of awareness and training particularly in security and privacy; lack of context awareness | H128: 5 | I128: T7. Malicious (logical) attacks on devices and systems | J128: 2 | O128: FALSE
B129: R1 | C129: R.A8.V25.T6. | D129: 9 | E129: A8. Smart home objects / appliances | F129: 2.1 | G129: V25. Inadequate user education, lack of awareness and training particularly in security and privacy; lack of context awareness | H129: 5 | I129: T6. Malicious physical attacks (theft, vandalism, misuse, etc.) | J129: 4 | O129: FALSE
B130: R1, R2 | C130: R.A8.V25.T3. | D130: 10 | E130: A8. Smart home objects / appliances | F130: 2.1 | G130: V25. Inadequate user education, lack of awareness and training particularly in security and privacy; lack of context awareness | H130: 5 | I130: T3. Intentional misuse, unauthorised disclosure, modification or destruction of individual’s data | J130: 5 | O130: FALSE
B131: R1, R2 | C131: R.A8.V25.T2. | D131: 9 | E131: A8. Smart home objects / appliances | F131: 2.1 | G131: V25. Inadequate user education, lack of awareness and training particularly in security and privacy; lack of context awareness | H131: 5 | I131: T2. Identity theft | J131: 4 | O131: FALSE
B132: R1, R2 | C132: R.A8.V25.T1. | D132: 9 | E132: A8. Smart home objects / appliances | F132: 2.1 | G132: V25. Inadequate user education, lack of awareness and training particularly in security and privacy; lack of context awareness | H132: 5 | I132: T1. Accidental loss of device | J132: 4 | O132: FALSE
B133: R1 | C133: R.A8.V21.T7. | D133: 5 | E133: A8. Smart home objects / appliances | F133: 2 | G133: V21. Reliance on legacy, un-patched systems or integration mistakes | H133: 3 | I133: T7. Malicious (logical) attacks on devices and systems | J133: 2 | O133: =IF(R133=1,P133+W133-1,IF(R133=2,P133+W133,IF(R133=3,P133+W133+1,IF(R133=4,P133+W133+2,IF(R133=5,P133+W133+3))))) -> FALSE
B134: R1 | C134: R.A8.V21.T5. | D134: 5 | E134: A8. Smart home objects / appliances | F134: 2 | G134: V21. Reliance on legacy, un-patched systems or integration mistakes | H134: 3 | I134: T5. Intermittent or no connectivity | J134: 2 | O134: FALSE
B135: R1 | C135: R.A8.V21.T3. | D135: 8 | E135: A8. Smart home objects / appliances | F135: 2 | G135: V21. Reliance on legacy, un-patched systems or integration mistakes | H135: 3 | I135: T3. Intentional misuse, unauthorised disclosure, modification or destruction of individual’s data | J135: 5 | O135: FALSE
B136: R1 | C136: R.A8.V20.T18. | D136: 9 | E136: A8. Smart home objects / appliances | F136: 2 | G136: V20. Increase of (unprotected) data storage capacity in smart-devices | H136: 5 | I136: T18. Monitoring and surveillance | J136: 4 | O136: FALSE
B137: R1 | C137: R.A8.V20.T17. | D137: 10 | E137: A8. Smart home objects / appliances | F137: 2 | G137: V20. Increase of (unprotected) data storage capacity in smart-devices | H137: 5 | I137: T17. Data mining and profiling (large-scale, excessive and/or inappropriate) | J137: 5 | O137: FALSE
B138: R1 | C138: R.A8.V20.T14. | D138: 9 | E138: A8. Smart home objects / appliances | F138: 2.1 | G138: V20. Increase of (unprotected) data storage capacity in smart-devices | H138: 5 | I138: T14. Individual being negligent, careless, making mistakes; e.g. does not follow procedures appropriately, e.g. clicks through | J138: 4 | O138: FALSE
B139: R1 | C139: R.A8.V20.T7. | D139: 7 | E139: A8. Smart home objects / appliances | F139: 2.1 | G139: V20. Increase of (unprotected) data storage capacity in smart-devices | H139: 5 | I139: T7. Malicious (logical) attacks on devices and systems | J139: 2 | O139: FALSE
B140: R1 | C140: R.A8.V20.T4. | D140: 10 | E140: A8. Smart home objects / appliances | F140: 2.1 | G140: V20. Increase of (unprotected) data storage capacity in smart-devices | H140: 5 | I140: T4. Unintentional misuse, unauthorised disclosure, modification or destruction of individual’s data | J140: 5 | O140: FALSE
B141: R1 | C141: R.A8.V20.T3. | D141: 10 | E141: A8. Smart home objects / appliances | F141: 2.1 | G141: V20. Increase of (unprotected) data storage capacity in smart-devices | H141: 5 | I141: T3. Intentional misuse, unauthorised disclosure, modification or destruction of individual’s data | J141: 5 | O141: FALSE
B142: R1 | C142: R.A8.V16.T18. | D142: 9 | E142: A8. Smart home objects / appliances | F142: 2 | G142: V16. Lack of secure transmission and storage of data; also includes lack of (usable) transmission control (who gets the data) | H142: 5 | I142: T18. Monitoring and surveillance | J142: 4 | O142: FALSE
B143: R1 | C143: R.A8.V16.T17. | D143: 10 | E143: A8. Smart home objects / appliances | F143: 2 | G143: V16. Lack of secure transmission and storage of data; also includes lack of (usable) transmission control (who gets the data) | H143: 5 | I143: T17. Data mining and profiling (large-scale, excessive and/or inappropriate) | J143: 5 | O143: FALSE
B144: R1 | C144: R.A8.V16.T14. | D144: 9 | E144: A8. Smart home objects / appliances | F144: 2.1 | G144: V16. Lack of secure transmission and storage of data; also includes lack of (usable) transmission control (who gets the data) | H144: 5 | I144: T14. Individual being negligent, careless, making mistakes; e.g. does not follow procedures appropriately, e.g. clicks through | J144: 4 | O144: FALSE
B145: R1 | C145: R.A8.V16.T8. | D145: 8 | E145: A8. Smart home objects / appliances | F145: 2.1 | G145: V16. Lack of secure transmission and storage of data; also includes lack of (usable) transmission control (who gets the data) | H145: 5 | I145: T8. Overhearing/recording logging/blogging activity | J145: 3 | O145: FALSE
B146: R1 | C146: R.A8.V16.T7. | D146: 7 | E146: A8. Smart home objects / appliances | F146: 2.1 | G146: V16. Lack of secure transmission and storage of data; also includes lack of (usable) transmission control (who gets the data) | H146: 5 | I146: T7. Malicious (logical) attacks on devices and systems | J146: 2 | O146: FALSE
B147: R1, R9 | C147: R.A8.V16.T3. | D147: 10 | E147: A8. Smart home objects / appliances | F147: 2.1 | G147: V16. Lack of secure transmission and storage of data; also includes lack of (usable) transmission control (who gets the data) | H147: 5 | I147: T3. Intentional misuse, unauthorised disclosure, modification or destruction of individual’s data | J147: 5 | O147: FALSE
B148: R1 | C148: R.A8.V13.T18. | D148: 7 | E148: A8. Smart home objects / appliances | F148: 2 | G148: V13. Lack of revocation/correction/deletion mechanisms | H148: 3 | I148: T18. Monitoring and surveillance | J148: 4 | O148: FALSE
B149: R1 | C149: R.A8.V13.T17. | D149: 8 | E149: A8. Smart home objects / appliances | F149: 2 | G149: V13. Lack of revocation/correction/deletion mechanisms | H149: 3 | I149: T17. Data mining and profiling (large-scale, excessive and/or inappropriate) | J149: 5 | O149: FALSE
B150: R1 | C150: R.A8.V13.T4. | D150: 8 | E150: A8. Smart home objects / appliances | F150: 2.1 | G150: V13. Lack of revocation/correction/deletion mechanisms | H150: 3 | I150: T4. Unintentional misuse, unauthorised disclosure, modification or destruction of individual’s data | J150: 5 | O150: FALSE
B151: R1 | C151: R.A8.V11.T18. | D151: 8 | E151: A8. Smart home objects / appliances | F151: 2 | G151: V11. PC and home infrastructure vulnerabilities | H151: 4 | I151: T18. Monitoring and surveillance | J151: 4 | O151: FALSE
B152: R1 | C152: R.A8.V11.T7. | D152: 6 | E152: A8. Smart home objects / appliances | F152: 2.1 | G152: V11. PC and home infrastructure vulnerabilities | H152: 4 | I152: T7. Malicious (logical) attacks on devices and systems | J152: 2 | O152: FALSE
B153: R1, R7 | C153: R.A8.V11.T6. | D153: 8 | E153: A8. Smart home objects / appliances | F153: 2.1 | G153: V11. PC and home infrastructure vulnerabilities | H153: 4 | I153: T6. Malicious physical attacks (theft, vandalism, misuse, etc.) | J153: 4 | O153: FALSE
B154: R1 | C154: R.A8.V11.T5. | D154: 6 | E154: A8. Smart home objects / appliances | F154: 2 | G154: V11. PC and home infrastructure vulnerabilities | H154: 4 | I154: T5. Intermittent or no connectivity | J154: 2 | O154: FALSE
B155: R1 | C155: R.A8.V11.T4. | D155: 9 | E155: A8. Smart home objects / appliances | F155: 2 | G155: V11. PC and home infrastructure vulnerabilities | H155: 4 | I155: T4. Unintentional misuse, unauthorised disclosure, modification or destruction of individual’s data | J155: 5 | O155: FALSE
B156: R1 | C156: R.A8.V11.T3. | D156: 9 | E156: A8. Smart home objects / appliances | F156: 2.1 | G156: V11. PC and home infrastructure vulnerabilities | H156: 4 | I156: T3. Intentional misuse, unauthorised disclosure, modification or destruction of individual’s data | J156: 5 | O156: FALSE
B157: R1 | C157: R.A8.V9.T9. | D157: 5 | E157: A8. Smart home objects / appliances | F157: 2.1 | G157: V9. Lack of third party system reviews and software integrity certification | H157: 3 | I157: T9. Exploring new ‘vulnerabilities’ in the new applications | J157: 2 | O157: FALSE
B158: R1 | C158: R.A8.V9.T7. | D158: 5 | E158: A8. Smart home objects / appliances | F158: 2.1 | G158: V9. Lack of third party system reviews and software integrity certification | H158: 3 | I158: T7. Malicious (logical) attacks on devices and systems | J158: 2 | O158: FALSE
B159: R1, R7 | C159: R.A8.V9.T5. | D159: 5 | E159: A8. Smart home objects / appliances | F159: 2 | G159: V9. Lack of third party system reviews and software integrity certification | H159: 3 | I159: T5. Intermittent or no connectivity | J159: 2 | O159: FALSE
B160: R1 | C160: R.A8.V9.T4. | D160: 8 | E160: A8. Smart home objects / appliances | F160: 2 | G160: V9. Lack of third party system reviews and software integrity certification | H160: 3 | I160: T4. Unintentional misuse, unauthorised disclosure, modification or destruction of individual’s data | J160: 5 | O160: FALSE
B161: R1 | C161: R.A8.V9.T3. | D161: 8 | E161: A8. Smart home objects / appliances | F161: 2.1 | G161: V9. Lack of third party system reviews and software integrity certification | H161: 3 | I161: T3. Intentional misuse, unauthorised disclosure, modification or destruction of individual’s data | J161: 5 | O161: FALSE
B162: R1 | C162: R.A8.V8.T18. | D162: 9 | E162: A8. Smart home objects / appliances | F162: 2 | G162: V8. Lack of or inadequate user identification, authentication and access controls; e.g. use of new devices as authentication tools | H162: 5 | I162: T18. Monitoring and surveillance | J162: 4 | O162: FALSE
B163: R1, R7 | C163: R.A8.V8.T14. | D163: 9 | E163: A8. Smart home objects / appliances | F163: 2.1 | G163: V8. Lack of or inadequate user identification, authentication and access controls; e.g. use of new devices as authentication tools | H163: 5 | I163: T14. Individual being negligent, careless, making mistakes; e.g. does not follow procedures appropriately, e.g. clicks through | J163: 4 | O163: FALSE
B164: R1 | C164: R.A8.V8.T4. | D164: 10 | E164: A8. Smart home objects / appliances | F164: 2.1 | G164: V8. Lack of or inadequate user identification, authentication and access controls; e.g. use of new devices as authentication tools | H164: 5 | I164: T4. Unintentional misuse, unauthorised disclosure, modification or destruction of individual’s data | J164: 5 | O164: FALSE
B165: R1 | C165: R.A8.V5.T8. | D165: 8 | E165: A8. Smart home objects / appliances | F165: 2.1 | G165: V5. Inherent features of smart devices (size, material etc.): easy to lose or steal | H165: 5 | I165: T8. Overhearing/recording logging/blogging activity | J165: 3 | O165: FALSE
B166: R1 | C166: R.A8.V3.T8. | D166: 6 | E166: A8. Smart home objects / appliances | F166: 2.1 | G166: V3. Inadequate privacy/security interfaces (poor interface design) | H166: 3 | I166: T8. Overhearing/recording logging/blogging activity | J166: 3 | O166: FALSE
B167: R1, R7 | C167: R.A8.V3.T4. | D167: 8 | E167: A8. Smart home objects / appliances | F167: 2.1 | G167: V3. Inadequate privacy/security interfaces (poor interface design) | H167: 3 | I167: T4. Unintentional misuse, unauthorised disclosure, modification or destruction of individual’s data | J167: 5 | O167: FALSE
B168: R1, R4 | C168: R.A8.V2.T8. | D168: 5 | E168: A8. Smart home objects / appliances | F168: 2 | G168: V2. Inadequate policy framework | H168: 2 | I168: T8. Overhearing/recording logging/blogging activity | J168: 3 | O168: FALSE
B169: R1 | C169: R.A8.V2.T3. | D169: 7 | E169: A8. Smart home objects / appliances | F169: 2 | G169: V2. Inadequate policy framework | H169: 2 | I169: T3. Intentional misuse, unauthorised disclosure, modification or destruction of individual’s data | J169: 5 | O169: FALSE
B170: R1 | C170: R.A8.V1.T9. | D170: 5 | E170: A8. Smart home objects / appliances | F170: 2.1 | G170: V1. Flawed/insufficient design, implementation and/or capacity of devices and systems. Includes software bugs and design flaws. | H170: 3 | I170: T9. Exploring new ‘vulnerabilities’ in the new applications | J170: 2 | O170: FALSE
C171: R.A8.V1.T5. | D171: 5 | E171: A8. Smart home objects / appliances | F171: 2 | G171: V1. Flawed/insufficient design, implementation and/or capacity of devices and systems. Includes software bugs and design flaws. | H171: 3 | I171: T5. Intermittent or no connectivity | J171: 2 | O171: FALSE
B172: R1 | C172: R.A8.V1.T3. | D172: 8 | E172: A8. Smart home objects / appliances | F172: 2.1 | G172: V1. Flawed/insufficient design, implementation and/or capacity of devices and systems. Includes software bugs and design flaws. | H172: 3 | I172: T3. Intentional misuse, unauthorised disclosure, modification or destruction of individual’s data | J172: 5 | O172: FALSE
B173: R4, R6, R12 | C173: R.A6.V28.T11. | D173: 7 | E173: A6. Life-logging services | F173: 3 | G173: V28. Data linkability / lifelogging data can be aggregated with other data | H173: 3 | I173: T11. Constrain consumer choices | J173: 3 | O173: FALSE
B174: R10 | C174: R.A6.V17.T9. | D174: 7 | E174: A6. Life-logging services | F174: 3 | G174: V17. Lack of mechanisms to validate reputation or trustworthiness of service provider | H174: 4 | I174: T9. Exploring new ‘vulnerabilities’ in the new applications | J174: 2 | O174: FALSE
B175: R1, R8, R10 | C175: R.A6.V16.T18. | D175: 10 | E175: A6. Life-logging services | F175: 3 | G175: V16. Lack of secure transmission and storage of data; also includes lack of (usable) transmission control (who gets the data) | H175: 5 | I175: T18. Monitoring and surveillance | J175: 4 | O175: FALSE
B176: R1, R8, R10 | C176: R.A6.V16.T17. | D176: 11 | E176: A6. Life-logging services | F176: 3 | G176: V16. Lack of secure transmission and storage of data; also includes lack of (usable) transmission control (who gets the data) | H176: 5 | I176: T17. Data mining and profiling (large-scale, excessive and/or inappropriate) | J176: 5 | O176: FALSE
B177: R1, R4, R10 | C177: R.A6.V15.T15. | D177: 7 | E177: A6. Life-logging services | F177: 3 | G177: V15. Lack of (usable) logging controls/policies/ reminders. E.g. capturing some embarrassing scene of someone else or yourself | H177: 3 | I177: T15. Increased need for attention / social exposure | J177: 3 | O177: FALSE
B178: R1, R8, R10 | C178: R.A6.V15.T13. | D178: 8 | E178: A6. Life-logging services | F178: 3 | G178: V15. Lack of (usable) logging controls/policies/ reminders. E.g. capturing some embarrassing scene of someone else or yourself | H178: 3 | I178: T13. Peer-pressure and social pressure to constantly share data and conform; fear of violent response / or ridicule from peers, friends etc; | J178: 4 | O178: FALSE
B179: R1, R8, R10 | C179: R.A6.V14.T12. | D179: 7 | E179: A6. Life-logging services | F179: 3 | G179: V14. Lack of (usable) privacy controls, e.g., overly permissive defaults, too coarse granularity, ... | H179: 2 | I179: T12. Vested interests | J179: 4 | O179: FALSE
B180: R1, R8, R10 | C180: R.A6.V8.T18. | D180: 10 | E180: A6. Life-logging services | F180: 3 | G180: V8. Lack of or inadequate user identification, authentication and access controls; e.g. use of new devices as authentication tools | H180: 5 | I180: T18. Monitoring and surveillance | J180: 4 | O180: FALSE
B181: R1, R4, R10 | C181: =CONCATENATE("R.",LEFT(E181,SEARCH(".",E181,1)),LEFT(G181,SEARCH(".",G181,1)),LEFT(I181,SEARCH(".",I181,1))) -> R.A6.V8.T4. | D181: 11 | E181: A6. Life-logging services | F181: 3 | G181: V8. Lack of or inadequate user identification, authentication and access controls; e.g. use of new devices as authentication tools | H181: 5 | I181: T4. Unintentional misuse, unauthorised disclosure, modification or destruction of individual’s data | J181: 5 | O181: FALSE
B182: R1, R4, R10 | C182: R.A6.V7.T8. | D182: 9 | E182: A6. Life-logging services | F182: 3 | G182: V7. Lack of interoperability between devices/ services/ technologies and/or systems | H182: 5 | I182: T8. Overhearing/recording logging/blogging activity | J182: 3 | O182: FALSE
B183: R1, R5, R12 | C183: R.A6.V7.T5. | D183: 8 | E183: A6. Life-logging services | F183: 3 | G183: V7. Lack of interoperability between devices/ services/ technologies and/or systems | H183: 5 | I183: T5. Intermittent or no connectivity | J183: 2 | O183: FALSE
B184: R1, R5, R12 | C184: R.A6.V7.T4. | D184: 11 | E184: A6. Life-logging services | F184: 3 | G184: V7. Lack of interoperability between devices/ services/ technologies and/or systems | H184: 5 | I184: T4. Unintentional misuse, unauthorised disclosure, modification or destruction of individual’s data | J184: 5 | O184: FALSE
B185: R1, R4, R5, R12 | C185: R.A6.V4.T12. | D185: 9 | E185: A6. Life-logging services | F185: 3 | G185: V4. Increase in centralization of data storage and processing and over-reliance on these centralised facilities | H185: 4 | I185: T12. Vested interests | J185: 4 | O185: FALSE
B186: R1, R4, R5, R6, R7, R12 | C186: R.A6.V4.T11. | D186: 8 | E186: A6. Life-logging services | F186: 3 | G186: V4. Increase in centralization of data storage and processing and over-reliance on these centralised facilities | H186: 4 | I186: T11. Constrain consumer choices | J186: 3 | O186: FALSE
B187: R1, R4, R12 | C187: R.A6.V1.T5. | D187: 6 | E187: A6. Life-logging services | F187: 3 | G187: V1. Flawed/insufficient design, implementation and/or capacity of devices and systems. Includes software bugs and design flaws. | H187: 3 | I187: T5. Intermittent or no connectivity | J187: 2 | O187: FALSE
B188: R1, R4, R12 | C188: R.A15.V28.T12. | D188: 8 | E188: A15. Databases of aggregated data | F188: 3.2 | G188: V28. Data linkability / lifelogging data can be aggregated with other data | H188: 3 | I188: T12. Vested interests | J188: 4 | O188: FALSE
B189: R1, R2 | C189: R.A15.V23.T12. | D189: 9 | E189: A15. Databases of aggregated data | F189: 3.2 | G189: V23. Lack of transparency and “social translucency”, i.e., audit logs (who accessed my profile/data) | H189: 4 | I189: T12. Vested interests | J189: 4 | O189: FALSE
B190: R1, R4 | C190: R.A15.V23.T11. | D190: 8 | E190: A15. Databases of aggregated data | F190: 3 | G190: V23. Lack of transparency and “social translucency”, i.e., audit logs (who accessed my profile/data) | H190: 4 | I190: T11. Constrain consumer choices | J190: 3 | O190: FALSE
B191: R1, R4 | C191: R.A15.V16.T18. | D191: 10 | E191: A15. Databases of aggregated data | F191: 3.2 | G191: V16. Lack of secure transmission and storage of data; also includes lack of (usable) transmission control (who gets the data) | H191: 5 | I191: T18. Monitoring and surveillance | J191: 4 | O191: FALSE
B192: R1, R4 | C192: R.A15.V16.T17. | D192: 11 | E192: A15. Databases of aggregated data | F192: 3.2 | G192: V16. Lack of secure transmission and storage of data; also includes lack of (usable) transmission control (who gets the data) | H192: 5 | I192: T17. Data mining and profiling (large-scale, excessive and/or inappropriate) | J192: 5 | O192: FALSE
B193: R1, R4 | C193: R.A15.V16.T3. | D193: 11 | E193: A15. Databases of aggregated data | F193: 3.2 | G193: V16. Lack of secure transmission and storage of data; also includes lack of (usable) transmission control (who gets the data) | H193: 5 | I193: T3. Intentional misuse, unauthorised disclosure, modification or destruction of individual’s data | J193: 5 | O193: FALSE
B194: R1, R4 | C194: R.A15.V8.T18. | D194: 10 | E194: A15. Databases of aggregated data | F194: 3.2 | G194: V8. Lack of or inadequate user identification, authentication and access controls; e.g. use of new devices as authentication tools | H194: 5 | I194: T18. Monitoring and surveillance | J194: 4 | O194: FALSE
B195: R1, R4 | C195: R.A15.V8.T4. | D195: 11 | E195: A15. Databases of aggregated data | F195: 3.2 | G195: V8. Lack of or inadequate user identification, authentication and access controls; e.g. use of new devices as authentication tools | H195: 5 | I195: T4. Unintentional misuse, unauthorised disclosure, modification or destruction of individual’s data | J195: 5 | O195: FALSE
B196: R1, R4 | C196: R.A15.V8.T3. | D196: 11 | E196: A15. Databases of aggregated data | F196: 3.2 | G196: V8. Lack of or inadequate user identification, authentication and access controls; e.g. use of new devices as authentication tools | H196: 5 | I196: T3. Intentional misuse, unauthorised disclosure, modification or destruction of individual’s data | J196: 5 | O196: FALSE
B197: R1, R4 | C197: R.A15.V7.T12. | D197: 10 | E197: A15. Databases of aggregated data | F197: 3.2 | G197: V7. Lack of interoperability between devices/ services/ technologies and/or systems | H197: 5 | I197: T12. Vested interests | J197: 4 | O197: =IF(R197=1,P197+W197-1,IF(R197=2,P197+W197,IF(R197=3,P197+W197+1,IF(R197=4,P197+W197+2,IF(R197=5,P197+W197+3))))) -> FALSE
B198: R1, R4, R10 | C198: R.A15.V7.T8. | D198: 9 | E198: A15. Databases of aggregated data | F198: 3.2 | G198: V7. Lack of interoperability between devices/ services/ technologies and/or systems | H198: 5 | I198: T8. Overhearing/recording logging/blogging activity | J198: 3 | O198: FALSE
B199: R1, R4 | C199: R.A15.V7.T5. | D199: 8 | E199: A15. Databases of aggregated data | F199: 3 | G199: V7. Lack of interoperability between devices/ services/ technologies and/or systems | H199: 5 | I199: T5. Intermittent or no connectivity | J199: 2 | O199: FALSE
B200: R1, R4 | C200: R.A15.V7.T4. | D200: 11 | E200: A15. Databases of aggregated data | F200: 3.2 | G200: V7. Lack of interoperability between devices/ services/ technologies and/or systems | H200: 5 | I200: T4. Unintentional misuse, unauthorised disclosure, modification or destruction of individual’s data | J200: 5 | O200: FALSE
B201: R1, R4 | C201: R.A15.V6.T12. | D201: 8 | E201: A15. Databases of aggregated data | F201: 3.2 | G201: V6. Lack of appropriate, common or harmonized legislation in EU Member States | H201: 3 | I201: T12. Vested interests | J201: 4 | O201: FALSE
B202: R1, R4, R6, R10 | C202: R.A15.V6.T11. | D202: 7 | E202: A15. Databases of aggregated data | F202: 3 | G202: V6. Lack of appropriate, common or harmonized legislation in EU Member States | H202: 3 | I202: T11. Constrain consumer choices | J202: 3 | O202: FALSE
... 1055 more rows

Sheet R1
B3: Risk-ID | C3: Risk Value | D3: Asset Description | E3: Asset Value | F3: Vulnerability Description | G3: Vulnerability Value | H3: Threat Description | I3: Threat Value | K3: Values | L3: Counts | M3: Weighted Average
B4: R.A1.V25.T14. | C4: 10 | D4: A1. Actors’ digital presence not including social or professional reputation | E4: 3 | F4: V25. Inadequate user education, lack of awareness and training particularly in security and privacy; lack of context awareness | G4: 5 | H4: T14. Individual being negligent, careless, making mistakes; e.g. does not follow procedures appropriately, e.g. clicks through | I4: 4 | K4: 1 | L4: =COUNTIF($C$4:$C$644,K4) -> 0 | M4: =SUMPRODUCT(K4:K16,L4:L16)/L17 -> 8.778471139
B5: R.A1.V25.T8. | C5: 9 | D5: A1. Actors’ digital presence not including social or professional reputation | E5: 3 | F5: V25. Inadequate user education, lack of awareness and training particularly in security and privacy; lack of context awareness | G5: 5 | H5: T8. Overhearing/recording logging/blogging activity | I5: 3 | K5: 2 | L5: 0
B6: R.A1.V25.T7. | C6: 8 | D6: A1. Actors’ digital presence not including social or professional reputation | E6: 3 | F6: V25. Inadequate user education, lack of awareness and training particularly in security and privacy; lack of context awareness | G6: 5 | H6: T7. Malicious (logical) attacks on devices and systems | I6: 2 | K6: 3 | L6: 0
B7: R.A1.V25.T6. | C7: 10 | D7: A1. Actors’ digital presence not including social or professional reputation | E7: 3 | F7: V25. Inadequate user education, lack of awareness and training particularly in security and privacy; lack of context awareness | G7: 5 | H7: T6. Malicious physical attacks (theft, vandalism, misuse, etc.) | I7: 4 | K7: 4 | L7: 0
B8: R.A1.V25.T3. | C8: 11 | D8: A1. Actors’ digital presence not including social or professional reputation | E8: 3 | F8: V25. Inadequate user education, lack of awareness and training particularly in security and privacy; lack of context awareness | G8: 5 | H8: T3. Intentional misuse, unauthorised disclosure, modification or destruction of individual’s data | I8: 5 | K8: 5 | L8: 11
B9: R.A1.V25.T2. | C9: 10 | D9: A1. Actors’ digital presence not including social or professional reputation | E9: 3 | F9: V25. Inadequate user education, lack of awareness and training particularly in security and privacy; lack of context awareness | G9: 5 | H9: T2. Identity theft | I9: 4 | K9: 6 | L9: 39
B10: R.A1.V25.T1. | C10: 10 | D10: A1. Actors’ digital presence not including social or professional reputation | E10: 3 | F10: V25. Inadequate user education, lack of awareness and training particularly in security and privacy; lack of context awareness | G10: 5 | H10: T1. Accidental loss of device | I10: 4 | K10: 7 | L10: 96
B11: R.A1.V12.T9. | C11: 8 | D11: A1. Actors’ digital presence not including social or professional reputation | E11: 3 | F11: V12. Smart phone vulnerabilities | G11: 5 | H11: T9. Exploring new ‘vulnerabilities’ in the new applications | I11: 2 | K11: 8 | L11: 124
B12: R.A1.V12.T7. | C12: 8 | D12: A1. Actors’ digital presence not including social or professional reputation | E12: 3 | F12: V12. Smart phone vulnerabilities | G12: 5 | H12: T7. Malicious (logical) attacks on devices and systems | I12: 2 | K12: 9 | L12: 142
B13: R.A1.V12.T6. | C13: 10 | D13: A1. Actors’ digital presence not including social or professional reputation | E13: 3 | F13: V12. Smart phone vulnerabilities | G13: 5 | H13: T6. Malicious physical attacks (theft, vandalism, misuse, etc.) | I13: 4 | K13: 10 | L13: 138
B14: R.A1.V12.T3. | C14: 11 | D14: A1. Actors’ digital presence not including social or professional reputation | E14: 3 | F14: V12. Smart phone vulnerabilities | G14: 5 | H14: T3. Intentional misuse, unauthorised disclosure, modification or destruction of individual’s data | I14: 5 | K14: 11 | L14: 76
B15: R.A1.V12.T1. | C15: 10 | D15: A1. Actors’ digital presence not including social or professional reputation | E15: 3 | F15: V12. Smart phone vulnerabilities | G15: 5 | H15: T1. Accidental loss of device | I15: 4 | K15: 12 | L15: 15
B16: R.A1.V11.T7. | C16: 7 | D16: A1. Actors’ digital presence not including social or professional reputation | E16: 3 | F16: V11. PC and home infrastructure vulnerabilities | G16: 4 | H16: T7. Malicious (logical) attacks on devices and systems | I16: 2 | K16: 13 | L16: 0
B17: R.A1.V11.T6. | C17: 9 | D17: A1. Actors’ digital presence not including social or professional reputation | E17: 3 | F17: V11. PC and home infrastructure vulnerabilities | G17: 4 | H17: T6. Malicious physical attacks (theft, vandalism, misuse, etc.) | I17: 4 | L17: =SUM(L4:L16) -> 641
B18: R.A1.V11.T3. | C18: 10 | D18: A1. Actors’ digital presence not including social or professional reputation | E18: 3 | F18: V11. PC and home infrastructure vulnerabilities | G18: 4 | H18: T3. Intentional misuse, unauthorised disclosure, modification or destruction of individual’s data | I18: 5
B19: R.A1.V10.T3. | C19: 10 | D19: A1. Actors’ digital presence not including social or professional reputation | E19: 3 | F19: V10. Over reliance and excessive dependency on electronic devices and systems | G19: 4 | H19: T3. Intentional misuse, unauthorised disclosure, modification or destruction of individual’s data | I19: 5
B20: R.A1.V10.T1. | C20: 9 | D20: A1. Actors’ digital presence not including social or professional reputation | E20: 3 | F20: V10. Over reliance and excessive dependency on electronic devices and systems | G20: 4 | H20: T1. Accidental loss of device | I20: 4
B21: R.A1.V8.T14. | C21: 10 | D21: A1. Actors’ digital presence not including social or professional reputation | E21: 3 | F21: V8. Lack of or inadequate user identification, authentication and access controls; e.g. use of new devices as authentication tools | G21: 5 | H21: T14. Individual being negligent, careless, making mistakes; e.g. does not follow procedures appropriately, e.g. clicks through | I21: 4
B22: R.A1.V8.T3. | C22: 11 | D22: A1. Actors’ digital presence not including social or professional reputation | E22: 3 | F22: V8. Lack of or inadequate user identification, authentication and access controls; e.g. use of new devices as authentication tools | G22: 5 | H22: T3. Intentional misuse, unauthorised disclosure, modification or destruction of individual’s data | I22: 5
B23: R.A1.V8.T2. | C23: 10 | D23: A1. Actors’ digital presence not including social or professional reputation | E23: 3 | F23: V8. Lack of or inadequate user identification, authentication and access controls; e.g. use of new devices as authentication tools | G23: 5 | H23: T2. Identity theft | I23: 4
B24: R.A1.V5.T14. | C24: 10 | D24: A1. Actors’ digital presence not including social or professional reputation | E24: 3 | F24: V5. Inherent features of smart devices (size, material etc.): easy to lose or steal | G24: 5 | H24: T14. Individual being negligent, careless, making mistakes; e.g. does not follow procedures appropriately, e.g. clicks through | I24: 4
B25: R.A1.V5.T8. | C25: 9 | D25: A1. Actors’ digital presence not including social or professional reputation | E25: 3 | F25: V5. Inherent features of smart devices (size, material etc.): easy to lose or steal | G25: 5 | H25: T8. Overhearing/recording logging/blogging activity | I25: 3
B26: R.A1.V5.T6. | C26: 10 | D26: A1. Actors’ digital presence not including social or professional reputation | E26: 3 | F26: V5. Inherent features of smart devices (size, material etc.): easy to lose or steal | G26: 5 | H26: T6. Malicious physical attacks (theft, vandalism, misuse, etc.) | I26: 4
B27: R.A1.V5.T3. | C27: 11 | D27: A1. Actors’ digital presence not including social or professional reputation | E27: 3 | F27: V5. Inherent features of smart devices (size, material etc.): easy to lose or steal | G27: 5 | H27: T3. Intentional misuse, unauthorised disclosure, modification or destruction of individual’s data | I27: 5
B28: R.A1.V5.T2. | C28: 10 | D28: A1. Actors’ digital presence not including social or professional reputation | E28: 3 | F28: V5. Inherent features of smart devices (size, material etc.): easy to lose or steal | G28: 5 | H28: T2. Identity theft | I28: 4
B29: R.A1.V5.T1. | C29: 10 | D29: A1. Actors’ digital presence not including social or professional reputation | E29: 3 | F29: V5. Inherent features of smart devices (size, material etc.): easy to lose or steal | G29: 5 | H29: T1. Accidental loss of device | I29: 4
B30: R.A1.V3.T14. | C30: 8 | D30: A1. Actors’ digital presence not including social or professional reputation | E30: 3 | F30: V3. Inadequate privacy/security interfaces (poor interface design) | G30: 3 | H30: T14. Individual being negligent, careless, making mistakes; e.g. does not follow procedures appropriately, e.g. clicks through | I30: 4
B31: R.A1.V3.T8. | C31: 7 | D31: A1. Actors’ digital presence not including social or professional reputation | E31: 3 | F31: V3. Inadequate privacy/security interfaces (poor interface design) | G31: 3 | H31: T8. Overhearing/recording logging/blogging activity | I31: 3
B32: R.A1.V3.T3. | C32: 9 | D32: A1. Actors’ digital presence not including social or professional reputation | E32: 3 | F32: V3. Inadequate privacy/security interfaces (poor interface design) | G32: 3 | H32: T3. Intentional misuse, unauthorised disclosure, modification or destruction of individual’s data | I32: 5
B33: R.A1.V3.T2. | C33: 8 | D33: A1. Actors’ digital presence not including social or professional reputation | E33: 3 | F33: V3. Inadequate privacy/security interfaces (poor interface design) | G33: 3 | H33: T2. Identity theft | I33: 4
B34: R.A2.V25.T14. | C34: 11 | D34: A2. Social reputation | E34: 4 | F34: V25. Inadequate user education, lack of awareness and training particularly in security and privacy; lack of context awareness | G34: 5 | H34: T14. Individual being negligent, careless, making mistakes; e.g. does not follow procedures appropriately, e.g. clicks through | I34: 4
B35: R.A2.V25.T8. | C35: 10 | D35: A2. Social reputation | E35: 4 | F35: V25. Inadequate user education, lack of awareness and training particularly in security and privacy; lack of context awareness | G35: 5 | H35: T8. Overhearing/recording logging/blogging activity | I35: 3
B36: R.A2.V25.T7. | C36: 9 | D36: A2. Social reputation | E36: 4 | F36: V25. Inadequate user education, lack of awareness and training particularly in security and privacy; lack of context awareness | G36: 5 | H36: T7. Malicious (logical) attacks on devices and systems | I36: 2
B37: R.A2.V25.T6. | C37: 11 | D37: A2. Social reputation | E37: 4 | F37: V25. Inadequate user education, lack of awareness and training particularly in security and privacy; lack of context awareness | G37: 5 | H37: T6. Malicious physical attacks (theft, vandalism, misuse, etc.) | I37: 4
B38: R.A2.V25.T3. | C38: 12 | D38: A2. Social reputation | E38: 4 | F38: V25. Inadequate user education, lack of awareness and training particularly in security and privacy; lack of context awareness | G38: 5 | H38: T3. Intentional misuse, unauthorised disclosure, modification or destruction of individual’s data | I38: 5
B39: R.A2.V25.T2. | C39: 11 | D39: A2. Social reputation | E39: 4 | F39: V25. Inadequate user education, lack of awareness and training particularly in security and privacy; lack of context awareness | G39: 5 | H39: T2. Identity theft | I39: 4
B40: R.A2.V25.T1. | C40: 11 | D40: A2. Social reputation | E40: 4 | F40: V25. Inadequate user education, lack of awareness and training particularly in security and privacy; lack of context awareness | G40: 5 | H40: T1. Accidental loss of device | I40: 4
B41: R.A2.V12.T9. | C41: 9 | D41: A2. Social reputation | E41: 4 | F41: V12. Smart phone vulnerabilities | G41: 5 | H41: T9. Exploring new ‘vulnerabilities’ in the new applications | I41: 2
B42: R.A2.V12.T7. | C42: 9 | D42: A2. Social reputation | E42: 4 | F42: V12. Smart phone vulnerabilities | G42: 5 | H42: T7. Malicious (logical) attacks on devices and systems | I42: 2
B43: R.A2.V12.T6. | C43: 11 | D43: A2. Social reputation | E43: 4 | F43: V12. Smart phone vulnerabilities | G43: 5 | H43: T6. Malicious physical attacks (theft, vandalism, misuse, etc.) | I43: 4
B44: R.A2.V12.T3. | C44: 12 | D44: A2. Social reputation | E44: 4 | F44: V12. Smart phone vulnerabilities | G44: 5 | H44: T3. Intentional misuse, unauthorised disclosure, modification or destruction of individual’s data | I44: 5
B45: R.A2.V12.T1. | C45: 11 | D45: A2. Social reputation | E45: 4 | F45: V12. Smart phone vulnerabilities | G45: 5 | H45: T1. Accidental loss of device | I45: 4
B46: R.A2.V11.T7. | C46: 8 | D46: A2. Social reputation | E46: 4 | F46: V11. PC and home infrastructure vulnerabilities | G46: 4 | H46: T7. Malicious (logical) attacks on devices and systems | I46: 2
B47: R.A2.V11.T6. | C47: 10 | D47: A2. Social reputation | E47: 4 | F47: V11. PC and home infrastructure vulnerabilities | G47: 4 | H47: T6. Malicious physical attacks (theft, vandalism, misuse, etc.) | I47: 4
B48: R.A2.V11.T3. | C48: 11 | D48: A2. Social reputation | E48: 4 | F48: V11. PC and home infrastructure vulnerabilities | G48: 4 | H48: T3. Intentional misuse, unauthorised disclosure, modification or destruction of individual’s data | I48: 5
B49: R.A2.V10.T3. | C49: 11 | D49: A2. Social reputation | E49: 4 | F49: V10. Over reliance and excessive dependency on electronic devices and systems | G49: 4 | H49: T3. Intentional misuse, unauthorised disclosure, modification or destruction of individual’s data | I49: 5
B50: R.A2.V10.T1. | C50: 10 | D50: A2. Social reputation | E50: 4 | F50: V10. Over reliance and excessive dependency on electronic devices and systems | G50: 4 | H50: T1. Accidental loss of device | I50: 4
B51: R.A2.V8.T14. | C51: 11 | D51: A2. Social reputation | E51: 4 | F51: V8. Lack of or inadequate user identification, authentication and access controls; e.g. use of new devices as authentication tools | G51: 5 | H51: T14. Individual being negligent, careless, making mistakes; e.g. does not follow procedures appropriately, e.g. clicks through | I51: 4
B52: R.A2.V8.T3. | C52: 12 | D52: A2. Social reputation | E52: 4 | F52: V8. Lack of or inadequate user identification, authentication and access controls; e.g. use of new devices as authentication tools | G52: 5 | H52: T3. Intentional misuse, unauthorised disclosure, modification or destruction of individual’s data | I52: 5
B53: R.A2.V8.T2. | C53: 11 | D53: A2. Social reputation | E53: 4 | F53: V8. Lack of or inadequate user identification, authentication and access controls; e.g. use of new devices as authentication tools | G53: 5 | H53: T2. Identity theft | I53: 4
B54: R.A2.V5.T14. | C54: 11 | D54: A2. Social reputation | E54: 4 | F54: V5. Inherent features of smart devices (size, material etc.): easy to lose or steal | G54: 5 | H54: T14. Individual being negligent, careless, making mistakes; e.g. does not follow procedures appropriately, e.g. clicks through | I54: 4
B55: R.A2.V5.T8. | C55: 10 | D55: A2. Social reputation | E55: 4 | F55: V5. Inherent features of smart devices (size, material etc.): easy to lose or steal | G55: 5 | H55: T8. Overhearing/recording logging/blogging activity | I55: 3
B56: R.A2.V5.T6. | C56: 11 | D56: A2. Social reputation | E56: 4 | F56: V5. Inherent features of smart devices (size, material etc.): easy to lose or steal | G56: 5 | H56: T6. Malicious physical attacks (theft, vandalism, misuse, etc.) | I56: 4
B57: R.A2.V5.T3. | C57: 12 | D57: A2. Social reputation | E57: 4 | F57: V5. Inherent features of smart devices (size, material etc.): easy to lose or steal | G57: 5 | H57: T3. Intentional misuse, unauthorised disclosure, modification or destruction of individual’s data | I57: 5
B58: R.A2.V5.T2. | C58: 11 | D58: A2. Social reputation | E58: 4 | F58: V5. Inherent features of smart devices (size, material etc.): easy to lose or steal | G58: 5 | H58: T2. Identity theft | I58: 4
B59: R.A2.V5.T1. | C59: 11 | D59: A2. Social reputation | E59: 4 | F59: V5. Inherent features of smart devices (size, material etc.): easy to lose or steal | G59: 5 | H59: T1. Accidental loss of device | I59: 4
B60: R.A2.V3.T14. | C60: 9 | D60: A2. Social reputation | E60: 4 | F60: V3. Inadequate privacy/security interfaces (poor interface design) | G60: 3 | H60: T14. Individual being negligent, careless, making mistakes; e.g. does not follow procedures appropriately, e.g. clicks through | I60: 4
B61: R.A2.V3.T8. | C61: 8 | D61: A2. Social reputation | E61: 4 | F61: V3. Inadequate privacy/security interfaces (poor interface design) | G61: 3 | H61: T8. Overhearing/recording logging/blogging activity | I61: 3
B62: R.A2.V3.T3. | C62: 10 | D62: A2. Social reputation | E62: 4 | F62: V3. Inadequate privacy/security interfaces (poor interface design) | G62: 3 | H62: T3. Intentional misuse, unauthorised disclosure, modification or destruction of individual’s data | I62: 5
B63: R.A2.V3.T2. | C63: 9 | D63: A2. Social reputation | E63: 4 | F63: V3. Inadequate privacy/security interfaces (poor interface design) | G63: 3 | H63: T2. Identity theft | I63: 4
B64: R.A2.V1.T9. | C64: 7 | D64: A2. Social reputation | E64: 4 | F64: V1. Flawed/insufficient design, implementation and/or capacity of devices and systems. Includes software bugs and design flaws. | G64: 3 | H64: T9. Exploring new ‘vulnerabilities’ in the new applications | I64: 2
B65: R.A2.V1.T3. | C65: 10 | D65: A2. Social reputation | E65: 4 | F65: V1. Flawed/insufficient design, implementation and/or capacity of devices and systems. Includes software bugs and design flaws. | G65: 3 | H65: T3. Intentional misuse, unauthorised disclosure, modification or destruction of individual’s data | I65: 5
B66: R.A3.V25.T14. | C66: 11 | D66: A3. Professional reputation | E66: 4 | F66: V25. Inadequate user education, lack of awareness and training particularly in security and privacy; lack of context awareness | G66: 5 | H66: T14. Individual being negligent, careless, making mistakes; e.g. does not follow procedures appropriately, e.g. clicks through | I66: 4
B67: R.A3.V25.T8. | C67: 10 | D67: A3. Professional reputation | E67: 4 | F67: V25. Inadequate user education, lack of awareness and training particularly in security and privacy; lack of context awareness | G67: 5 | H67: T8. Overhearing/recording logging/blogging activity | I67: 3
B68: R.A3.V25.T7. | C68: 9 | D68: A3. Professional reputation | E68: 4 | F68: V25. Inadequate user education, lack of awareness and training particularly in security and privacy; lack of context awareness | G68: 5 | H68: T7. Malicious (logical) attacks on devices and systems | I68: 2
B69: R.A3.V25.T6. | C69: 11 | D69: A3. Professional reputation | E69: 4 | F69: V25. Inadequate user education, lack of awareness and training particularly in security and privacy; lack of context awareness | G69: 5 | H69: T6. Malicious physical attacks (theft, vandalism, misuse, etc.) | I69: 4
B70: R.A3.V25.T3. | C70: 12 | D70: A3. Professional reputation | E70: 4 | F70: V25. Inadequate user education, lack of awareness and training particularly in security and privacy; lack of context awareness | G70: 5 | H70: T3. Intentional misuse, unauthorised disclosure, modification or destruction of individual’s data | I70: 5
B71: R.A3.V25.T2. | C71: 11 | D71: A3. Professional reputation | E71: 4 | F71: V25. Inadequate user education, lack of awareness and training particularly in security and privacy; lack of context awareness | G71: 5 | H71: T2. Identity theft | I71: 4
B72: R.A3.V25.T1. | C72: 11 | D72: A3. Professional reputation | E72: 4 | F72: V25. Inadequate user education, lack of awareness and training particularly in security and privacy; lack of context awareness | G72: 5 | H72: T1. Accidental loss of device | I72: 4
B73: R.A3.V12.T9. | C73: 9 | D73: A3. Professional reputation | E73: 4 | F73: V12. Smart phone vulnerabilities | G73: 5 | H73: T9. Exploring new ‘vulnerabilities’ in the new applications | I73: 2
B74: R.A3.V12.T7. | C74: 9 | D74: A3. Professional reputation | E74: 4 | F74: V12. Smart phone vulnerabilities | G74: 5 | H74: T7. Malicious (logical) attacks on devices and systems | I74: 2
B75: R.A3.V12.T6. | C75: 11 | D75: A3. Professional reputation | E75: 4 | F75: V12. Smart phone vulnerabilities | G75: 5 | H75: T6. Malicious physical attacks (theft, vandalism, misuse, etc.) | I75: 4
B76: R.A3.V12.T3. | C76: 12 | D76: A3. Professional reputation | E76: 4 | F76: V12. Smart phone vulnerabilities | G76: 5 | H76: T3. Intentional misuse, unauthorised disclosure, modification or destruction of individual’s data | I76: 5
B77: R.A3.V12.T1. | C77: 11 | D77: A3. Professional reputation | E77: 4 | F77: V12. Smart phone vulnerabilities | G77: 5 | H77: T1. Accidental loss of device | I77: 4
B78: R.A3.V11.T7. | C78: 8 | D78: A3. Professional reputation | E78: 4 | F78: V11. PC and home infrastructure vulnerabilities | G78: 4 | H78: T7. Malicious (logical) attacks on devices and systems | I78: 2
B79: R.A3.V11.T6. | C79: 10 | D79: A3. Professional reputation | E79: 4 | F79: V11. PC and home infrastructure vulnerabilities | G79: 4 | H79: T6. Malicious physical attacks (theft, vandalism, misuse, etc.) | I79: 4
B80: R.A3.V11.T3. | C80: 11 | D80: A3. Professional reputation | E80: 4 | F80: V11. PC and home infrastructure vulnerabilities | G80: 4 | H80: T3. Intentional misuse, unauthorised disclosure, modification or destruction of individual’s data | I80: 5
B81: R.A3.V10.T3. | C81: 11 | D81: A3. Professional reputation | E81: 4 | F81: V10. Over reliance and excessive dependency on electronic devices and systems | G81: 4 | H81: T3. Intentional misuse, unauthorised disclosure, modification or destruction of individual’s data | I81: 5
B82: R.A3.V10.T1. | C82: 10 | D82: A3. Professional reputation | E82: 4 | F82: V10. Over reliance and excessive dependency on electronic devices and systems | G82: 4 | H82: T1. Accidental loss of device | I82: 4
B83: R.A3.V8.T14. | C83: 11 | D83: A3. Professional reputation | E83: 4 | F83: V8. Lack of or inadequate user identification, authentication and access controls; e.g. use of new devices as authentication tools | G83: 5 | H83: T14. Individual being negligent, careless, making mistakes; e.g. does not follow procedures appropriately, e.g. clicks through | I83: 4
B84: R.A3.V8.T3. | C84: 12 | D84: A3. Professional reputation | E84: 4 | F84: V8. Lack of or inadequate user identification, authentication and access controls; e.g. use of new devices as authentication tools | G84: 5 | H84: T3. Intentional misuse, unauthorised disclosure, modification or destruction of individual’s data | I84: 5
B85: R.A3.V8.T2. | C85: 11 | D85: A3. Professional reputation | E85: 4 | F85: V8. Lack of or inadequate user identification, authentication and access controls; e.g. use of new devices as authentication tools | G85: 5 | H85: T2. Identity theft | I85: 4
B86: R.A3.V5.T14. | C86: 11 | D86: A3. Professional reputation | E86: 4 | F86: V5. Inherent features of smart devices (size, material etc.): easy to lose or steal | G86: 5 | H86: T14. Individual being negligent, careless, making mistakes; e.g. does not follow procedures appropriately, e.g. clicks through | I86: 4
B87: R.A3.V5.T8. | C87: 10 | D87: A3. Professional reputation | E87: 4 | F87: V5. Inherent features of smart devices (size, material etc.): easy to lose or steal | G87: 5 | H87: T8. Overhearing/recording logging/blogging activity | I87: 3
B88: R.A3.V5.T6. | C88: 11 | D88: A3. Professional reputation | E88: 4 | F88: V5. Inherent features of smart devices (size, material etc.): easy to lose or steal | G88: 5 | H88: T6. Malicious physical attacks (theft, vandalism, misuse, etc.) | I88: 4
B89: R.A3.V5.T3. | C89: 12 | D89: A3. Professional reputation | E89: 4 | F89: V5. Inherent features of smart devices (size, material etc.): easy to lose or steal | G89: 5 | H89: T3. Intentional misuse, unauthorised disclosure, modification or destruction of individual’s data | I89: 5
B90: R.A3.V5.T2. | C90: 11 | D90: A3. Professional reputation | E90: 4 | F90: V5. Inherent features of smart devices (size, material etc.): easy to lose or steal | G90: 5 | H90: T2. Identity theft | I90: 4
B91: R.A3.V5.T1. | C91: 11 | D91: A3. Professional reputation | E91: 4 | F91: V5. Inherent features of smart devices (size, material etc.): easy to lose or steal | G91: 5 | H91: T1. Accidental loss of device | I91: 4
B92: R.A3.V3.T14. | C92: 9 | D92: A3. Professional reputation | E92: 4 | F92: V3. Inadequate privacy/security interfaces (poor interface design) | G92: 3 | H92: T14. Individual being negligent, careless, making mistakes; e.g. does not follow procedures appropriately, e.g. clicks through | I92: 4
B93: R.A3.V3.T8. | C93: 8 | D93: A3. Professional reputation | E93: 4 | F93: V3. Inadequate privacy/security interfaces (poor interface design) | G93: 3 | H93: T8. Overhearing/recording logging/blogging activity | I93: 3
B94: R.A3.V3.T3. | C94: 10 | D94: A3. Professional reputation | E94: 4 | F94: V3. Inadequate privacy/security interfaces (poor interface design) | G94: 3 | H94: T3. Intentional misuse, unauthorised disclosure, modification or destruction of individual’s data | I94: 5
B95: R.A3.V3.T2. | C95: 9 | D95: A3. Professional reputation | E95: 4 | F95: V3. Inadequate privacy/security interfaces (poor interface design) | G95: 3 | H95: T2. Identity theft | I95: 4
B96: R.A3.V1.T9. | C96: 7 | D96: A3. Professional reputation | E96: 4 | F96: V1. Flawed/insufficient design, implementation and/or capacity of devices and systems. Includes software bugs and design flaws. | G96: 3 | H96: T9. Exploring new ‘vulnerabilities’ in the new applications | I96: 2
B97: R.A3.V1.T3. | C97: 10 | D97: A3. Professional reputation | E97: 4 | F97: V1. Flawed/insufficient design, implementation and/or capacity of devices and systems. Includes software bugs and design flaws. | G97: 3 | H97: T3. Intentional misuse, unauthorised disclosure, modification or destruction of individual’s data | I97: 5
B98: R.A6.V25.T14. | C98: 10 | D98: A6. Life-logging services | E98: 3 | F98: V25. Inadequate user education, lack of awareness and training particularly in security and privacy; lack of context awareness | G98: 5 | H98: T14. Individual being negligent, careless, making mistakes; e.g. does not follow procedures appropriately, e.g. clicks through | I98: 4
B99: R.A6.V25.T8. | C99: 9 | D99: A6. Life-logging services | E99: 3 | F99: V25. Inadequate user education, lack of awareness and training particularly in security and privacy; lack of context awareness | G99: 5 | H99: T8. Overhearing/recording logging/blogging activity | I99: 3
B100: R.A6.V25.T7. | C100: 8 | D100: A6. Life-logging services | E100: 3 | F100: V25. Inadequate user education, lack of awareness and training particularly in security and privacy; lack of context awareness | G100: 5 | H100: T7. Malicious (logical) attacks on devices and systems | I100: 2
B101: R.A6.V25.T6. | C101: 10 | D101: A6. Life-logging services | E101: 3 | F101: V25. Inadequate user education, lack of awareness and training particularly in security and privacy; lack of context awareness | G101: 5 | H101: T6. Malicious physical attacks (theft, vandalism, misuse, etc.) | I101: 4
B102: R.A6.V25.T3. | C102: 11 | D102: A6. Life-logging services | E102: 3 | F102: V25. Inadequate user education, lack of awareness and training particularly in security and privacy; lack of context awareness | G102: 5 | H102: T3. Intentional misuse, unauthorised disclosure, modification or destruction of individual’s data | I102: 5
B103: R.A6.V25.T2. | C103: 10 | D103: A6. Life-logging services | E103: 3 | F103: V25. Inadequate user education, lack of awareness and training particularly in security and privacy; lack of context awareness | G103: 5 | H103: T2. Identity theft | I103: 4
B104: R.A6.V25.T1. | C104: 10 | D104: A6. Life-logging services | E104: 3 | F104: V25. Inadequate user education, lack of awareness and training particularly in security and privacy; lack of context awareness | G104: 5 | H104: T1. Accidental loss of device | I104: 4
B105: R.A6.V10.T3. | C105: 10 | D105: A6. Life-logging services | E105: 3 | F105: V10. Over reliance and excessive dependency on electronic devices and systems | G105: 4 | H105: T3. Intentional misuse, unauthorised disclosure, modification or destruction of individual’s data | I105: 5
B106: R.A6.V10.T1. | C106: 9 | D106: A6. Life-logging services | E106: 3 | F106: V10. Over reliance and excessive dependency on electronic devices and systems | G106: 4 | H106: T1. Accidental loss of device | I106: 4
B107: R.A6.V8.T14. | C107: 10 | D107: A6. Life-logging services | E107: 3 | F107: V8. Lack of or inadequate user identification, authentication and access controls; e.g. use of new devices as authentication tools | G107: 5 | H107: T14. Individual being negligent, careless, making mistakes; e.g. does not follow procedures appropriately, e.g. clicks through | I107: 4
B108: R.A6.V8.T3. | C108: 11 | D108: A6. Life-logging services | E108: 3 | F108: V8. Lack of or inadequate user identification, authentication and access controls; e.g. use of new devices as authentication tools | G108: 5 | H108: T3. Intentional misuse, unauthorised disclosure, modification or destruction of individual’s data | I108: 5
B109: R.A6.V8.T2. | C109: 10 | D109: A6. Life-logging services | E109: 3 | F109: V8. Lack of or inadequate user identification, authentication and access controls; e.g. use of new devices as authentication tools | G109: 5 | H109: T2. Identity theft | I109: 4
B110: R.A6.V3.T14. | C110: 8 | D110: A6. Life-logging services | E110: 3 | F110: V3. Inadequate privacy/security interfaces (poor interface design) | G110: 3 | H110: T14. Individual being negligent, careless, making mistakes; e.g. does not follow procedures appropriately, e.g. clicks through | I110: 4
B111: R.A6.V3.T8. | C111: 7 | D111: A6. Life-logging services | E111: 3 | F111: V3. Inadequate privacy/security interfaces (poor interface design) | G111: 3 | H111: T8. Overhearing/recording logging/blogging activity | I111: 3
B112: R.A6.V3.T3. | C112: 9 | D112: A6. Life-logging services | E112: 3 | F112: V3. Inadequate privacy/security interfaces (poor interface design) | G112: 3 | H112: T3. Intentional misuse, unauthorised disclosure, modification or destruction of individual’s data | I112: 5
B113: R.A6.V3.T2. | C113: 8 | D113: A6. Life-logging services | E113: 3 | F113: V3. Inadequate privacy/security interfaces (poor interface design) | G113: 3 | H113: T2. Identity theft | I113: 4
B114: R.A6.V1.T9. | C114: 6 | D114: A6. Life-logging services | E114: 3 | F114: V1. Flawed/insufficient design, implementation and/or capacity of devices and systems. Includes software bugs and design flaws. | G114: 3 | H114: T9. Exploring new ‘vulnerabilities’ in the new applications | I114: 2
B115: R.A6.V1.T3. | C115: 9 | D115: A6. Life-logging services | E115: 3 | F115: V1. Flawed/insufficient design, implementation and/or capacity of devices and systems. Includes software bugs and design flaws. | G115: 3 | H115: T3. Intentional misuse, unauthorised disclosure, modification or destruction of individual’s data | I115: 5
B116: R.A8.V25.T14. | C116: 9 | D116: A8. Smart home objects / appliances | E116: 2.1 | F116: V25. Inadequate user education, lack of awareness and training particularly in security and privacy; lack of context awareness | G116: 5 | H116: T14. Individual being negligent, careless, making mistakes; e.g. does not follow procedures appropriately, e.g. clicks through | I116: 4
B117: R.A8.V25.T8. | C117: 8 | D117: A8. Smart home objects / appliances | E117: 2.1 | F117: V25. Inadequate user education, lack of awareness and training particularly in security and privacy; lack of context awareness | G117: 5 | H117: T8. Overhearing/recording logging/blogging activity | I117: 3
B118: R.A8.V25.T7. | C118: 7 | D118: A8. Smart home objects / appliances | E118: 2.1 | F118: V25. Inadequate user education, lack of awareness and training particularly in security and privacy; lack of context awareness | G118: 5 | H118: T7. Malicious (logical) attacks on devices and systems | I118: 2
B119: R.A8.V25.T6. | C119: 9 | D119: A8. Smart home objects / appliances | E119: 2.1 | F119: V25. Inadequate user education, lack of awareness and training particularly in security and privacy; lack of context awareness | G119: 5 | H119: T6. Malicious physical attacks (theft, vandalism, misuse, etc.) | I119: 4
B120: R.A8.V25.T3. | C120: 10 | D120: A8. Smart home objects / appliances | E120: 2.1 | F120: V25. Inadequate user education, lack of awareness and training particularly in security and privacy; lack of context awareness | G120: 5 | H120: T3. Intentional misuse, unauthorised disclosure, modification or destruction of individual’s data | I120: 5
B121: R.A8.V25.T2. | C121: 9 | D121: A8. Smart home objects / appliances | E121: 2.1 | F121: V25. Inadequate user education, lack of awareness and training particularly in security and privacy; lack of context awareness | G121: 5 | H121: T2. Identity theft | I121: 4
B122: R.A8.V25.T1. | C122: 9 | D122: A8. Smart home objects / appliances | E122: 2.1 | F122: V25. Inadequate user education, lack of awareness and training particularly in security and privacy; lack of context awareness | G122: 5 | H122: T1. Accidental loss of device | I122: 4
B123: R.A8.V20.T18. | C123: 9 | D123: A8. Smart home objects / appliances | E123: 2 | F123: V20. Increase of (unprotected) data storage capacity in smart-devices | G123: 5 | H123: T18. Monitoring and surveillance | I123: 4
B124: R.A8.V20.T17. | C124: 10 | D124: A8. Smart home objects / appliances | E124: 2 | F124: V20. Increase of (unprotected) data storage capacity in smart-devices | G124: 5 | H124: T17. Data mining and profiling (large-scale, excessive and/or inappropriate) | I124: 5
B125: R.A8.V20.T14. | C125: 9 | D125: A8. Smart home objects / appliances | E125: 2.1 | F125: V20. Increase of (unprotected) data storage capacity in smart-devices | G125: 5 | H125: T14. Individual being negligent, careless, making mistakes; e.g. does not follow procedures appropriately, e.g. clicks through | I125: 4
B126: R.A8.V20.T7. | C126: 7 | D126: A8. Smart home objects / appliances | E126: 2.1 | F126: V20. Increase of (unprotected) data storage capacity in smart-devices | G126: 5 | H126: T7. Malicious (logical) attacks on devices and systems | I126: 2
B127: R.A8.V20.T4. | C127: 10 | D127: A8. Smart home objects / appliances | E127: 2.1 | F127: V20. Increase of (unprotected) data storage capacity in smart-devices | G127: 5 | H127: T4. Unintentional misuse, unauthorised disclosure, modification or destruction of individual’s data | I127: 5
B128: R.A8.V20.T3. | C128: 10 | D128: A8. Smart home objects / appliances | E128: 2.1 | F128: V20. Increase of (unprotected) data storage capacity in smart-devices | G128: 5 | H128: T3. Intentional misuse, unauthorised disclosure, modification or destruction of individual’s data | I128: 5
B129: R.A8.V13.T18. | C129: 7 | D129: A8. Smart home objects / appliances | E129: 2 | F129: V13. Lack of revocation/correction/deletion mechanisms | G129: 3 | H129: T18. Monitoring and surveillance | I129: 4
B130: R.A8.V13.T17. | C130: 8 | D130: A8. Smart home objects / appliances | E130: 2 | F130: V13. Lack of revocation/correction/deletion mechanisms | G130: 3 | H130: T17. Data mining and profiling (large-scale, excessive and/or inappropriate) | I130: 5
B131: R.A8.V13.T4. | C131: 8 | D131: A8. Smart home objects / appliances | E131: 2.1 | F131: V13. Lack of revocation/correction/deletion mechanisms | G131: 3 | H131: T4. Unintentional misuse, unauthorised disclosure, modification or destruction of individual’s data | I131: 5
B132: R.A8.V11.T18. | C132: 8 | D132: A8. Smart home objects / appliances | E132: 2 | F132: V11. PC and home infrastructure vulnerabilities | G132: 4 | H132: T18. Monitoring and surveillance | I132: 4
B133: R.A8.V11.T7. | C133: 6 | D133: A8. Smart home objects / appliances | E133: 2.1 | F133: V11. PC and home infrastructure vulnerabilities | G133: 4 | H133: T7. Malicious (logical) attacks on devices and systems | I133: 2
B134: R.A8.V11.T6. | C134: 8 | D134: A8. Smart home objects / appliances | E134: 2.1 | F134: V11. PC and home infrastructure vulnerabilities | G134: 4 | H134: T6. Malicious physical attacks (theft, vandalism, misuse, etc.) | I134: 4
B135: R.A8.V11.T4. | C135: 9 | D135: A8. Smart home objects / appliances | E135: 2 | F135: V11. PC and home infrastructure vulnerabilities | G135: 4 | H135: T4. Unintentional misuse, unauthorised disclosure, modification or destruction of individual’s data | I135: 5
B136: R.A8.V11.T3. | C136: 9 | D136: A8. Smart home objects / appliances | E136: 2.1 | F136: V11. PC and home infrastructure vulnerabilities | G136: 4 | H136: T3. Intentional misuse, unauthorised disclosure, modification or destruction of individual’s data | I136: 5
B137: R.A8.V8.T18. | C137: 9 | D137: A8. Smart home objects / appliances | E137: 2 | F137: V8. Lack of or inadequate user identification, authentication and access controls; e.g. use of new devices as authentication tools | G137: 5 | H137: T18. Monitoring and surveillance | I137: 4
B138: R.A8.V8.T14. | C138: 9 | D138: A8. Smart home objects / appliances | E138: 2.1 | F138: V8. Lack of or inadequate user identification, authentication and access controls; e.g. use of new devices as authentication tools | G138: 5 | H138: T14. Individual being negligent, careless, making mistakes; e.g. does not follow procedures appropriately, e.g. clicks through | I138: 4
B139: R.A8.V8.T4. | C139: 10 | D139: A8. Smart home objects / appliances | E139: 2.1 | F139: V8. Lack of or inadequate user identification, authentication and access controls; e.g. use of new devices as authentication tools | G139: 5 | H139: T4. Unintentional misuse, unauthorised disclosure, modification or destruction of individual’s data | I139: 5
B140: R.A8.V5.T8. | C140: 8 | D140: A8. Smart home objects / appliances | E140: 2.1 | F140: V5. Inherent features of smart devices (size, material etc.): easy to lose or steal | G140: 5 | H140: T8. Overhearing/recording logging/blogging activity | I140: 3
B141: R.A8.V3.T8. | C141: 6 | D141: A8. Smart home objects / appliances | E141: 2.1 | F141: V3. Inadequate privacy/security interfaces (poor interface design) | G141: 3 | H141: T8. Overhearing/recording logging/blogging activity | I141: 3
B142: R.A8.V3.T4. | C142: 8 | D142: A8. Smart home objects / appliances | E142: 2.1 | F142: V3. Inadequate privacy/security interfaces (poor interface design) | G142: 3 | H142: T4. Unintentional misuse, unauthorised disclosure, modification or destruction of individual’s data | I142: 5
B143: R.A8.V2.T8. | C143: 5 | D143: A8. Smart home objects / appliances | E143: 2 | F143: V2. Inadequate policy framework | G143: 2 | H143: T8. Overhearing/recording logging/blogging activity | I143: 3
B144: R.A8.V2.T3. | C144: 7 | D144: A8. Smart home objects / appliances | E144: 2 | F144: V2. Inadequate policy framework | G144: 2 | H144: T3. Intentional misuse, unauthorised disclosure, modification or destruction of individual’s data | I144: 5
B145: R.A8.V1.T9. | C145: 5 | D145: A8. Smart home objects / appliances | E145: 2.1 | F145: V1. Flawed/insufficient design, implementation and/or capacity of devices and systems. Includes software bugs and design flaws. | G145: 3 | H145: T9. Exploring new ‘vulnerabilities’ in the new applications | I145: 2
B146: R.A8.V1.T3. | C146: 8 | D146: A8. Smart home objects / appliances | E146: 2.1 | F146: V1. Flawed/insufficient design, implementation and/or capacity of devices and systems. Includes software bugs and design flaws. | G146: 3 | H146: T3. Intentional misuse, unauthorised disclosure, modification or destruction of individual’s data | I146: 5
B147: R.A6.V15.T13. | C147: 8 | D147: A6. Life-logging services | E147: 3 | F147: V15. Lack of (usable) logging controls/policies/ reminders. E.g. capturing some embarrassing scene of someone else or yourself | G147: 3 | H147: T13. Peer-pressure and social pressure to constantly share data and conform; fear of violent response / or ridicule from peers, friends etc; | I147: 4
B148: R.A6.V8.T18. | C148: 10 | D148: A6. Life-logging services | E148: 3 | F148: V8. Lack of or inadequate user identification, authentication and access controls; e.g. use of new devices as authentication tools | G148: 5 | H148: T18. Monitoring and surveillance | I148: 4
B149: R.A6.V8.T4. | C149: 11 | D149: A6. Life-logging services | E149: 3 | F149: V8. Lack of or inadequate user identification, authentication and access controls; e.g. use of new devices as authentication tools | G149: 5 | H149: T4. Unintentional misuse, unauthorised disclosure, modification or destruction of individual’s data | I149: 5
B150: R.A15.V8.T18. | C150: 10 | D150: A15. Databases of aggregated data | E150: 3.2 | F150: V8. Lack of or inadequate user identification, authentication and access controls; e.g. use of new devices as authentication tools | G150: 5 | H150: T18. Monitoring and surveillance | I150: 4
B151: R.A15.V8.T4. | C151: 11 | D151: A15. Databases of aggregated data | E151: 3.2 | F151: V8. Lack of or inadequate user identification, authentication and access controls; e.g. use of new devices as authentication tools | G151: 5 | H151: T4. Unintentional misuse, unauthorised disclosure, modification or destruction of individual’s data | I151: 5
B152: R.A15.V8.T3. | C152: 11 | D152: A15. Databases of aggregated data | E152: 3.2 | F152: V8. Lack of or inadequate user identification, authentication and access controls; e.g. use of new devices as authentication tools | G152: 5 | H152: T3. Intentional misuse, unauthorised disclosure, modification or destruction of individual’s data | I152: 5
B153: R.A3.V15.T13. | C153: 9 | D153: A3. Professional reputation | E153: 4 | F153: V15. Lack of (usable) logging controls/policies/ reminders. E.g. capturing some embarrassing scene of someone else or yourself | G153: 3 | H153: T13. Peer-pressure and social pressure to constantly share data and conform; fear of violent response / or ridicule from peers, friends etc; | I153: 4
B154: R.A2.V24.T17. | C154: 10 | D154: A2. Social reputation | E154: 4 | F154: V24. Social reliance/over-confidence and trust on individual’s digital identity | G154: 3 | H154: T17. Data mining and profiling (large-scale, excessive and/or inappropriate) | I154: 5
B155: R.A2.V24.T14. | C155: 9 | D155: A2. Social reputation | E155: 4 | F155: V24. Social reliance/over-confidence and trust on individual’s digital identity | G155: 3 | H155: T14. Individual being negligent, careless, making mistakes; e.g. does not follow procedures appropriately, e.g. clicks through | I155: 4
B156: R.A2.V24.T13. | C156: 9 | D156: A2. Social reputation | E156: 4 | F156: V24. Social reliance/over-confidence and trust on individual’s digital identity | G156: 3 | H156: T13. Peer-pressure and social pressure to constantly share data and conform; fear of violent response / or ridicule from peers, friends etc; | I156: 4
B157: R.A2.V24.T8. | C157: 8 | D157: A2. Social reputation | E157: 4 | F157: V24. Social reliance/over-confidence and trust on individual’s digital identity | G157: 3 | H157: T8. Overhearing/recording logging/blogging activity | I157: 3
B158: R.A2.V15.T13. | C158: 9 | D158: A2. Social reputation | E158: 4 | F158: V15. Lack of (usable) logging controls/policies/ reminders. E.g. capturing some embarrassing scene of someone else or yourself | G158: 3 | H158: T13. Peer-pressure and social pressure to constantly share data and conform; fear of violent response / or ridicule from peers, friends etc; | I158: 4
B159: R.A3.V24.T17. | C159: 10 | D159: A3. Professional reputation | E159: 4 | F159: V24. Social reliance/over-confidence and trust on individual’s digital identity | G159: 3 | H159: T17. Data mining and profiling (large-scale, excessive and/or inappropriate) | I159: 5
B160: R.A3.V24.T14. | C160: 9 | D160: A3. Professional reputation | E160: 4 | F160: V24. Social reliance/over-confidence and trust on individual’s digital identity | G160: 3 | H160: T14. Individual being negligent, careless, making mistakes; e.g. does not follow procedures appropriately, e.g. clicks through | I160: 4
B161: R.A3.V24.T13. | C161: 9 | D161: A3. Professional reputation | E161: 4 | F161: V24. Social reliance/over-confidence and trust on individual’s digital identity | G161: 3 | H161: T13. Peer-pressure and social pressure to constantly share data and conform; fear of violent response / or ridicule from peers, friends etc; | I161: 4
B162: R.A3.V24.T8. | C162: 8 | D162: A3. Professional reputation | E162: 4 | F162: V24. Social reliance/over-confidence and trust on individual’s digital identity | G162: 3 | H162: T8. Overhearing/recording logging/blogging activity | I162: 3
B163: R.A4.V24.T8. | C163: 8 | D163: A4. Sentiments | E163: 4 | F163: V24. Social reliance/over-confidence and trust on individual’s digital identity | G163: 3 | H163: T8. Overhearing/recording logging/blogging activity | I163: 3
B164: R.A6.V24.T8. | C164: 7 | D164: A6. Life-logging services | E164: 3 | F164: V24. Social reliance/over-confidence and trust on individual’s digital identity | G164: 3 | H164: T8. Overhearing/recording logging/blogging activity | I164: 3
B165: R.A8.V25.T18. | C165: 9 | D165: A8. Smart home objects / appliances | E165: 2 | F165: V25. Inadequate user education, lack of awareness and training particularly in security and privacy; lack of context awareness | G165: 5 | H165: T18. Monitoring and surveillance | I165: 4
B166: R.A8.V25.T17. | C166: 10 | D166: A8. Smart home objects / appliances | E166: 2.1 | F166: V25. Inadequate user education, lack of awareness and training particularly in security and privacy; lack of context awareness | G166: 5 | H166: T17. Data mining and profiling (large-scale, excessive and/or inappropriate) | I166: 5
B167: R.A8.V3.T17. | C167: 8 | D167: A8. Smart home objects / appliances | E167: 2.1 | F167: V3. Inadequate privacy/security interfaces (poor interface design) | G167: 3 | H167: T17. Data mining and profiling (large-scale, excessive and/or inappropriate) | I167: 5
B168: R.A8.V2.T18. | C168: 6 | D168: A8. Smart home objects / appliances | E168: 2 | F168: V2. Inadequate policy framework | G168: 2 | H168: T18. Monitoring and surveillance | I168: 4
B169: R.A8.V2.T17. | C169: 7 | D169: A8. Smart home objects / appliances | E169: 2.1 | F169: V2. Inadequate policy framework | G169: 2 | H169: T17. Data mining and profiling (large-scale, excessive and/or inappropriate) | I169: 5
B170: R.A9.V25.T17. | C170: 11 | D170: A9. Laptops and PC computers | E170: 2.8 | F170: V25. Inadequate user education, lack of awareness and training particularly in security and privacy; lack of context awareness | G170: 5 | H170: T17. Data mining and profiling (large-scale, excessive and/or inappropriate) | I170: 5
B171: R.A9.V25.T14. | C171: 10 | D171: A9. Laptops and PC computers | E171: 2.8 | F171: V25. Inadequate user education, lack of awareness and training particularly in security and privacy; lack of context awareness | G171: 5 | H171: T14. Individual being negligent, careless, making mistakes; e.g. does not follow procedures appropriately, e.g. clicks through | I171: 4
B172: R.A9.V19.T14. | C172: 8 | D172: A9. Laptops and PC computers | E172: 2.8 | F172: V19. Increased complexity of controls (making it difficult for users to follow) | G172: 3 | H172: T14. Individual being negligent, careless, making mistakes; e.g. does not follow procedures appropriately, e.g. clicks through | I172: 4
B173: R.A9.V14.T17. | C173: 8 | D173: A9. Laptops and PC computers | E173: 2.8 | F173: V14. Lack of (usable) privacy controls, e.g., overly permissive defaults, too coarse granularity, ... | G173: 2 | H173: T17. Data mining and profiling (large-scale, excessive and/or inappropriate) | I173: 5
B174: R.A9.V14.T14. | C174: 7 | D174: A9. Laptops and PC computers | E174: 2.8 | F174: V14. Lack of (usable) privacy controls, e.g., overly permissive defaults, too coarse granularity, ... | G174: 2 | H174: T14. Individual being negligent, careless, making mistakes; e.g. does not follow procedures appropriately, e.g. clicks through | I174: 4
B175: R.A9.V3.T17. | C175: 9 | D175: A9. Laptops and PC computers | E175: 2.8 | F175: V3. Inadequate privacy/security interfaces (poor interface design) | G175: 3 | H175: T17. Data mining and profiling (large-scale, excessive and/or inappropriate) | I175: 5
B176: R.A9.V3.T14. | C176: 8 | D176: A9. Laptops and PC computers | E176: 2.8 | F176: V3. Inadequate privacy/security interfaces (poor interface design) | G176: 3 | H176: T14. Individual being negligent, careless, making mistakes; e.g. does not follow procedures appropriately, e.g. clicks through | I176: 4
B177: R.A9.V1.T9. | C177: 6 | D177: A9. Laptops and PC computers | E177: 3 | F177: V1. Flawed/insufficient design, implementation and/or capacity of devices and systems. Includes software bugs and design flaws. | G177: 3 | H177: T9. Exploring new ‘vulnerabilities’ in the new applications | I177: 2
B178: R.A4.V28.T3. | C178: 10 | D178: A4. Sentiments | E178: 4 | F178: V28. Data linkability / lifelogging data can be aggregated with other data | G178: 3 | H178: T3. Intentional misuse, unauthorised disclosure, modification or destruction of individual’s data | I178: 5
B179: R.A4.V28.T2. | C179: 9 | D179: A4. Sentiments | E179: 4 | F179: V28. Data linkability / lifelogging data can be aggregated with other data | G179: 3 | H179: T2. Identity theft | I179: 4
B180: R.A4.V25.T14. | C180: 11 | D180: A4. Sentiments | E180: 4 | F180: V25. Inadequate user education, lack of awareness and training particularly in security and privacy; lack of context awareness | G180: 5 | H180: T14. Individual being negligent, careless, making mistakes; e.g. does not follow procedures appropriately, e.g. clicks through | I180: 4
B181: R.A4.V25.T6. | C181: 11 | D181: A4. Sentiments | E181: 4 | F181: V25. Inadequate user education, lack of awareness and training particularly in security and privacy; lack of context awareness | G181: 5 | H181: T6. Malicious physical attacks (theft, vandalism, misuse, etc.) | I181: 4
B182: R.A4.V25.T3. | C182: 12 | D182: A4. Sentiments | E182: 4 | F182: V25. Inadequate user education, lack of awareness and training particularly in security and privacy; lack of context awareness | G182: 5 | H182: T3. Intentional misuse, unauthorised disclosure, modification or destruction of individual’s data | I182: 5
B183: R.A4.V25.T2. | C183: 11 | D183: A4. Sentiments | E183: 4 | F183: V25. Inadequate user education, lack of awareness and training particularly in security and privacy; lack of context awareness | G183: 5 | H183: T2. Identity theft | I183: 4
B184: R.A4.V25.T1. | C184: 11 | D184: A4. Sentiments | E184: 4 | F184: V25. Inadequate user education, lack of awareness and training particularly in security and privacy; lack of context awareness | G184: 5 | H184: T1. Accidental loss of device | I184: 4
B185: R.A4.V15.T14. | C185: 9 | D185: A4. Sentiments | E185: 4 | F185: V15. Lack of (usable) logging controls/policies/ reminders. E.g. capturing some embarrassing scene of someone else or yourself | G185: 3 | H185: T14. Individual being negligent, careless, making mistakes; e.g. does not follow procedures appropriately, e.g. clicks through | I185: 4
B186: R.A4.V10.T3. | C186: 11 | D186: A4. Sentiments | E186: 4 | F186: V10. Over reliance and excessive dependency on electronic devices and systems | G186: 4 | H186: T3. Intentional misuse, unauthorised disclosure, modification or destruction of individual’s data | I186: 5
B187: R.A4.V10.T1. | C187: 10 | D187: A4. Sentiments | E187: 4 | F187: V10. Over reliance and excessive dependency on electronic devices and systems | G187: 4 | H187: T1. Accidental loss of device | I187: 4
B188: R.A4.V3.T14. | C188: 9 | D188: A4. Sentiments | E188: 4 | F188: V3. Inadequate privacy/security interfaces (poor interface design) | G188: 3 | H188: T14. Individual being negligent, careless, making mistakes; e.g. does not follow procedures appropriately, e.g. clicks through | I188: 4
B189: R.A4.V3.T3. | C189: 10 | D189: A4. Sentiments | E189: 4 | F189: V3. Inadequate privacy/security interfaces (poor interface design) | G189: 3 | H189: T3. Intentional misuse, unauthorised disclosure, modification or destruction of individual’s data | I189: 5
B190: R.A4.V3.T2. | C190: 9 | D190: A4. Sentiments | E190: 4 | F190: V3. Inadequate privacy/security interfaces (poor interface design) | G190: 3 | H190: T2. Identity theft | I190: 4
B191: R.A8.V13.T3. | C191: 8 | D191: A8. Smart home objects / appliances | E191: 2.1 | F191: V13. Lack of revocation/correction/deletion mechanisms | G191: 3 | H191: T3. Intentional misuse, unauthorised disclosure, modification or destruction of individual’s data | I191: 5
B192: R.A8.V8.T3. | C192: 10 | D192: A8. Smart home objects / appliances | E192: 2.1 | F192: V8. Lack of or inadequate user identification, authentication and access controls; e.g. use of new devices as authentication tools | G192: 5 | H192: T3. Intentional misuse, unauthorised disclosure, modification or destruction of individual’s data | I192: 5
B193: R.A8.V8.T2. | C193: 9 | D193: A8. Smart home objects / appliances | E193: 2.1 | F193: V8. Lack of or inadequate user identification, authentication and access controls; e.g. use of new devices as authentication tools | G193: 5 | H193: T2. Identity theft | I193: 4
B194: R.A8.V5.T18. | C194: 9 | D194: A8. Smart home objects / appliances | E194: 2 | F194: V5. Inherent features of smart devices (size, material etc.): easy to lose or steal | G194: 5 | H194: T18. Monitoring and surveillance | I194: 4
B195: R.A8.V5.T14. | C195: 9 | D195: A8. Smart home objects / appliances | E195: 2.1 | F195: V5. Inherent features of smart devices (size, material etc.): easy to lose or steal | G195: 5 | H195: T14. Individual being negligent, careless, making mistakes; e.g. does not follow procedures appropriately, e.g. clicks through | I195: 4
B196: R.A8.V5.T6. | C196: 9 | D196: A8. Smart home objects / appliances | E196: 2.1 | F196: V5. Inherent features of smart devices (size, material etc.): easy to lose or steal | G196: 5 | H196: T6. Malicious physical attacks (theft, vandalism, misuse, etc.) | I196: 4
B197: R.A8.V5.T4. | C197: 10 | D197: A8. Smart home objects / appliances | E197: 2.1 | F197: V5. Inherent features of smart devices (size, material etc.): easy to lose or steal | G197: 5 | H197: T4. Unintentional misuse, unauthorised disclosure, modification or destruction of individual’s data | I197: 5
B198: R.A8.V5.T3. | C198: 10 | D198: A8. Smart home objects / appliances | E198: 2.1 | F198: V5. Inherent features of smart devices (size, material etc.): easy to lose or steal | G198: 5 | H198: T3. Intentional misuse, unauthorised disclosure, modification or destruction of individual’s data | I198: 5
B199: R.A8.V5.T2. | C199: 9 | D199: A8. Smart home objects / appliances | E199: 2.1 | F199: V5. Inherent features of smart devices (size, material etc.): easy to lose or steal | G199: 5 | H199: T2. Identity theft | I199: 4
B200: R.A8.V5.T1. | C200: 9 | D200: A8. Smart home objects / appliances | E200: 2.1 | F200: V5. Inherent features of smart devices (size, material etc.): easy to lose or steal | G200: 5 | H200: T1. Accidental loss of device | I200: 4
B201: R.A8.V3.T18. | C201: 7 | D201: A8. Smart home objects / appliances | E201: 2 | F201: V3. Inadequate privacy/security interfaces (poor interface design) | G201: 3 | H201: T18. Monitoring and surveillance | I201: 4
B202: R.A8.V3.T14. | C202: 7 | D202: A8. Smart home objects / appliances | E202: 2.1 | F202: V3. Inadequate privacy/security interfaces (poor interface design) | G202: 3 | H202: T14. Individual being negligent, careless, making mistakes; e.g. does not follow procedures appropriately, e.g. clicks through | I202: 4
... 714 more rows

Sheet R2
B3: Risk-ID | C3: Risk Value | D3: Asset Description | E3: Asset Value | F3: Vulnerability Description | G3: Vulnerability Value | H3: Threat Description | I3: Threat Value | K3: Values | L3: Counts | M3: Weighting factor
B4: R.A2.V25.T14. | C4: 11 | D4: A2. Social reputation | E4: 4 | F4: V25. Inadequate user education, lack of awareness and training particularly in security and privacy; lack of context awareness | G4: 5 | H4: T14. Individual being negligent, careless, making mistakes; e.g. does not follow procedures appropriately, e.g. clicks through | I4: 4 | K4: 1 | L4: =COUNTIF($C$4:$C$525,K4) -> 0 | M4: =SUMPRODUCT(K4:K16,L4:L16)/L17 -> 8.760536398
B5: R.A2.V25.T8. | C5: 10 | D5: A2. Social reputation | E5: 4 | F5: V25. Inadequate user education, lack of awareness and training particularly in security and privacy; lack of context awareness | G5: 5 | H5: T8. Overhearing/recording logging/blogging activity | I5: 3 | K5: 2 | L5: =COUNTIF($C$4:$C$525,K5) -> 0
B6: R.A2.V25.T7. | C6: 9 | D6: A2. Social reputation | E6: 4 | F6: V25. Inadequate user education, lack of awareness and training particularly in security and privacy; lack of context awareness | G6: 5 | H6: T7. Malicious (logical) attacks on devices and systems | I6: 2 | K6: 3 | L6: 0
B7: R.A2.V25.T6. | C7: 11 | D7: A2. Social reputation | E7: 4 | F7: V25. Inadequate user education, lack of awareness and training particularly in security and privacy; lack of context awareness | G7: 5 | H7: T6. Malicious physical attacks (theft, vandalism, misuse, etc.) | I7: 4 | K7: 4 | L7: 0
B8: R.A2.V25.T3. | C8: 12 | D8: A2. Social reputation | E8: 4 | F8: V25. Inadequate user education, lack of awareness and training particularly in security and privacy; lack of context awareness | G8: 5 | H8: T3. Intentional misuse, unauthorised disclosure, modification or destruction of individual’s data | I8: 5 | K8: 5 | L8: 7
B9: R.A2.V25.T2. | C9: 11 | D9: A2. Social reputation | E9: 4 | F9: V25. Inadequate user education, lack of awareness and training particularly in security and privacy; lack of context awareness | G9: 5 | H9: T2. Identity theft | I9: 4 | K9: 6 | L9: 21
B10: R.A2.V25.T1. | C10: 11 | D10: A2. Social reputation | E10: 4 | F10: V25. Inadequate user education, lack of awareness and training particularly in security and privacy; lack of context awareness | G10: 5 | H10: T1. Accidental loss of device | I10: 4 | K10: 7 | L10: 77
B11: R.A2.V3.T14. | C11: 9 | D11: A2. Social reputation | E11: 4 | F11: V3. Inadequate privacy/security interfaces (poor interface design) | G11: 3 | H11: T14. Individual being negligent, careless, making mistakes; e.g. does not follow procedures appropriately, e.g. clicks through | I11: 4 | K11: 8 | L11: 117
B12: R.A2.V3.T8. | C12: 8 | D12: A2. Social reputation | E12: 4 | F12: V3. Inadequate privacy/security interfaces (poor interface design) | G12: 3 | H12: T8. Overhearing/recording logging/blogging activity | I12: 3 | K12: 9 | L12: 134
B13: R.A2.V3.T3. | C13: 10 | D13: A2. Social reputation | E13: 4 | F13: V3. Inadequate privacy/security interfaces (poor interface design) | G13: 3 | H13: T3. Intentional misuse, unauthorised disclosure, modification or destruction of individual’s data | I13: 5 | K13: 10 | L13: 105
B14: R.A2.V3.T2. | C14: 9 | D14: A2. Social reputation | E14: 4 | F14: V3. Inadequate privacy/security interfaces (poor interface design) | G14: 3 | H14: T2. Identity theft | I14: 4 | K14: 11 | L14: 51
B15: R.A3.V25.T14. | C15: 11 | D15: A3. Professional reputation | E15: 4 | F15: V25. Inadequate user education, lack of awareness and training particularly in security and privacy; lack of context awareness | G15: 5 | H15: T14. Individual being negligent, careless, making mistakes; e.g. does not follow procedures appropriately, e.g. clicks through | I15: 4 | K15: 12 | L15: 10
B16: R.A3.V25.T8. | C16: 10 | D16: A3. Professional reputation | E16: 4 | F16: V25. Inadequate user education, lack of awareness and training particularly in security and privacy; lack of context awareness | G16: 5 | H16: T8. Overhearing/recording logging/blogging activity | I16: 3 | K16: 13 | L16: 0
B17: R.A3.V25.T7. | C17: 9 | D17: A3. Professional reputation | E17: 4 | F17: V25. Inadequate user education, lack of awareness and training particularly in security and privacy; lack of context awareness | G17: 5 | H17: T7. Malicious (logical) attacks on devices and systems | I17: 2 | L17: =SUM(L4:L16) -> 522
B18: R.A3.V25.T6. | C18: 11 | D18: A3. Professional reputation | E18: 4 | F18: V25. Inadequate user education, lack of awareness and training particularly in security and privacy; lack of context awareness | G18: 5 | H18: T6. Malicious physical attacks (theft, vandalism, misuse, etc.) | I18: 4
B19: R.A3.V25.T3. | C19: 12 | D19: A3. Professional reputation | E19: 4 | F19: V25. Inadequate user education, lack of awareness and training particularly in security and privacy; lack of context awareness | G19: 5 | H19: T3. Intentional misuse, unauthorised disclosure, modification or destruction of individual’s data | I19: 5
B20: R.A3.V25.T2. | C20: 11 | D20: A3. Professional reputation | E20: 4 | F20: V25. Inadequate user education, lack of awareness and training particularly in security and privacy; lack of context awareness | G20: 5 | H20: T2. Identity theft | I20: 4
B21: R.A3.V25.T1. | C21: 11 | D21: A3. Professional reputation | E21: 4 | F21: V25. Inadequate user education, lack of awareness and training particularly in security and privacy; lack of context awareness | G21: 5 | H21: T1. Accidental loss of device | I21: 4
B22: R.A3.V3.T14. | C22: 9 | D22: A3. Professional reputation | E22: 4 | F22: V3. Inadequate privacy/security interfaces (poor interface design) | G22: 3 | H22: T14. Individual being negligent, careless, making mistakes; e.g. does not follow procedures appropriately, e.g. clicks through | I22: 4
B23: R.A3.V3.T8. | C23: 8 | D23: A3. Professional reputation | E23: 4 | F23: V3. Inadequate privacy/security interfaces (poor interface design) | G23: 3 | H23: T8. Overhearing/recording logging/blogging activity | I23: 3
B24: R.A3.V3.T3. | C24: 10 | D24: A3. Professional reputation | E24: 4 | F24: V3. Inadequate privacy/security interfaces (poor interface design) | G24: 3 | H24: T3. Intentional misuse, unauthorised disclosure, modification or destruction of individual’s data | I24: 5
B25: R.A3.V3.T2. | C25: 9 | D25: A3. Professional reputation | E25: 4 | F25: V3. Inadequate privacy/security interfaces (poor interface design) | G25: 3 | H25: T2. Identity theft | I25: 4
B26: R.A6.V25.T14. | C26: 10 | D26: A6. Life-logging services | E26: 3 | F26: V25. Inadequate user education, lack of awareness and training particularly in security and privacy; lack of context awareness | G26: 5 | H26: T14. Individual being negligent, careless, making mistakes; e.g. does not follow procedures appropriately, e.g. clicks through | I26: 4
B27: R.A6.V25.T8. | C27: 9 | D27: A6. Life-logging services | E27: 3 | F27: V25. Inadequate user education, lack of awareness and training particularly in security and privacy; lack of context awareness | G27: 5 | H27: T8. Overhearing/recording logging/blogging activity | I27: 3
B28: R.A6.V25.T7. | C28: 8 | D28: A6. Life-logging services | E28: 3 | F28: V25. Inadequate user education, lack of awareness and training particularly in security and privacy; lack of context awareness | G28: 5 | H28: T7. Malicious (logical) attacks on devices and systems | I28: 2
B29: R.A6.V25.T6. | C29: 10 | D29: A6. Life-logging services | E29: 3 | F29: V25. Inadequate user education, lack of awareness and training particularly in security and privacy; lack of context awareness | G29: 5 | H29: T6. Malicious physical attacks (theft, vandalism, misuse, etc.) | I29: 4
B30: R.A6.V25.T3. | C30: 11 | D30: A6. Life-logging services | E30: 3 | F30: V25. Inadequate user education, lack of awareness and training particularly in security and privacy; lack of context awareness | G30: 5 | H30: T3. Intentional misuse, unauthorised disclosure, modification or destruction of individual’s data | I30: 5
B31: R.A6.V25.T2. | C31: 10 | D31: A6. Life-logging services | E31: 3 | F31: V25. Inadequate user education, lack of awareness and training particularly in security and privacy; lack of context awareness | G31: 5 | H31: T2. Identity theft | I31: 4
B32: R.A6.V25.T1. | C32: 10 | D32: A6. Life-logging services | E32: 3 | F32: V25. Inadequate user education, lack of awareness and training particularly in security and privacy; lack of context awareness | G32: 5 | H32: T1. Accidental loss of device | I32: 4
B33: R.A6.V3.T14. | C33: 8 | D33: A6. Life-logging services | E33: 3 | F33: V3. Inadequate privacy/security interfaces (poor interface design) | G33: 3 | H33: T14. Individual being negligent, careless, making mistakes; e.g. does not follow procedures appropriately, e.g. clicks through | I33: 4
B34: R.A6.V3.T8. | C34: 7 | D34: A6. Life-logging services | E34: 3 | F34: V3. Inadequate privacy/security interfaces (poor interface design) | G34: 3 | H34: T8. Overhearing/recording logging/blogging activity | I34: 3
B35: R.A6.V3.T3. | C35: 9 | D35: A6. Life-logging services | E35: 3 | F35: V3. Inadequate privacy/security interfaces (poor interface design) | G35: 3 | H35: T3. Intentional misuse, unauthorised disclosure, modification or destruction of individual’s data | I35: 5
B36: R.A6.V3.T2. | C36: 8 | D36: A6. Life-logging services | E36: 3 | F36: V3. Inadequate privacy/security interfaces (poor interface design) | G36: 3 | H36: T2. Identity theft | I36: 4
B37: R.A6.V16.T18. | C37: 10 | D37: A6. Life-logging services | E37: 3 | F37: V16. Lack of secure transmission and storage of data; also includes lack of (usable) transmission control (who gets the data) | G37: 5 | H37: T18. Monitoring and surveillance | I37: 4
B38: R.A6.V16.T17. | C38: 11 | D38: A6. Life-logging services | E38: 3 | F38: V16. Lack of secure transmission and storage of data; also includes lack of (usable) transmission control (who gets the data) | G38: 5 | H38: T17. Data mining and profiling (large-scale, excessive and/or inappropriate) | I38: 5
B39: R.A6.V14.T12. | C39: 7 | D39: A6. Life-logging services | E39: 3 | F39: V14. Lack of (usable) privacy controls, e.g., overly permissive defaults, too coarse granularity, ... | G39: 2 | H39: T12. Vested interests | I39: 4
B40: R.A6.V4.T12. | C40: 9 | D40: A6. Life-logging services | E40: 3 | F40: V4. Increase in centralization of data storage and processing and over-reliance on these centralised facilities | G40: 4 | H40: T12. Vested interests | I40: 4
B41: R.A15.V28.T12. | C41: 8 | D41: A15. Databases of aggregated data | E41: 3.2 | F41: V28. Data linkability / lifelogging data can be aggregated with other data | G41: 3 | H41: T12. Vested interests | I41: 4
B42: R.A15.V23.T12. | C42: 9 | D42: A15. Databases of aggregated data | E42: 3.2 | F42: V23. Lack of transparency and “social translucency”, i.e., audit logs (who accessed my profile/data) | G42: 4 | H42: T12. Vested interests | I42: 4
B43: R.A15.V16.T18. | C43: 10 | D43: A15. Databases of aggregated data | E43: 3.2 | F43: V16. Lack of secure transmission and storage of data; also includes lack of (usable) transmission control (who gets the data) | G43: 5 | H43: T18. Monitoring and surveillance | I43: 4
B44: R.A15.V16.T17. | C44: 11 | D44: A15. Databases of aggregated data | E44: 3.2 | F44: V16. Lack of secure transmission and storage of data; also includes lack of (usable) transmission control (who gets the data) | G44: 5 | H44: T17. Data mining and profiling (large-scale, excessive and/or inappropriate) | I44: 5
B45: R.A15.V16.T3. | C45: 11 | D45: A15. Databases of aggregated data | E45: 3.2 | F45: V16. Lack of secure transmission and storage of data; also includes lack of (usable) transmission control (who gets the data) | G45: 5 | H45: T3. Intentional misuse, unauthorised disclosure, modification or destruction of individual’s data | I45: 5
B46: R.A15.V6.T12. | C46: 8 | D46: A15. Databases of aggregated data | E46: 3.2 | F46: V6. Lack of appropriate, common or harmonized legislation in EU Member States | G46: 3 | H46: T12. Vested interests | I46: 4
B47: R.A15.V4.T12. | C47: 9 | D47: A15. Databases of aggregated data | E47: 3.2 | F47: V4. Increase in centralization of data storage and processing and over-reliance on these centralised facilities | G47: 4 | H47: T12. Vested interests | I47: 4
B48: R.A15.V2.T12. | C48: 7 | D48: A15. Databases of aggregated data | E48: 3.2 | F48: V2. Inadequate policy framework | G48: 2 | H48: T12. Vested interests | I48: 4
B49: R.A2.V28.T12. | C49: 9 | D49: A2. Social reputation | E49: 4 | F49: V28. Data linkability / lifelogging data can be aggregated with other data | G49: 3 | H49: T12. Vested interests | I49: 4
B50: R.A2.V25.T12. | C50: 11 | D50: A2. Social reputation | E50: 4 | F50: V25. Inadequate user education, lack of awareness and training particularly in security and privacy; lack of context awareness | G50: 5 | H50: T12. Vested interests | I50: 4
B51: R.A2.V23.T12. | C51: 10 | D51: A2. Social reputation | E51: 4 | F51: V23. Lack of transparency and “social translucency”, i.e., audit logs (who accessed my profile/data) | G51: 4 | H51: T12. Vested interests | I51: 4
B52: R.A3.V28.T12. | C52: 9 | D52: A3. Professional reputation | E52: 4 | F52: V28. Data linkability / lifelogging data can be aggregated with other data | G52: 3 | H52: T12. Vested interests | I52: 4
B53: R.A3.V25.T12. | C53: 11 | D53: A3. Professional reputation | E53: 4 | F53: V25. Inadequate user education, lack of awareness and training particularly in security and privacy; lack of context awareness | G53: 5 | H53: T12. Vested interests | I53: 4
B54: R.A3.V23.T12. | C54: 10 | D54: A3. Professional reputation | E54: 4 | F54: V23. Lack of transparency and “social translucency”, i.e., audit logs (who accessed my profile/data) | G54: 4 | H54: T12. Vested interests | I54: 4
B55: R.A4.V28.T12. | C55: 9 | D55: A4. Sentiments | E55: 4 | F55: V28. Data linkability / lifelogging data can be aggregated with other data | G55: 3 | H55: T12. Vested interests | I55: 4
B56: R.A6.V28.T12. | C56: 8 | D56: A6. Life-logging services | E56: 3 | F56: V28. Data linkability / lifelogging data can be aggregated with other data | G56: 3 | H56: T12. Vested interests | I56: 4
B57: R.A7.V28.T12. | C57: 8 | D57: A7. Social networking services | E57: 3.2 | F57: V28. Data linkability / lifelogging data can be aggregated with other data | G57: 3 | H57: T12. Vested interests | I57: 4
B58: R.A7.V23.T12. | C58: 9 | D58: A7. Social networking services | E58: 3.2 | F58: V23. Lack of transparency and “social translucency”, i.e., audit logs (who accessed my profile/data) | G58: 4 | H58: T12. Vested interests | I58: 4
B59: R.A4.V28.T3. | C59: 10 | D59: A4. Sentiments | E59: 4 | F59: V28. Data linkability / lifelogging data can be aggregated with other data | G59: 3 | H59: T3. Intentional misuse, unauthorised disclosure, modification or destruction of individual’s data | I59: 5
B60: R.A4.V28.T2. | C60: 9 | D60: A4. Sentiments | E60: 4 | F60: V28. Data linkability / lifelogging data can be aggregated with other data | G60: 3 | H60: T2. Identity theft | I60: 4
B61: R.A4.V25.T14. | C61: 11 | D61: A4. Sentiments | E61: 4 | F61: V25. Inadequate user education, lack of awareness and training particularly in security and privacy; lack of context awareness | G61: 5 | H61: T14. Individual being negligent, careless, making mistakes; e.g. does not follow procedures appropriately, e.g. clicks through | I61: 4
B62: R.A4.V25.T6. | C62: 11 | D62: A4. Sentiments | E62: 4 | F62: V25. Inadequate user education, lack of awareness and training particularly in security and privacy; lack of context awareness | G62: 5 | H62: T6. Malicious physical attacks (theft, vandalism, misuse, etc.) | I62: 4
B63: R.A4.V25.T3. | C63: 12 | D63: A4. Sentiments | E63: 4 | F63: V25. Inadequate user education, lack of awareness and training particularly in security and privacy; lack of context awareness | G63: 5 | H63: T3. Intentional misuse, unauthorised disclosure, modification or destruction of individual’s data | I63: 5
B64: R.A4.V25.T2. | C64: 11 | D64: A4. Sentiments | E64: 4 | F64: V25. Inadequate user education, lack of awareness and training particularly in security and privacy; lack of context awareness | G64: 5 | H64: T2. Identity theft | I64: 4
B65: R.A4.V25.T1. | C65: 11 | D65: A4. Sentiments | E65: 4 | F65: V25. Inadequate user education, lack of awareness and training particularly in security and privacy; lack of context awareness | G65: 5 | H65: T1. Accidental loss of device | I65: 4
B66: R.A4.V15.T14. | C66: 9 | D66: A4. Sentiments | E66: 4 | F66: V15. Lack of (usable) logging controls/policies/ reminders. E.g. capturing some embarrassing scene of someone else or yourself | G66: 3 | H66: T14. Individual being negligent, careless, making mistakes; e.g. does not follow procedures appropriately, e.g. clicks through | I66: 4
B67: R.A4.V3.T14. | C67: 9 | D67: A4. Sentiments | E67: 4 | F67: V3. Inadequate privacy/security interfaces (poor interface design) | G67: 3 | H67: T14. Individual being negligent, careless, making mistakes; e.g. does not follow procedures appropriately, e.g. clicks through | I67: 4
B68: R.A4.V3.T3. | C68: 10 | D68: A4. Sentiments | E68: 4 | F68: V3. Inadequate privacy/security interfaces (poor interface design) | G68: 3 | H68: T3. Intentional misuse, unauthorised disclosure, modification or destruction of individual’s data | I68: 5
B69: R.A4.V3.T2. | C69: 9 | D69: A4. Sentiments | E69: 4 | F69: V3. Inadequate privacy/security interfaces (poor interface design) | G69: 3 | H69: T2. Identity theft | I69: 4
B70: R.A14.V25.T18. | C70: 9 | D70: A14. External recognition / monitoring system | E70: 2 | F70: V25. Inadequate user education, lack of awareness and training particularly in security and privacy; lack of context awareness | G70: 5 | H70: T18. Monitoring and surveillance | I70: 4
B71: R.A14.V25.T17. | C71: 10 | D71: A14. External recognition / monitoring system | E71: 2 | F71: V25. Inadequate user education, lack of awareness and training particularly in security and privacy; lack of context awareness | G71: 5 | H71: T17. Data mining and profiling (large-scale, excessive and/or inappropriate) | I71: 5
B72: R.A14.V25.T16. | C72: 9 | D72: A14. External recognition / monitoring system | E72: 2 | F72: V25. Inadequate user education, lack of awareness and training particularly in security and privacy; lack of context awareness | G72: 5 | H72: T16. Changes in perception of privacy and / or privacy needs | I72: 4
B73: R.A14.V25.T14. | C73: 9 | D73: A14. External recognition / monitoring system | E73: 2 | F73: V25. Inadequate user education, lack of awareness and training particularly in security and privacy; lack of context awareness | G73: 5 | H73: T14. Individual being negligent, careless, making mistakes; e.g. does not follow procedures appropriately, e.g. clicks through | I73: 4
B74: R.A14.V25.T3. | C74: 10 | D74: A14. External recognition / monitoring system | E74: 2 | F74: V25. Inadequate user education, lack of awareness and training particularly in security and privacy; lack of context awareness | G74: 5 | H74: T3. Intentional misuse, unauthorised disclosure, modification or destruction of individual’s data | I74: 5
B75: R.A14.V2.T18. | C75: 6 | D75: A14. External recognition / monitoring system | E75: 2 | F75: V2. Inadequate policy framework | G75: 2 | H75: T18. Monitoring and surveillance | I75: 4
B76: R.A14.V2.T17. | C76: 7 | D76: A14. External recognition / monitoring system | E76: 2 | F76: V2. Inadequate policy framework | G76: 2 | H76: T17. Data mining and profiling (large-scale, excessive and/or inappropriate) | I76: 5
B77: R.A14.V2.T8. | C77: 5 | D77: A14. External recognition / monitoring system | E77: 2 | F77: V2. Inadequate policy framework | G77: 2 | H77: T8. Overhearing/recording logging/blogging activity | I77: 3
B78: R.A14.V2.T3. | C78: 7 | D78: A14. External recognition / monitoring system | E78: 2 | F78: V2. Inadequate policy framework | G78: 2 | H78: T3. Intentional misuse, unauthorised disclosure, modification or destruction of individual’s data | I78: 5
B79: R.A7.V27.T12. | C79: 9 | D79: A7. Social networking services | E79: 3.2 | F79: V27. Cognitive biases – Some people accept what they should not… | G79: 4 | H79: T12. Vested interests | I79: 4
B80: R.A7.V25.T12. | C80: 10 | D80: A7. Social networking services | E80: 3.2 | F80: V25. Inadequate user education, lack of awareness and training particularly in security and privacy; lack of context awareness | G80: 5 | H80: T12. Vested interests | I80: 4
B81: R.A7.V17.T12. | C81: 9 | D81: A7. Social networking services | E81: 3.2 | F81: V17. Lack of mechanisms to validate reputation or trustworthiness of service provider | G81: 4 | H81: T12. Vested interests | I81: 4
B82: R.A7.V6.T12. | C82: 8 | D82: A7. Social networking services | E82: 3.2 | F82: V6. Lack of appropriate, common or harmonized legislation in EU Member States | G82: 3 | H82: T12. Vested interests | I82: 4
B83: R.A7.V2.T12. | C83: 7 | D83: A7. Social networking services | E83: 3.2 | F83: V2. Inadequate policy framework | G83: 2 | H83: T12. Vested interests | I83: 4
B84: R.A6.V22.T17. | C84: 10 | D84: A6. Life-logging services | E84: 3 | F84: V22. Lack of appropriate assurance procedures (e.g. third party audits) or enforcement of such, regarding the implementation of security controls, especially from the state, other regulatory and public authority | G84: 4 | H84: T17. Data mining and profiling (large-scale, excessive and/or inappropriate) | I84: 5
B85: R.A6.V22.T7. | C85: 7 | D85: A6. Life-logging services | E85: 3 | F85: V22. Lack of appropriate assurance procedures (e.g. third party audits) or enforcement of such, regarding the implementation of security controls, especially from the state, other regulatory and public authority | G85: 4 | H85: T7. Malicious (logical) attacks on devices and systems | I85: 2
B86: R.A6.V22.T4. | C86: 10 | D86: A6. Life-logging services | E86: 3 | F86: V22. Lack of appropriate assurance procedures (e.g. third party audits) or enforcement of such, regarding the implementation of security controls, especially from the state, other regulatory and public authority | G86: 4 | H86: T4. Unintentional misuse, unauthorised disclosure, modification or destruction of individual’s data | I86: 5
B87: R.A6.V22.T3. | C87: 10 | D87: A6. Life-logging services | E87: 3 | F87: V22. Lack of appropriate assurance procedures (e.g. third party audits) or enforcement of such, regarding the implementation of security controls, especially from the state, other regulatory and public authority | G87: 4 | H87: T3. Intentional misuse, unauthorised disclosure, modification or destruction of individual’s data | I87: 5
B88: R.A6.V18.T18. | C88: 7 | D88: A6. Life-logging services | E88: 3 | F88: V18. Lack of noticeable (and usable) notification systems | G88: 2 | H88: T18. Monitoring and surveillance | I88: 4
B89: R.A6.V18.T17. | C89: 8 | D89: A6. Life-logging services | E89: 3 | F89: V18. Lack of noticeable (and usable) notification systems | G89: 2 | H89: T17. Data mining and profiling (large-scale, excessive and/or inappropriate) | I89: 5
B90: R.A6.V18.T14. | C90: 7 | D90: A6. Life-logging services | E90: 3 | F90: V18. Lack of noticeable (and usable) notification systems | G90: 2 | H90: T14. Individual being negligent, careless, making mistakes; e.g. does not follow procedures appropriately, e.g. clicks through | I90: 4
B91: R.A6.V18.T8. | C91: 6 | D91: A6. Life-logging services | E91: 3 | F91: V18. Lack of noticeable (and usable) notification systems | G91: 2 | H91: T8. Overhearing/recording logging/blogging activity | I91: 3
B92: R.A6.V18.T2. | C92: 7 | D92: A6. Life-logging services | E92: 3 | F92: V18. Lack of noticeable (and usable) notification systems | G92: 2 | H92: T2. Identity theft | I92: 4
B93: R.A6.V14.T18. | C93: 7 | D93: A6. Life-logging services | E93: 3 | F93: V14. Lack of (usable) privacy controls, e.g., overly permissive defaults, too coarse granularity, ... | G93: 2 | H93: T18. Monitoring and surveillance | I93: 4
B94: R.A6.V14.T17. | C94: 8 | D94: A6. Life-logging services | E94: 3 | F94: V14. Lack of (usable) privacy controls, e.g., overly permissive defaults, too coarse granularity, ... | G94: 2 | H94: T17. Data mining and profiling (large-scale, excessive and/or inappropriate) | I94: 5
B95: R.A6.V14.T16. | C95: 7 | D95: A6. Life-logging services | E95: 3 | F95: V14. Lack of (usable) privacy controls, e.g., overly permissive defaults, too coarse granularity, ... | G95: 2 | H95: T16. Changes in perception of privacy and / or privacy needs | I95: 4
B96: R.A6.V14.T14. | C96: 7 | D96: A6. Life-logging services | E96: 3 | F96: V14. Lack of (usable) privacy controls, e.g., overly permissive defaults, too coarse granularity, ... | G96: 2 | H96: T14. Individual being negligent, careless, making mistakes; e.g. does not follow procedures appropriately, e.g. clicks through | I96: 4
B97: R.A6.V14.T8. | C97: 6 | D97: A6. Life-logging services | E97: 3 | F97: V14. Lack of (usable) privacy controls, e.g., overly permissive defaults, too coarse granularity, ... | G97: 2 | H97: T8. Overhearing/recording logging/blogging activity | I97: 3
B98: R.A6.V14.T7. | C98: 5 | D98: A6. Life-logging services | E98: 3 | F98: V14. Lack of (usable) privacy controls, e.g., overly permissive defaults, too coarse granularity, ... | G98: 2 | H98: T7. Malicious (logical) attacks on devices and systems | I98: 2
B99: R.A6.V14.T4. | C99: 8 | D99: A6. Life-logging services | E99: 3 | F99: V14. Lack of (usable) privacy controls, e.g., overly permissive defaults, too coarse granularity, ... | G99: 2 | H99: T4. Unintentional misuse, unauthorised disclosure, modification or destruction of individual’s data | I99: 5
B100: R.A6.V14.T3. | C100: 8 | D100: A6. Life-logging services | E100: 3 | F100: V14. Lack of (usable) privacy controls, e.g., overly permissive defaults, too coarse granularity, ... | G100: 2 | H100: T3. Intentional misuse, unauthorised disclosure, modification or destruction of individual’s data | I100: 5
B101: R.A6.V14.T2. | C101: 7 | D101: A6. Life-logging services | E101: 3 | F101: V14. Lack of (usable) privacy controls, e.g., overly permissive defaults, too coarse granularity, ... | G101: 2 | H101: T2. Identity theft | I101: 4
B102: R.A6.V13.T18. | C102: 8 | D102: A6. Life-logging services | E102: 3 | F102: V13. Lack of revocation/correction/deletion mechanisms | G102: 3 | H102: T18. Monitoring and surveillance | I102: 4
B103: R.A6.V13.T17. | C103: 9 | D103: A6. Life-logging services | E103: 3 | F103: V13. Lack of revocation/correction/deletion mechanisms | G103: 3 | H103: T17. Data mining and profiling (large-scale, excessive and/or inappropriate) | I103: 5
B104: R.A6.V13.T4. | C104: 9 | D104: A6. Life-logging services | E104: 3 | F104: V13. Lack of revocation/correction/deletion mechanisms | G104: 3 | H104: T4. Unintentional misuse, unauthorised disclosure, modification or destruction of individual’s data | I104: 5
B105: R.A6.V13.T3. | C105: 9 | D105: A6. Life-logging services | E105: 3 | F105: V13. Lack of revocation/correction/deletion mechanisms | G105: 3 | H105: T3. Intentional misuse, unauthorised disclosure, modification or destruction of individual’s data | I105: 5
B106: R.A6.V6.T8. | C106: 7 | D106: A6. Life-logging services | E106: 3 | F106: V6. Lack of appropriate, common or harmonized legislation in EU Member States | G106: 3 | H106: T8. Overhearing/recording logging/blogging activity | I106: 3
B107: R.A6.V6.T3. | C107: 9 | D107: A6. Life-logging services | E107: 3 | F107: V6. Lack of appropriate, common or harmonized legislation in EU Member States | G107: 3 | H107: T3. Intentional misuse, unauthorised disclosure, modification or destruction of individual’s data | I107: 5
B108: R.A6.V4.T18. | C108: 9 | D108: A6. Life-logging services | E108: 3 | F108: V4. Increase in centralization of data storage and processing and over-reliance on these centralised facilities | G108: 4 | H108: T18. Monitoring and surveillance | I108: 4
B109: R.A6.V4.T17. | C109: 10 | D109: A6. Life-logging services | E109: 3 | F109: V4. Increase in centralization of data storage and processing and over-reliance on these centralised facilities | G109: 4 | H109: T17. Data mining and profiling (large-scale, excessive and/or inappropriate) | I109: 5
B110: R.A6.V4.T16. | C110: 9 | D110: A6. Life-logging services | E110: 3 | F110: V4. Increase in centralization of data storage and processing and over-reliance on these centralised facilities | G110: 4 | H110: T16. Changes in perception of privacy and / or privacy needs | I110: 4
B111: R.A6.V4.T7. | C111: 7 | D111: A6. Life-logging services | E111: 3 | F111: V4. Increase in centralization of data storage and processing and over-reliance on these centralised facilities | G111: 4 | H111: T7. Malicious (logical) attacks on devices and systems | I111: 2
B112: R.A6.V4.T4. | C112: 10 | D112: A6. Life-logging services | E112: 3 | F112: V4. Increase in centralization of data storage and processing and over-reliance on these centralised facilities | G112: 4 | H112: T4. Unintentional misuse, unauthorised disclosure, modification or destruction of individual’s data | I112: 5
B113: R.A6.V4.T3. | C113: 10 | D113: A6. Life-logging services | E113: 3 | F113: V4. Increase in centralization of data storage and processing and over-reliance on these centralised facilities | G113: 4 | H113: T3. Intentional misuse, unauthorised disclosure, modification or destruction of individual’s data | I113: 5
B114: R.A6.V3.T18. | C114: 8 | D114: A6. Life-logging services | E114: 3 | F114: V3. Inadequate privacy/security interfaces (poor interface design) | G114: 3 | H114: T18. Monitoring and surveillance | I114: 4
B115: R.A6.V3.T4. | C115: 9 | D115: A6. Life-logging services | E115: 3 | F115: V3. Inadequate privacy/security interfaces (poor interface design) | G115: 3 | H115: T4. Unintentional misuse, unauthorised disclosure, modification or destruction of individual’s data | I115: 5
B116: R.A6.V2.T8. | C116: 6 | D116: A6. Life-logging services | E116: 3 | F116: V2. Inadequate policy framework | G116: 2 | H116: T8. Overhearing/recording logging/blogging activity | I116: 3
B117: R.A6.V2.T3. | C117: 8 | D117: A6. Life-logging services | E117: 3 | F117: V2. Inadequate policy framework | G117: 2 | H117: T3. Intentional misuse, unauthorised disclosure, modification or destruction of individual’s data | I117: 5
B118: R.A7.V28.T18. | C118: 8 | D118: A7. Social networking services | E118: 3.2 | F118: V28. Data linkability / lifelogging data can be aggregated with other data | G118: 3 | H118: T18. Monitoring and surveillance | I118: 4
B119: R.A7.V28.T17. | C119: 9 | D119: A7. Social networking services | E119: 3.2 | F119: V28. Data linkability / lifelogging data can be aggregated with other data | G119: 3 | H119: T17. Data mining and profiling (large-scale, excessive and/or inappropriate) | I119: 5
B120: R.A7.V28.T8. | C120: 7 | D120: A7. Social networking services | E120: 3.2 | F120: V28. Data linkability / lifelogging data can be aggregated with other data | G120: 3 | H120: T8. Overhearing/recording logging/blogging activity | I120: 3
B121: R.A7.V28.T3. | C121: 9 | D121: A7. Social networking services | E121: 3.2 | F121: V28. Data linkability / lifelogging data can be aggregated with other data | G121: 3 | H121: T3. Intentional misuse, unauthorised disclosure, modification or destruction of individual’s data | I121: 5
B122: R.A7.V28.T2. | C122: 8 | D122: A7. Social networking services | E122: 3.2 | F122: V28. Data linkability / lifelogging data can be aggregated with other data | G122: 3 | H122: T2. Identity theft | I122: 4
B123: R.A7.V27.T18. | C123: 9 | D123: A7. Social networking services | E123: 3.2 | F123: V27. Cognitive biases – Some people accept what they should not… | G123: 4 | H123: T18. Monitoring and surveillance | I123: 4
B124: R.A7.V27.T17. | C124: 10 | D124: A7. Social networking services | E124: 3.2 | F124: V27. Cognitive biases – Some people accept what they should not… | G124: 4 | H124: T17. Data mining and profiling (large-scale, excessive and/or inappropriate) | I124: 5
B125: R.A7.V27.T16. | C125: 9 | D125: A7. Social networking services | E125: 3.2 | F125: V27. Cognitive biases – Some people accept what they should not… | G125: 4 | H125: T16. Changes in perception of privacy and / or privacy needs | I125: 4
B126: R.A7.V27.T8. | C126: 8 | D126: A7. Social networking services | E126: 3.2 | F126: V27. Cognitive biases – Some people accept what they should not… | G126: 4 | H126: T8. Overhearing/recording logging/blogging activity | I126: 3
B127: R.A7.V25.T18. | C127: 10 | D127: A7. Social networking services | E127: 3.2 | F127: V25. Inadequate user education, lack of awareness and training particularly in security and privacy; lack of context awareness | G127: 5 | H127: T18. Monitoring and surveillance | I127: 4
B128: R.A7.V25.T17. | C128: 11 | D128: A7. Social networking services | E128: 3.2 | F128: V25. Inadequate user education, lack of awareness and training particularly in security and privacy; lack of context awareness | G128: 5 | H128: T17. Data mining and profiling (large-scale, excessive and/or inappropriate) | I128: 5
B129: R.A7.V25.T16. | C129: 10 | D129: A7. Social networking services | E129: 3.2 | F129: V25. Inadequate user education, lack of awareness and training particularly in security and privacy; lack of context awareness | G129: 5 | H129: T16. Changes in perception of privacy and / or privacy needs | I129: 4
B130: R.A7.V25.T14. | C130: 10 | D130: A7. Social networking services | E130: 3.2 | F130: V25. Inadequate user education, lack of awareness and training particularly in security and privacy; lack of context awareness | G130: 5 | H130: T14. Individual being negligent, careless, making mistakes; e.g. does not follow procedures appropriately, e.g. clicks through | I130: 4
B131: R.A7.V25.T8. | C131: 9 | D131: A7. Social networking services | E131: 3.2 | F131: V25. Inadequate user education, lack of awareness and training particularly in security and privacy; lack of context awareness | G131: 5 | H131: T8. Overhearing/recording logging/blogging activity | I131: 3
B132: R.A7.V25.T7. | C132: 8 | D132: A7. Social networking services | E132: 3.2 | F132: V25. Inadequate user education, lack of awareness and training particularly in security and privacy; lack of context awareness | G132: 5 | H132: T7. Malicious (logical) attacks on devices and systems | I132: 2
B133: R.A7.V25.T6. | C133: 10 | D133: A7. Social networking services | E133: 3.2 | F133: V25. Inadequate user education, lack of awareness and training particularly in security and privacy; lack of context awareness | G133: 5 | H133: T6. Malicious physical attacks (theft, vandalism, misuse, etc.) | I133: 4
B134: R.A7.V25.T3. | C134: 11 | D134: A7. Social networking services | E134: 3.2 | F134: V25. Inadequate user education, lack of awareness and training particularly in security and privacy; lack of context awareness | G134: 5 | H134: T3. Intentional misuse, unauthorised disclosure, modification or destruction of individual’s data | I134: 5
B135: R.A7.V25.T2. | C135: 10 | D135: A7. Social networking services | E135: 3.2 | F135: V25. Inadequate user education, lack of awareness and training particularly in security and privacy; lack of context awareness | G135: 5 | H135: T2. Identity theft | I135: 4
B136: R.A7.V25.T1. | C136: 10 | D136: A7. Social networking services | E136: 3.2 | F136: V25. Inadequate user education, lack of awareness and training particularly in security and privacy; lack of context awareness | G136: 5 | H136: T1. Accidental loss of device | I136: 4
B137: R.A7.V23.T18. | C137: 9 | D137: A7. Social networking services | E137: 3.2 | F137: V23. Lack of transparency and “social translucency”, i.e., audit logs (who accessed my profile/data) | G137: 4 | H137: T18. Monitoring and surveillance | I137: 4
B138: R.A7.V23.T17. | C138: 10 | D138: A7. Social networking services | E138: 3.2 | F138: V23. Lack of transparency and “social translucency”, i.e., audit logs (who accessed my profile/data) | G138: 4 | H138: T17. Data mining and profiling (large-scale, excessive and/or inappropriate) | I138: 5
B139: R.A7.V23.T8. | C139: 8 | D139: A7. Social networking services | E139: 3.2 | F139: V23. Lack of transparency and “social translucency”, i.e., audit logs (who accessed my profile/data) | G139: 4 | H139: T8. Overhearing/recording logging/blogging activity | I139: 3
B140: R.A7.V22.T18. | C140: 9 | D140: A7. Social networking services | E140: 3.2 | F140: V22. Lack of appropriate assurance procedures (e.g. third party audits) or enforcement of such, regarding the implementation of security controls, especially from the state, other regulatory and public authority | G140: 4 | H140: T18. Monitoring and surveillance | I140: 4
B141: R.A7.V22.T17. | C141: 10 | D141: A7. Social networking services | E141: 3.2 | F141: V22. Lack of appropriate assurance procedures (e.g. third party audits) or enforcement of such, regarding the implementation of security controls, especially from the state, other regulatory and public authority | G141: 4 | H141: T17. Data mining and profiling (large-scale, excessive and/or inappropriate) | I141: 5
B142: R.A7.V22.T7. | C142: 7 | D142: A7. Social networking services | E142: 3.2 | F142: V22. Lack of appropriate assurance procedures (e.g. third party audits) or enforcement of such, regarding the implementation of security controls, especially from the state, other regulatory and public authority | G142: 4 | H142: T7. Malicious (logical) attacks on devices and systems | I142: 2
B143: R.A7.V22.T4. | C143: 10 | D143: A7. Social networking services | E143: 3.2 | F143: V22. Lack of appropriate assurance procedures (e.g. third party audits) or enforcement of such, regarding the implementation of security controls, especially from the state, other regulatory and public authority | G143: 4 | H143: T4. Unintentional misuse, unauthorised disclosure, modification or destruction of individual’s data | I143: 5
B144: R.A7.V22.T3. | C144: 10 | D144: A7. Social networking services | E144: 3.2 | F144: V22. Lack of appropriate assurance procedures (e.g. third party audits) or enforcement of such, regarding the implementation of security controls, especially from the state, other regulatory and public authority | G144: 4 | H144: T3. Intentional misuse, unauthorised disclosure, modification or destruction of individual’s data | I144: 5
B145: R.A7.V18.T18. | C145: 7 | D145: A7. Social networking services | E145: 3.2 | F145: V18. Lack of noticeable (and usable) notification systems | G145: 2 | H145: T18. Monitoring and surveillance | I145: 4
B146: R.A7.V18.T17. | C146: 8 | D146: A7. Social networking services | E146: 3.2 | F146: V18. Lack of noticeable (and usable) notification systems | G146: 2 | H146: T17. Data mining and profiling (large-scale, excessive and/or inappropriate) | I146: 5
B147: R.A7.V18.T14. | C147: 7 | D147: A7. Social networking services | E147: 3.2 | F147: V18. Lack of noticeable (and usable) notification systems | G147: 2 | H147: T14. Individual being negligent, careless, making mistakes; e.g. does not follow procedures appropriately, e.g. clicks through | I147: 4
B148: R.A7.V18.T8. | C148: 6 | D148: A7. Social networking services | E148: 3.2 | F148: V18. Lack of noticeable (and usable) notification systems | G148: 2 | H148: T8. Overhearing/recording logging/blogging activity | I148: 3
B149: R.A7.V18.T2. | C149: 7 | D149: A7. Social networking services | E149: 3.2 | F149: V18. Lack of noticeable (and usable) notification systems | G149: 2 | H149: T2. Identity theft | I149: 4
B150: R.A7.V14.T18. | C150: 7 | D150: A7. Social networking services | E150: 3.2 | F150: V14. Lack of (usable) privacy controls, e.g., overly permissive defaults, too coarse granularity, ... | G150: 2 | H150: T18. Monitoring and surveillance | I150: 4
B151: R.A7.V14.T17. | C151: 8 | D151: A7. Social networking services | E151: 3.2 | F151: V14. Lack of (usable) privacy controls, e.g., overly permissive defaults, too coarse granularity, ... | G151: 2 | H151: T17. Data mining and profiling (large-scale, excessive and/or inappropriate) | I151: 5
B152: R.A7.V14.T16. | C152: 7 | D152: A7. Social networking services | E152: 3.2 | F152: V14. Lack of (usable) privacy controls, e.g., overly permissive defaults, too coarse granularity, ... | G152: 2 | H152: T16. Changes in perception of privacy and / or privacy needs | I152: 4
B153: R.A7.V14.T14. | C153: 7 | D153: A7. Social networking services | E153: 3.2 | F153: V14. Lack of (usable) privacy controls, e.g., overly permissive defaults, too coarse granularity, ... | G153: 2 | H153: T14. Individual being negligent, careless, making mistakes; e.g. does not follow procedures appropriately, e.g. clicks through | I153: 4
B154: R.A7.V14.T8. | C154: 6 | D154: A7. Social networking services | E154: 3.2 | F154: V14. Lack of (usable) privacy controls, e.g., overly permissive defaults, too coarse granularity, ... | G154: 2 | H154: T8. Overhearing/recording logging/blogging activity | I154: 3
B155: R.A7.V14.T7. | C155: 5 | D155: A7. Social networking services | E155: 3.2 | F155: V14. Lack of (usable) privacy controls, e.g., overly permissive defaults, too coarse granularity, ... | G155: 2 | H155: T7. Malicious (logical) attacks on devices and systems | I155: 2
B156: R.A7.V14.T4. | C156: 8 | D156: A7. Social networking services | E156: 3.2 | F156: V14. Lack of (usable) privacy controls, e.g., overly permissive defaults, too coarse granularity, ... | G156: 2 | H156: T4. Unintentional misuse, unauthorised disclosure, modification or destruction of individual’s data | I156: 5
B157: R.A7.V14.T3. | C157: 8 | D157: A7. Social networking services | E157: 3.2 | F157: V14. Lack of (usable) privacy controls, e.g., overly permissive defaults, too coarse granularity, ... | G157: 2 | H157: T3. Intentional misuse, unauthorised disclosure, modification or destruction of individual’s data | I157: 5
B158: R.A7.V14.T2. | C158: 7 | D158: A7. Social networking services | E158: 3.2 | F158: V14. Lack of (usable) privacy controls, e.g., overly permissive defaults, too coarse granularity, ... | G158: 2 | H158: T2. Identity theft | I158: 4
B159: R.A7.V13.T18. | C159: 8 | D159: A7. Social networking services | E159: 3.2 | F159: V13. Lack of revocation/correction/deletion mechanisms | G159: 3 | H159: T18. Monitoring and surveillance | I159: 4
B160: R.A7.V13.T17. | C160: 9 | D160: A7. Social networking services | E160: 3.2 | F160: V13. Lack of revocation/correction/deletion mechanisms | G160: 3 | H160: T17. Data mining and profiling (large-scale, excessive and/or inappropriate) | I160: 5
B161: R.A7.V13.T4. | C161: 9 | D161: A7. Social networking services | E161: 3.2 | F161: V13. Lack of revocation/correction/deletion mechanisms | G161: 3 | H161: T4. Unintentional misuse, unauthorised disclosure, modification or destruction of individual’s data | I161: 5
B162: R.A7.V13.T3. | C162: 9 | D162: A7. Social networking services | E162: 3.2 | F162: V13. Lack of revocation/correction/deletion mechanisms | G162: 3 | H162: T3. Intentional misuse, unauthorised disclosure, modification or destruction of individual’s data | I162: 5
B163: R.A7.V6.T18. | C163: 8 | D163: A7. Social networking services | E163: 3.2 | F163: V6. Lack of appropriate, common or harmonized legislation in EU Member States | G163: 3 | H163: T18. Monitoring and surveillance | I163: 4
B164: R.A7.V6.T17. | C164: 9 | D164: A7. Social networking services | E164: 3.2 | F164: V6. Lack of appropriate, common or harmonized legislation in EU Member States | G164: 3 | H164: T17. Data mining and profiling (large-scale, excessive and/or inappropriate) | I164: 5
B165: R.A7.V6.T8. | C165: 7 | D165: A7. Social networking services | E165: 3.2 | F165: V6. Lack of appropriate, common or harmonized legislation in EU Member States | G165: 3 | H165: T8. Overhearing/recording logging/blogging activity | I165: 3
B166: R.A7.V6.T3. | C166: 9 | D166: A7. Social networking services | E166: 3.2 | F166: V6. Lack of appropriate, common or harmonized legislation in EU Member States | G166: 3 | H166: T3. Intentional misuse, unauthorised disclosure, modification or destruction of individual’s data | I166: 5
B167: R.A7.V3.T18. | C167: 8 | D167: A7. Social networking services | E167: 3.2 | F167: V3. Inadequate privacy/security interfaces (poor interface design) | G167: 3 | H167: T18. Monitoring and surveillance | I167: 4
B168: R.A7.V3.T17. | C168: 9 | D168: A7. Social networking services | E168: 3.2 | F168: V3. Inadequate privacy/security interfaces (poor interface design) | G168: 3 | H168: T17. Data mining and profiling (large-scale, excessive and/or inappropriate) | I168: 5
B169: R.A7.V3.T16. | C169: 8 | D169: A7. Social networking services | E169: 3.2 | F169: V3. Inadequate privacy/security interfaces (poor interface design) | G169: 3 | H169: T16. Changes in perception of privacy and / or privacy needs | I169: 4
B170: R.A7.V3.T14. | C170: 8 | D170: A7. Social networking services | E170: 3.2 | F170: V3. Inadequate privacy/security interfaces (poor interface design) | G170: 3 | H170: T14. Individual being negligent, careless, making mistakes; e.g. does not follow procedures appropriately, e.g. clicks through | I170: 4
B171: R.A7.V3.T8. | C171: 7 | D171: A7. Social networking services | E171: 3.2 | F171: V3. Inadequate privacy/security interfaces (poor interface design) | G171: 3 | H171: T8. Overhearing/recording logging/blogging activity | I171: 3
B172: R.A7.V3.T4. | C172: 9 | D172: A7. Social networking services | E172: 3.2 | F172: V3. Inadequate privacy/security interfaces (poor interface design) | G172: 3 | H172: T4. Unintentional misuse, unauthorised disclosure, modification or destruction of individual’s data | I172: 5
B173: R.A7.V3.T3. | C173: 9 | D173: A7. Social networking services | E173: 3.2 | F173: V3. Inadequate privacy/security interfaces (poor interface design) | G173: 3 | H173: T3. Intentional misuse, unauthorised disclosure, modification or destruction of individual’s data | I173: 5
B174: R.A7.V3.T2. | C174: 8 | D174: A7. Social networking services | E174: 3.2 | F174: V3. Inadequate privacy/security interfaces (poor interface design) | G174: 3 | H174: T2. Identity theft | I174: 4
B175: R.A7.V2.T18. | C175: 7 | D175: A7. Social networking services | E175: 3.2 | F175: V2. Inadequate policy framework | G175: 2 | H175: T18. Monitoring and surveillance | I175: 4
B176: R.A7.V2.T17. | C176: 8 | D176: A7. Social networking services | E176: 3.2 | F176: V2. Inadequate policy framework | G176: 2 | H176: T17. Data mining and profiling (large-scale, excessive and/or inappropriate) | I176: 5
B177: R.A7.V2.T8. | C177: 6 | D177: A7. Social networking services | E177: 3.2 | F177: V2. Inadequate policy framework | G177: 2 | H177: T8. Overhearing/recording logging/blogging activity | I177: 3
B178: R.A7.V2.T3. | C178: 8 | D178: A7. Social networking services | E178: 3.2 | F178: V2. Inadequate policy framework | G178: 2 | H178: T3. Intentional misuse, unauthorised disclosure, modification or destruction of individual’s data | I178: 5
B179: R.A10.V25.T18. | C179: 10 | D179: A10. Smart phone / mobile phone / life-logging devices | E179: 3.2 | F179: V25. Inadequate user education, lack of awareness and training particularly in security and privacy; lack of context awareness | G179: 5 | H179: T18. Monitoring and surveillance | I179: 4
B180: R.A10.V25.T17. | C180: 11 | D180: A10. Smart phone / mobile phone / life-logging devices | E180: 3.2 | F180: V25. Inadequate user education, lack of awareness and training particularly in security and privacy; lack of context awareness | G180: 5 | H180: T17. Data mining and profiling (large-scale, excessive and/or inappropriate) | I180: 5
B181: R.A10.V25.T16. | C181: 10 | D181: A10. Smart phone / mobile phone / life-logging devices | E181: 3.2 | F181: V25. Inadequate user education, lack of awareness and training particularly in security and privacy; lack of context awareness | G181: 5 | H181: T16. Changes in perception of privacy and / or privacy needs | I181: 4
B182: R.A10.V25.T14. | C182: 10 | D182: A10. Smart phone / mobile phone / life-logging devices | E182: 3.2 | F182: V25. Inadequate user education, lack of awareness and training particularly in security and privacy; lack of context awareness | G182: 5 | H182: T14. Individual being negligent, careless, making mistakes; e.g. does not follow procedures appropriately, e.g. clicks through | I182: 4
B183: R.A10.V25.T8. | C183: 9 | D183: A10. Smart phone / mobile phone / life-logging devices | E183: 3.2 | F183: V25. Inadequate user education, lack of awareness and training particularly in security and privacy; lack of context awareness | G183: 5 | H183: T8. Overhearing/recording logging/blogging activity | I183: 3
B184: R.A10.V25.T7. | C184: 8 | D184: A10. Smart phone / mobile phone / life-logging devices | E184: 3.2 | F184: V25. Inadequate user education, lack of awareness and training particularly in security and privacy; lack of context awareness | G184: 5 | H184: T7. Malicious (logical) attacks on devices and systems | I184: 2
B185: R.A10.V25.T6. | C185: 10 | D185: A10. Smart phone / mobile phone / life-logging devices | E185: 3.2 | F185: V25. Inadequate user education, lack of awareness and training particularly in security and privacy; lack of context awareness | G185: 5 | H185: T6. Malicious physical attacks (theft, vandalism, misuse, etc.) | I185: 4
B186: R.A10.V25.T3. | C186: 11 | D186: A10. Smart phone / mobile phone / life-logging devices | E186: 3.2 | F186: V25. Inadequate user education, lack of awareness and training particularly in security and privacy; lack of context awareness | G186: 5 | H186: T3. Intentional misuse, unauthorised disclosure, modification or destruction of individual’s data | I186: 5
B187: R.A10.V25.T2. | C187: 10 | D187: A10. Smart phone / mobile phone / life-logging devices | E187: 3.2 | F187: V25. Inadequate user education, lack of awareness and training particularly in security and privacy; lack of context awareness | G187: 5 | H187: T2. Identity theft | I187: 4
B188: R.A10.V25.T1. | C188: 10 | D188: A10. Smart phone / mobile phone / life-logging devices | E188: 3.2 | F188: V25. Inadequate user education, lack of awareness and training particularly in security and privacy; lack of context awareness | G188: 5 | H188: T1. Accidental loss of device | I188: 4
B189: R.A10.V22.T18. | C189: 9 | D189: A10. Smart phone / mobile phone / life-logging devices | E189: 3.2 | F189: V22. Lack of appropriate assurance procedures (e.g. third party audits) or enforcement of such, regarding the implementation of security controls, especially from the state, other regulatory and public authority | G189: 4 | H189: T18. Monitoring and surveillance | I189: 4
B190: R.A10.V22.T17. | C190: 10 | D190: A10. Smart phone / mobile phone / life-logging devices | E190: 3.2 | F190: V22. Lack of appropriate assurance procedures (e.g. third party audits) or enforcement of such, regarding the implementation of security controls, especially from the state, other regulatory and public authority | G190: 4 | H190: T17. Data mining and profiling (large-scale, excessive and/or inappropriate) | I190: 5
B191: R.A10.V22.T7. | C191: 7 | D191: A10. Smart phone / mobile phone / life-logging devices | E191: 3.2 | F191: V22. Lack of appropriate assurance procedures (e.g. third party audits) or enforcement of such, regarding the implementation of security controls, especially from the state, other regulatory and public authority | G191: 4 | H191: T7. Malicious (logical) attacks on devices and systems | I191: 2
B192: R.A10.V22.T4. | C192: 10 | D192: A10. Smart phone / mobile phone / life-logging devices | E192: 3.2 | F192: V22. Lack of appropriate assurance procedures (e.g. third party audits) or enforcement of such, regarding the implementation of security controls, especially from the state, other regulatory and public authority | G192: 4 | H192: T4. Unintentional misuse, unauthorised disclosure, modification or destruction of individual’s data | I192: 5
B193: R.A10.V22.T3. | C193: 10 | D193: A10. Smart phone / mobile phone / life-logging devices | E193: 3.2 | F193: V22. Lack of appropriate assurance procedures (e.g. third party audits) or enforcement of such, regarding the implementation of security controls, especially from the state, other regulatory and public authority | G193: 4 | H193: T3. Intentional misuse, unauthorised disclosure, modification or destruction of individual’s data | I193: 5
B194: R.A10.V18.T18. | C194: 7 | D194: A10. Smart phone / mobile phone / life-logging devices | E194: 3.2 | F194: V18. Lack of noticeable (and usable) notification systems | G194: 2 | H194: T18. Monitoring and surveillance | I194: 4
B195: R.A10.V18.T17. | C195: 8 | D195: A10. Smart phone / mobile phone / life-logging devices | E195: 3.2 | F195: V18. Lack of noticeable (and usable) notification systems | G195: 2 | H195: T17. Data mining and profiling (large-scale, excessive and/or inappropriate) | I195: 5
B196: R.A10.V18.T14. | C196: 7 | D196: A10. Smart phone / mobile phone / life-logging devices | E196: 3.2 | F196: V18. Lack of noticeable (and usable) notification systems | G196: 2 | H196: T14. Individual being negligent, careless, making mistakes; e.g. does not follow procedures appropriately, e.g. clicks through | I196: 4
B197: R.A10.V18.T8. | C197: 6 | D197: A10. Smart phone / mobile phone / life-logging devices | E197: 3.2 | F197: V18. Lack of noticeable (and usable) notification systems | G197: 2 | H197: T8. Overhearing/recording logging/blogging activity | I197: 3
B198: R.A10.V18.T2. | C198: 7 | D198: A10. Smart phone / mobile phone / life-logging devices | E198: 3.2 | F198: V18. Lack of noticeable (and usable) notification systems | G198: 2 | H198: T2. Identity theft | I198: 4
B199: R.A10.V14.T18. | C199: 7 | D199: A10. Smart phone / mobile phone / life-logging devices | E199: 3.2 | F199: V14. Lack of (usable) privacy controls, e.g., overly permissive defaults, too coarse granularity, ... | G199: 2 | H199: T18. Monitoring and surveillance | I199: 4
B200: R.A10.V14.T17. | C200: 8 | D200: A10. Smart phone / mobile phone / life-logging devices | E200: 3.2 | F200: V14. Lack of (usable) privacy controls, e.g., overly permissive defaults, too coarse granularity, ... | G200: 2 | H200: T17. Data mining and profiling (large-scale, excessive and/or inappropriate) | I200: 5
B201: R.A10.V14.T16. | C201: 7 | D201: A10. Smart phone / mobile phone / life-logging devices | E201: 3.2 | F201: V14. Lack of (usable) privacy controls, e.g., overly permissive defaults, too coarse granularity, ... | G201: 2 | H201: T16. Changes in perception of privacy and / or privacy needs | I201: 4
B202: R.A10.V14.T14. | C202: 7 | D202: A10. Smart phone / mobile phone / life-logging devices | E202: 3.2 | F202: V14. Lack of (usable) privacy controls, e.g., overly permissive defaults, too coarse granularity, ... | G202: 2 | H202: T14. Individual being negligent, careless, making mistakes; e.g. does not follow procedures appropriately, e.g. clicks through | I202: 4
... 323 more rows

Sheet R3
B3: Risk-ID | C3: Risk Value | D3: Asset Description | E3: Asset Value | F3: Vulnerability Description | G3: Vulnerability Value | H3: Threat Description | I3: Threat Value | K3: Values | L3: Counts | M3: Weighted Average
B4: R.A1.V25.T14. | C4: 10 | D4: A1. Actors’ digital presence not including social or professional reputation | E4: 3 | F4: V25. Inadequate user education, lack of awareness and training particularly in security and privacy; lack of context awareness | G4: 5 | H4: T14. Individual being negligent, careless, making mistakes; e.g. does not follow procedures appropriately, e.g. clicks through | I4: 4 | K4: 1 | L4: =COUNTIF($C$4:$C$413,K4) -> 0 | M4: =SUMPRODUCT(K4:K16,L4:L16)/L17 -> 9.372839506
B5: R.A1.V25.T8. | C5: 9 | D5: A1. Actors’ digital presence not including social or professional reputation | E5: 3 | F5: V25. Inadequate user education, lack of awareness and training particularly in security and privacy; lack of context awareness | G5: 5 | H5: T8. Overhearing/recording logging/blogging activity | I5: 3 | K5: 2 | L5: =COUNTIF($C$4:$C$413,K5) -> 0
B6: R.A1.V25.T7. | C6: 8 | D6: A1. Actors’ digital presence not including social or professional reputation | E6: 3 | F6: V25. Inadequate user education, lack of awareness and training particularly in security and privacy; lack of context awareness | G6: 5 | H6: T7. Malicious (logical) attacks on devices and systems | I6: 2 | K6: 3 | L6: 0
B7: R.A1.V25.T6. | C7: 10 | D7: A1. Actors’ digital presence not including social or professional reputation | E7: 3 | F7: V25. Inadequate user education, lack of awareness and training particularly in security and privacy; lack of context awareness | G7: 5 | H7: T6. Malicious physical attacks (theft, vandalism, misuse, etc.) | I7: 4 | K7: 4 | L7: 0
B8: R.A1.V25.T3. | C8: 11 | D8: A1. Actors’ digital presence not including social or professional reputation | E8: 3 | F8: V25. Inadequate user education, lack of awareness and training particularly in security and privacy; lack of context awareness | G8: 5 | H8: T3. Intentional misuse, unauthorised disclosure, modification or destruction of individual’s data | I8: 5 | K8: 5 | L8: 4
B9: R.A1.V25.T2. | C9: 10 | D9: A1. Actors’ digital presence not including social or professional reputation | E9: 3 | F9: V25. Inadequate user education, lack of awareness and training particularly in security and privacy; lack of context awareness | G9: 5 | H9: T2. Identity theft | I9: 4 | K9: 6 | L9: 8
B10: R.A1.V25.T1. | C10: 10 | D10: A1. Actors’ digital presence not including social or professional reputation | E10: 3 | F10: V25. Inadequate user education, lack of awareness and training particularly in security and privacy; lack of context awareness | G10: 5 | H10: T1. Accidental loss of device | I10: 4 | K10: 7 | L10: 21
B11: R.A1.V16.T18. | C11: 10 | D11: A1. Actors’ digital presence not including social or professional reputation | E11: 3 | F11: V16. Lack of secure transmission and storage of data; also includes lack of (usable) transmission control (who gets the data) | G11: 5 | H11: T18. Monitoring and surveillance | I11: 4 | K11: 8 | L11: 69
B12: R.A1.V16.T17. | C12: 11 | D12: A1. Actors’ digital presence not including social or professional reputation | E12: 3 | F12: V16. Lack of secure transmission and storage of data; also includes lack of (usable) transmission control (who gets the data) | G12: 5 | H12: T17. Data mining and profiling (large-scale, excessive and/or inappropriate) | I12: 5 | K12: 9 | L12: 104
B13: R.A1.V16.T14. | C13: 10 | D13: A1. Actors’ digital presence not including social or professional reputation | E13: 3 | F13: V16. Lack of secure transmission and storage of data; also includes lack of (usable) transmission control (who gets the data) | G13: 5 | H13: T14. Individual being negligent, careless, making mistakes; e.g. does not follow procedures appropriately, e.g. clicks through | I13: 4 | K13: 10 | L13: 111
B14: R.A1.V16.T8. | C14: 9 | D14: A1. Actors’ digital presence not including social or professional reputation | E14: 3 | F14: V16. Lack of secure transmission and storage of data; also includes lack of (usable) transmission control (who gets the data) | G14: 5 | H14: T8. Overhearing/recording logging/blogging activity | I14: 3 | K14: 11 | L14: 73
B15: R.A1.V16.T7. | C15: 8 | D15: A1. Actors’ digital presence not including social or professional reputation | E15: 3 | F15: V16. Lack of secure transmission and storage of data; also includes lack of (usable) transmission control (who gets the data) | G15: 5 | H15: T7. Malicious (logical) attacks on devices and systems | I15: 2 | K15: 12 | L15: 15
B16: R.A1.V16.T3. | C16: 11 | D16: A1. Actors’ digital presence not including social or professional reputation | E16: 3 | F16: V16. Lack of secure transmission and storage of data; also includes lack of (usable) transmission control (who gets the data) | G16: 5 | H16: T3. Intentional misuse, unauthorised disclosure, modification or destruction of individual’s data | I16: 5 | K16: 13 | L16: 0
B17: R.A1.V12.T9. | C17: 8 | D17: A1. Actors’ digital presence not including social or professional reputation | E17: 3 | F17: V12. Smart phone vulnerabilities | G17: 5 | H17: T9. Exploring new ‘vulnerabilities’ in the new applications | I17: 2 | L17: =SUM(L4:L16) -> 405
B18: R.A1.V12.T7. | C18: 8 | D18: A1. Actors’ digital presence not including social or professional reputation | E18: 3 | F18: V12. Smart phone vulnerabilities | G18: 5 | H18: T7. Malicious (logical) attacks on devices and systems | I18: 2
B19: R.A1.V12.T6. | C19: 10 | D19: A1. Actors’ digital presence not including social or professional reputation | E19: 3 | F19: V12. Smart phone vulnerabilities | G19: 5 | H19: T6. Malicious physical attacks (theft, vandalism, misuse, etc.) | I19: 4
B20: R.A1.V12.T3. | C20: 11 | D20: A1. Actors’ digital presence not including social or professional reputation | E20: 3 | F20: V12. Smart phone vulnerabilities | G20: 5 | H20: T3. Intentional misuse, unauthorised disclosure, modification or destruction of individual’s data | I20: 5
B21: R.A1.V12.T1. | C21: 10 | D21: A1. Actors’ digital presence not including social or professional reputation | E21: 3 | F21: V12. Smart phone vulnerabilities | G21: 5 | H21: T1. Accidental loss of device | I21: 4
B22: R.A1.V11.T7. | C22: 7 | D22: A1. Actors’ digital presence not including social or professional reputation | E22: 3 | F22: V11. PC and home infrastructure vulnerabilities | G22: 4 | H22: T7. Malicious (logical) attacks on devices and systems | I22: 2
B23: R.A1.V11.T6. | C23: 9 | D23: A1. Actors’ digital presence not including social or professional reputation | E23: 3 | F23: V11. PC and home infrastructure vulnerabilities | G23: 4 | H23: T6. Malicious physical attacks (theft, vandalism, misuse, etc.) | I23: 4
B24: R.A1.V11.T3. | C24: 10 | D24: A1. Actors’ digital presence not including social or professional reputation | E24: 3 | F24: V11. PC and home infrastructure vulnerabilities | G24: 4 | H24: T3. Intentional misuse, unauthorised disclosure, modification or destruction of individual’s data | I24: 5
B25: R.A1.V10.T3. | C25: 10 | D25: A1. Actors’ digital presence not including social or professional reputation | E25: 3 | F25: V10. Over reliance and excessive dependency on electronic devices and systems | G25: 4 | H25: T3. Intentional misuse, unauthorised disclosure, modification or destruction of individual’s data | I25: 5
B26: R.A1.V10.T1. | C26: 9 | D26: A1. Actors’ digital presence not including social or professional reputation | E26: 3 | F26: V10. Over reliance and excessive dependency on electronic devices and systems | G26: 4 | H26: T1. Accidental loss of device | I26: 4
B27: R.A1.V8.T14. | C27: 10 | D27: A1. Actors’ digital presence not including social or professional reputation | E27: 3 | F27: V8. Lack of or inadequate user identification, authentication and access controls; e.g. use of new devices as authentication tools | G27: 5 | H27: T14. Individual being negligent, careless, making mistakes; e.g. does not follow procedures appropriately, e.g. clicks through | I27: 4
B28: R.A1.V8.T3. | C28: 11 | D28: A1. Actors’ digital presence not including social or professional reputation | E28: 3 | F28: V8. Lack of or inadequate user identification, authentication and access controls; e.g. use of new devices as authentication tools | G28: 5 | H28: T3. Intentional misuse, unauthorised disclosure, modification or destruction of individual’s data | I28: 5
B29: R.A1.V8.T2. | C29: 10 | D29: A1. Actors’ digital presence not including social or professional reputation | E29: 3 | F29: V8. Lack of or inadequate user identification, authentication and access controls; e.g. use of new devices as authentication tools | G29: 5 | H29: T2. Identity theft | I29: 4
B30: R.A1.V5.T14. | C30: 10 | D30: A1. Actors’ digital presence not including social or professional reputation | E30: 3 | F30: V5. Inherent features of smart devices (size, material etc.): easy to lose or steal | G30: 5 | H30: T14. Individual being negligent, careless, making mistakes; e.g. does not follow procedures appropriately, e.g. clicks through | I30: 4
B31: R.A1.V5.T8. | C31: 9 | D31: A1. Actors’ digital presence not including social or professional reputation | E31: 3 | F31: V5. Inherent features of smart devices (size, material etc.): easy to lose or steal | G31: 5 | H31: T8. Overhearing/recording logging/blogging activity | I31: 3
B32: R.A1.V5.T6. | C32: 10 | D32: A1. Actors’ digital presence not including social or professional reputation | E32: 3 | F32: V5. Inherent features of smart devices (size, material etc.): easy to lose or steal | G32: 5 | H32: T6. Malicious physical attacks (theft, vandalism, misuse, etc.) | I32: 4
B33: R.A1.V5.T3. | C33: 11 | D33: A1. Actors’ digital presence not including social or professional reputation | E33: 3 | F33: V5. Inherent features of smart devices (size, material etc.): easy to lose or steal | G33: 5 | H33: T3. Intentional misuse, unauthorised disclosure, modification or destruction of individual’s data | I33: 5
B34: R.A1.V5.T2. | C34: 10 | D34: A1. Actors’ digital presence not including social or professional reputation | E34: 3 | F34: V5. Inherent features of smart devices (size, material etc.): easy to lose or steal | G34: 5 | H34: T2. Identity theft | I34: 4
B35: R.A1.V5.T1. | C35: 10 | D35: A1. Actors’ digital presence not including social or professional reputation | E35: 3 | F35: V5. Inherent features of smart devices (size, material etc.): easy to lose or steal | G35: 5 | H35: T1. Accidental loss of device | I35: 4
B36: R.A1.V3.T14. | C36: 8 | D36: A1. Actors’ digital presence not including social or professional reputation | E36: 3 | F36: V3. Inadequate privacy/security interfaces (poor interface design) | G36: 3 | H36: T14. Individual being negligent, careless, making mistakes; e.g. does not follow procedures appropriately, e.g. clicks through | I36: 4
B37: R.A1.V3.T8. | C37: 7 | D37: A1. Actors’ digital presence not including social or professional reputation | E37: 3 | F37: V3. Inadequate privacy/security interfaces (poor interface design) | G37: 3 | H37: T8. Overhearing/recording logging/blogging activity | I37: 3
B38: R.A1.V3.T3. | C38: 9 | D38: A1. Actors’ digital presence not including social or professional reputation | E38: 3 | F38: V3. Inadequate privacy/security interfaces (poor interface design) | G38: 3 | H38: T3. Intentional misuse, unauthorised disclosure, modification or destruction of individual’s data | I38: 5
B39: R.A1.V3.T2. | C39: 8 | D39: A1. Actors’ digital presence not including social or professional reputation | E39: 3 | F39: V3. Inadequate privacy/security interfaces (poor interface design) | G39: 3 | H39: T2. Identity theft | I39: 4
B40: R.A2.V25.T14. | C40: 11 | D40: A2. Social reputation | E40: 4 | F40: V25. Inadequate user education, lack of awareness and training particularly in security and privacy; lack of context awareness | G40: 5 | H40: T14. Individual being negligent, careless, making mistakes; e.g. does not follow procedures appropriately, e.g. clicks through | I40: 4
B41: R.A2.V25.T8. | C41: 10 | D41: A2. Social reputation | E41: 4 | F41: V25. Inadequate user education, lack of awareness and training particularly in security and privacy; lack of context awareness | G41: 5 | H41: T8. Overhearing/recording logging/blogging activity | I41: 3
B42: R.A2.V25.T7. | C42: 9 | D42: A2. Social reputation | E42: 4 | F42: V25. Inadequate user education, lack of awareness and training particularly in security and privacy; lack of context awareness | G42: 5 | H42: T7. Malicious (logical) attacks on devices and systems | I42: 2
B43: R.A2.V25.T6. | C43: 11 | D43: A2. Social reputation | E43: 4 | F43: V25. Inadequate user education, lack of awareness and training particularly in security and privacy; lack of context awareness | G43: 5 | H43: T6. Malicious physical attacks (theft, vandalism, misuse, etc.) | I43: 4
B44: R.A2.V25.T3. | C44: 12 | D44: A2. Social reputation | E44: 4 | F44: V25. Inadequate user education, lack of awareness and training particularly in security and privacy; lack of context awareness | G44: 5 | H44: T3. Intentional misuse, unauthorised disclosure, modification or destruction of individual’s data | I44: 5
B45: R.A2.V25.T2. | C45: 11 | D45: A2. Social reputation | E45: 4 | F45: V25. Inadequate user education, lack of awareness and training particularly in security and privacy; lack of context awareness | G45: 5 | H45: T2. Identity theft | I45: 4
B46: R.A2.V25.T1. | C46: 11 | D46: A2. Social reputation | E46: 4 | F46: V25. Inadequate user education, lack of awareness and training particularly in security and privacy; lack of context awareness | G46: 5 | H46: T1. Accidental loss of device | I46: 4
B47: R.A2.V12.T9. | C47: 9 | D47: A2. Social reputation | E47: 4 | F47: V12. Smart phone vulnerabilities | G47: 5 | H47: T9. Exploring new ‘vulnerabilities’ in the new applications | I47: 2
B48: R.A2.V12.T7. | C48: 9 | D48: A2. Social reputation | E48: 4 | F48: V12. Smart phone vulnerabilities | G48: 5 | H48: T7. Malicious (logical) attacks on devices and systems | I48: 2
B49: R.A2.V12.T6. | C49: 11 | D49: A2. Social reputation | E49: 4 | F49: V12. Smart phone vulnerabilities | G49: 5 | H49: T6. Malicious physical attacks (theft, vandalism, misuse, etc.) | I49: 4
B50: R.A2.V12.T3. | C50: 12 | D50: A2. Social reputation | E50: 4 | F50: V12. Smart phone vulnerabilities | G50: 5 | H50: T3. Intentional misuse, unauthorised disclosure, modification or destruction of individual’s data | I50: 5
B51: R.A2.V12.T1. | C51: 11 | D51: A2. Social reputation | E51: 4 | F51: V12. Smart phone vulnerabilities | G51: 5 | H51: T1. Accidental loss of device | I51: 4
B52: R.A2.V11.T7. | C52: 8 | D52: A2. Social reputation | E52: 4 | F52: V11. PC and home infrastructure vulnerabilities | G52: 4 | H52: T7. Malicious (logical) attacks on devices and systems | I52: 2
B53: R.A2.V11.T6. | C53: 10 | D53: A2. Social reputation | E53: 4 | F53: V11. PC and home infrastructure vulnerabilities | G53: 4 | H53: T6. Malicious physical attacks (theft, vandalism, misuse, etc.) | I53: 4
B54: R.A2.V11.T3. | C54: 11 | D54: A2. Social reputation | E54: 4 | F54: V11. PC and home infrastructure vulnerabilities | G54: 4 | H54: T3. Intentional misuse, unauthorised disclosure, modification or destruction of individual’s data | I54: 5
B55: R.A2.V10.T3. | C55: 11 | D55: A2. Social reputation | E55: 4 | F55: V10. Over reliance and excessive dependency on electronic devices and systems | G55: 4 | H55: T3. Intentional misuse, unauthorised disclosure, modification or destruction of individual’s data | I55: 5
B56: R.A2.V10.T1. | C56: 10 | D56: A2. Social reputation | E56: 4 | F56: V10. Over reliance and excessive dependency on electronic devices and systems | G56: 4 | H56: T1. Accidental loss of device | I56: 4
B57: R.A2.V8.T14. | C57: 11 | D57: A2. Social reputation | E57: 4 | F57: V8. Lack of or inadequate user identification, authentication and access controls; e.g. use of new devices as authentication tools | G57: 5 | H57: T14. Individual being negligent, careless, making mistakes; e.g. does not follow procedures appropriately, e.g. clicks through | I57: 4
B58: R.A2.V8.T3. | C58: 12 | D58: A2. Social reputation | E58: 4 | F58: V8. Lack of or inadequate user identification, authentication and access controls; e.g. use of new devices as authentication tools | G58: 5 | H58: T3. Intentional misuse, unauthorised disclosure, modification or destruction of individual’s data | I58: 5
B59: R.A2.V8.T2. | C59: 11 | D59: A2. Social reputation | E59: 4 | F59: V8. Lack of or inadequate user identification, authentication and access controls; e.g. use of new devices as authentication tools | G59: 5 | H59: T2. Identity theft | I59: 4
B60: R.A2.V5.T14. | C60: 11 | D60: A2. Social reputation | E60: 4 | F60: V5. Inherent features of smart devices (size, material etc.): easy to lose or steal | G60: 5 | H60: T14. Individual being negligent, careless, making mistakes; e.g. does not follow procedures appropriately, e.g. clicks through | I60: 4
B61: R.A2.V5.T8. | C61: 10 | D61: A2. Social reputation | E61: 4 | F61: V5. Inherent features of smart devices (size, material etc.): easy to lose or steal | G61: 5 | H61: T8. Overhearing/recording logging/blogging activity | I61: 3
B62: R.A2.V5.T6. | C62: 11 | D62: A2. Social reputation | E62: 4 | F62: V5. Inherent features of smart devices (size, material etc.): easy to lose or steal | G62: 5 | H62: T6. Malicious physical attacks (theft, vandalism, misuse, etc.) | I62: 4
B63: R.A2.V5.T3. | C63: 12 | D63: A2. Social reputation | E63: 4 | F63: V5. Inherent features of smart devices (size, material etc.): easy to lose or steal | G63: 5 | H63: T3. Intentional misuse, unauthorised disclosure, modification or destruction of individual’s data | I63: 5
B64: R.A2.V5.T2. | C64: 11 | D64: A2. Social reputation | E64: 4 | F64: V5. Inherent features of smart devices (size, material etc.): easy to lose or steal | G64: 5 | H64: T2. Identity theft | I64: 4
B65: R.A2.V5.T1. | C65: 11 | D65: A2. Social reputation | E65: 4 | F65: V5. Inherent features of smart devices (size, material etc.): easy to lose or steal | G65: 5 | H65: T1. Accidental loss of device | I65: 4
B66: R.A2.V3.T14. | C66: 9 | D66: A2. Social reputation | E66: 4 | F66: V3. Inadequate privacy/security interfaces (poor interface design) | G66: 3 | H66: T14. Individual being negligent, careless, making mistakes; e.g. does not follow procedures appropriately, e.g. clicks through | I66: 4
B67: R.A2.V3.T8. | C67: 8 | D67: A2. Social reputation | E67: 4 | F67: V3. Inadequate privacy/security interfaces (poor interface design) | G67: 3 | H67: T8. Overhearing/recording logging/blogging activity | I67: 3
B68: R.A2.V3.T3. | C68: 10 | D68: A2. Social reputation | E68: 4 | F68: V3. Inadequate privacy/security interfaces (poor interface design) | G68: 3 | H68: T3. Intentional misuse, unauthorised disclosure, modification or destruction of individual’s data | I68: 5
B69: R.A2.V3.T2. | C69: 9 | D69: A2. Social reputation | E69: 4 | F69: V3. Inadequate privacy/security interfaces (poor interface design) | G69: 3 | H69: T2. Identity theft | I69: 4
B70: R.A2.V1.T9. | C70: 7 | D70: A2. Social reputation | E70: 4 | F70: V1. Flawed/insufficient design, implementation and/or capacity of devices and systems. Includes software bugs and design flaws. | G70: 3 | H70: T9. Exploring new ‘vulnerabilities’ in the new applications | I70: 2
B71: R.A2.V1.T3. | C71: 10 | D71: A2. Social reputation | E71: 4 | F71: V1. Flawed/insufficient design, implementation and/or capacity of devices and systems. Includes software bugs and design flaws. | G71: 3 | H71: T3. Intentional misuse, unauthorised disclosure, modification or destruction of individual’s data | I71: 5
B72: R.A3.V25.T14. | C72: 11 | D72: A3. Professional reputation | E72: 4 | F72: V25. Inadequate user education, lack of awareness and training particularly in security and privacy; lack of context awareness | G72: 5 | H72: T14. Individual being negligent, careless, making mistakes; e.g. does not follow procedures appropriately, e.g. clicks through | I72: 4
B73: R.A3.V25.T8. | C73: 10 | D73: A3. Professional reputation | E73: 4 | F73: V25. Inadequate user education, lack of awareness and training particularly in security and privacy; lack of context awareness | G73: 5 | H73: T8. Overhearing/recording logging/blogging activity | I73: 3
B74: R.A3.V25.T7. | C74: 9 | D74: A3. Professional reputation | E74: 4 | F74: V25. Inadequate user education, lack of awareness and training particularly in security and privacy; lack of context awareness | G74: 5 | H74: T7. Malicious (logical) attacks on devices and systems | I74: 2
B75: R.A3.V25.T6. | C75: 11 | D75: A3. Professional reputation | E75: 4 | F75: V25. Inadequate user education, lack of awareness and training particularly in security and privacy; lack of context awareness | G75: 5 | H75: T6. Malicious physical attacks (theft, vandalism, misuse, etc.) | I75: 4
B76: R.A3.V25.T3. | C76: 12 | D76: A3. Professional reputation | E76: 4 | F76: V25. Inadequate user education, lack of awareness and training particularly in security and privacy; lack of context awareness | G76: 5 | H76: T3. Intentional misuse, unauthorised disclosure, modification or destruction of individual’s data | I76: 5
B77: R.A3.V25.T2. | C77: 11 | D77: A3. Professional reputation | E77: 4 | F77: V25. Inadequate user education, lack of awareness and training particularly in security and privacy; lack of context awareness | G77: 5 | H77: T2. Identity theft | I77: 4
B78: R.A3.V25.T1. | C78: 11 | D78: A3. Professional reputation | E78: 4 | F78: V25. Inadequate user education, lack of awareness and training particularly in security and privacy; lack of context awareness | G78: 5 | H78: T1. Accidental loss of device | I78: 4
B79: R.A3.V12.T9. | C79: 9 | D79: A3. Professional reputation | E79: 4 | F79: V12. Smart phone vulnerabilities | G79: 5 | H79: T9. Exploring new ‘vulnerabilities’ in the new applications | I79: 2
B80: R.A3.V12.T7. | C80: 9 | D80: A3. Professional reputation | E80: 4 | F80: V12. Smart phone vulnerabilities | G80: 5 | H80: T7. Malicious (logical) attacks on devices and systems | I80: 2
B81: R.A3.V12.T6. | C81: 11 | D81: A3. Professional reputation | E81: 4 | F81: V12. Smart phone vulnerabilities | G81: 5 | H81: T6. Malicious physical attacks (theft, vandalism, misuse, etc.) | I81: 4
B82: R.A3.V12.T3. | C82: 12 | D82: A3. Professional reputation | E82: 4 | F82: V12. Smart phone vulnerabilities | G82: 5 | H82: T3. Intentional misuse, unauthorised disclosure, modification or destruction of individual’s data | I82: 5
B83: R.A3.V12.T1. | C83: 11 | D83: A3. Professional reputation | E83: 4 | F83: V12. Smart phone vulnerabilities | G83: 5 | H83: T1. Accidental loss of device | I83: 4
B84: R.A3.V11.T7. | C84: 8 | D84: A3. Professional reputation | E84: 4 | F84: V11. PC and home infrastructure vulnerabilities | G84: 4 | H84: T7. Malicious (logical) attacks on devices and systems | I84: 2
B85: R.A3.V11.T6. | C85: 10 | D85: A3. Professional reputation | E85: 4 | F85: V11. PC and home infrastructure vulnerabilities | G85: 4 | H85: T6. Malicious physical attacks (theft, vandalism, misuse, etc.) | I85: 4
B86: R.A3.V11.T3. | C86: 11 | D86: A3. Professional reputation | E86: 4 | F86: V11. PC and home infrastructure vulnerabilities | G86: 4 | H86: T3. Intentional misuse, unauthorised disclosure, modification or destruction of individual’s data | I86: 5
B87: R.A3.V10.T3. | C87: 11 | D87: A3. Professional reputation | E87: 4 | F87: V10. Over reliance and excessive dependency on electronic devices and systems | G87: 4 | H87: T3. Intentional misuse, unauthorised disclosure, modification or destruction of individual’s data | I87: 5
B88: R.A3.V10.T1. | C88: 10 | D88: A3. Professional reputation | E88: 4 | F88: V10. Over reliance and excessive dependency on electronic devices and systems | G88: 4 | H88: T1. Accidental loss of device | I88: 4
B89: R.A3.V8.T14. | C89: 11 | D89: A3. Professional reputation | E89: 4 | F89: V8. Lack of or inadequate user identification, authentication and access controls; e.g. use of new devices as authentication tools | G89: 5 | H89: T14. Individual being negligent, careless, making mistakes; e.g. does not follow procedures appropriately, e.g. clicks through | I89: 4
B90: R.A3.V8.T3. | C90: 12 | D90: A3. Professional reputation | E90: 4 | F90: V8. Lack of or inadequate user identification, authentication and access controls; e.g. use of new devices as authentication tools | G90: 5 | H90: T3. Intentional misuse, unauthorised disclosure, modification or destruction of individual’s data | I90: 5
B91: R.A3.V8.T2. | C91: 11 | D91: A3. Professional reputation | E91: 4 | F91: V8. Lack of or inadequate user identification, authentication and access controls; e.g. use of new devices as authentication tools | G91: 5 | H91: T2. Identity theft | I91: 4
B92: R.A3.V5.T14. | C92: 11 | D92: A3. Professional reputation | E92: 4 | F92: V5. Inherent features of smart devices (size, material etc.): easy to lose or steal | G92: 5 | H92: T14. Individual being negligent, careless, making mistakes; e.g. does not follow procedures appropriately, e.g. clicks through | I92: 4
B93: R.A3.V5.T8. | C93: 10 | D93: A3. Professional reputation | E93: 4 | F93: V5. Inherent features of smart devices (size, material etc.): easy to lose or steal | G93: 5 | H93: T8. Overhearing/recording logging/blogging activity | I93: 3
B94: R.A3.V5.T6. | C94: 11 | D94: A3. Professional reputation | E94: 4 | F94: V5. Inherent features of smart devices (size, material etc.): easy to lose or steal | G94: 5 | H94: T6. Malicious physical attacks (theft, vandalism, misuse, etc.) | I94: 4
B95: R.A3.V5.T3. | C95: 12 | D95: A3. Professional reputation | E95: 4 | F95: V5. Inherent features of smart devices (size, material etc.): easy to lose or steal | G95: 5 | H95: T3. Intentional misuse, unauthorised disclosure, modification or destruction of individual’s data | I95: 5
B96: R.A3.V5.T2. | C96: 11 | D96: A3. Professional reputation | E96: 4 | F96: V5. Inherent features of smart devices (size, material etc.): easy to lose or steal | G96: 5 | H96: T2. Identity theft | I96: 4
B97: R.A3.V5.T1. | C97: 11 | D97: A3. Professional reputation | E97: 4 | F97: V5. Inherent features of smart devices (size, material etc.): easy to lose or steal | G97: 5 | H97: T1. Accidental loss of device | I97: 4
B98: R.A3.V3.T14. | C98: 9 | D98: A3. Professional reputation | E98: 4 | F98: V3. Inadequate privacy/security interfaces (poor interface design) | G98: 3 | H98: T14. Individual being negligent, careless, making mistakes; e.g. does not follow procedures appropriately, e.g. clicks through | I98: 4
B99: R.A3.V3.T8. | C99: 8 | D99: A3. Professional reputation | E99: 4 | F99: V3. Inadequate privacy/security interfaces (poor interface design) | G99: 3 | H99: T8. Overhearing/recording logging/blogging activity | I99: 3
B100: R.A3.V3.T3. | C100: 10 | D100: A3. Professional reputation | E100: 4 | F100: V3. Inadequate privacy/security interfaces (poor interface design) | G100: 3 | H100: T3. Intentional misuse, unauthorised disclosure, modification or destruction of individual’s data | I100: 5
B101: R.A3.V3.T2. | C101: 9 | D101: A3. Professional reputation | E101: 4 | F101: V3. Inadequate privacy/security interfaces (poor interface design) | G101: 3 | H101: T2. Identity theft | I101: 4
B102: R.A3.V1.T9. | C102: 7 | D102: A3. Professional reputation | E102: 4 | F102: V1. Flawed/insufficient design, implementation and/or capacity of devices and systems. Includes software bugs and design flaws. | G102: 3 | H102: T9. Exploring new ‘vulnerabilities’ in the new applications | I102: 2
B103: R.A3.V1.T3. | C103: 10 | D103: A3. Professional reputation | E103: 4 | F103: V1. Flawed/insufficient design, implementation and/or capacity of devices and systems. Includes software bugs and design flaws. | G103: 3 | H103: T3. Intentional misuse, unauthorised disclosure, modification or destruction of individual’s data | I103: 5
B104: R.A6.V25.T14. | C104: 10 | D104: A6. Life-logging services | E104: 3 | F104: V25. Inadequate user education, lack of awareness and training particularly in security and privacy; lack of context awareness | G104: 5 | H104: T14. Individual being negligent, careless, making mistakes; e.g. does not follow procedures appropriately, e.g. clicks through | I104: 4
B105: R.A6.V25.T8. | C105: 9 | D105: A6. Life-logging services | E105: 3 | F105: V25. Inadequate user education, lack of awareness and training particularly in security and privacy; lack of context awareness | G105: 5 | H105: T8. Overhearing/recording logging/blogging activity | I105: 3
B106: R.A6.V25.T7. | C106: 8 | D106: A6. Life-logging services | E106: 3 | F106: V25. Inadequate user education, lack of awareness and training particularly in security and privacy; lack of context awareness | G106: 5 | H106: T7. Malicious (logical) attacks on devices and systems | I106: 2
B107: R.A6.V25.T6. | C107: 10 | D107: A6. Life-logging services | E107: 3 | F107: V25. Inadequate user education, lack of awareness and training particularly in security and privacy; lack of context awareness | G107: 5 | H107: T6. Malicious physical attacks (theft, vandalism, misuse, etc.) | I107: 4
B108: R.A6.V25.T3. | C108: 11 | D108: A6. Life-logging services | E108: 3 | F108: V25. Inadequate user education, lack of awareness and training particularly in security and privacy; lack of context awareness | G108: 5 | H108: T3. Intentional misuse, unauthorised disclosure, modification or destruction of individual’s data | I108: 5
B109: R.A6.V25.T2. | C109: 10 | D109: A6. Life-logging services | E109: 3 | F109: V25. Inadequate user education, lack of awareness and training particularly in security and privacy; lack of context awareness | G109: 5 | H109: T2. Identity theft | I109: 4
B110: R.A6.V25.T1. | C110: 10 | D110: A6. Life-logging services | E110: 3 | F110: V25. Inadequate user education, lack of awareness and training particularly in security and privacy; lack of context awareness | G110: 5 | H110: T1. Accidental loss of device | I110: 4
B111: R.A6.V10.T3. | C111: 10 | D111: A6. Life-logging services | E111: 3 | F111: V10. Over reliance and excessive dependency on electronic devices and systems | G111: 4 | H111: T3. Intentional misuse, unauthorised disclosure, modification or destruction of individual’s data | I111: 5
B112: R.A6.V10.T1. | C112: 9 | D112: A6. Life-logging services | E112: 3 | F112: V10. Over reliance and excessive dependency on electronic devices and systems | G112: 4 | H112: T1. Accidental loss of device | I112: 4
B113: R.A6.V8.T14. | C113: 10 | D113: A6. Life-logging services | E113: 3 | F113: V8. Lack of or inadequate user identification, authentication and access controls; e.g. use of new devices as authentication tools | G113: 5 | H113: T14. Individual being negligent, careless, making mistakes; e.g. does not follow procedures appropriately, e.g. clicks through | I113: 4
B114: R.A6.V8.T3. | C114: 11 | D114: A6. Life-logging services | E114: 3 | F114: V8. Lack of or inadequate user identification, authentication and access controls; e.g. use of new devices as authentication tools | G114: 5 | H114: T3. Intentional misuse, unauthorised disclosure, modification or destruction of individual’s data | I114: 5
B115: R.A6.V8.T2. | C115: 10 | D115: A6. Life-logging services | E115: 3 | F115: V8. Lack of or inadequate user identification, authentication and access controls; e.g. use of new devices as authentication tools | G115: 5 | H115: T2. Identity theft | I115: 4
B116: R.A6.V3.T14. | C116: 8 | D116: A6. Life-logging services | E116: 3 | F116: V3. Inadequate privacy/security interfaces (poor interface design) | G116: 3 | H116: T14. Individual being negligent, careless, making mistakes; e.g. does not follow procedures appropriately, e.g. clicks through | I116: 4
B117: R.A6.V3.T8. | C117: 7 | D117: A6. Life-logging services | E117: 3 | F117: V3. Inadequate privacy/security interfaces (poor interface design) | G117: 3 | H117: T8. Overhearing/recording logging/blogging activity | I117: 3
B118: R.A6.V3.T3. | C118: 9 | D118: A6. Life-logging services | E118: 3 | F118: V3. Inadequate privacy/security interfaces (poor interface design) | G118: 3 | H118: T3. Intentional misuse, unauthorised disclosure, modification or destruction of individual’s data | I118: 5
B119: R.A6.V3.T2. | C119: 8 | D119: A6. Life-logging services | E119: 3 | F119: V3. Inadequate privacy/security interfaces (poor interface design) | G119: 3 | H119: T2. Identity theft | I119: 4
B120: R.A6.V1.T9. | C120: 6 | D120: A6. Life-logging services | E120: 3 | F120: V1. Flawed/insufficient design, implementation and/or capacity of devices and systems. Includes software bugs and design flaws. | G120: 3 | H120: T9. Exploring new ‘vulnerabilities’ in the new applications | I120: 2
B121: R.A6.V1.T3. | C121: 9 | D121: A6. Life-logging services | E121: 3 | F121: V1. Flawed/insufficient design, implementation and/or capacity of devices and systems. Includes software bugs and design flaws. | G121: 3 | H121: T3. Intentional misuse, unauthorised disclosure, modification or destruction of individual’s data | I121: 5
B122: R.A8.V25.T14. | C122: 9 | D122: A8. Smart home objects / appliances | E122: 2.1 | F122: V25. Inadequate user education, lack of awareness and training particularly in security and privacy; lack of context awareness | G122: 5 | H122: T14. Individual being negligent, careless, making mistakes; e.g. does not follow procedures appropriately, e.g. clicks through | I122: 4
B123: R.A8.V25.T8. | C123: 8 | D123: A8. Smart home objects / appliances | E123: 2.1 | F123: V25. Inadequate user education, lack of awareness and training particularly in security and privacy; lack of context awareness | G123: 5 | H123: T8. Overhearing/recording logging/blogging activity | I123: 3
B124: R.A8.V25.T7. | C124: 7 | D124: A8. Smart home objects / appliances | E124: 2.1 | F124: V25. Inadequate user education, lack of awareness and training particularly in security and privacy; lack of context awareness | G124: 5 | H124: T7. Malicious (logical) attacks on devices and systems | I124: 2
B125: R.A8.V25.T6. | C125: 9 | D125: A8. Smart home objects / appliances | E125: 2.1 | F125: V25. Inadequate user education, lack of awareness and training particularly in security and privacy; lack of context awareness | G125: 5 | H125: T6. Malicious physical attacks (theft, vandalism, misuse, etc.) | I125: 4
B126: R.A8.V25.T3. | C126: 10 | D126: A8. Smart home objects / appliances | E126: 2.1 | F126: V25. Inadequate user education, lack of awareness and training particularly in security and privacy; lack of context awareness | G126: 5 | H126: T3. Intentional misuse, unauthorised disclosure, modification or destruction of individual’s data | I126: 5
B127: R.A8.V25.T2. | C127: 9 | D127: A8. Smart home objects / appliances | E127: 2.1 | F127: V25. Inadequate user education, lack of awareness and training particularly in security and privacy; lack of context awareness | G127: 5 | H127: T2. Identity theft | I127: 4
B128: R.A8.V25.T1. | C128: 9 | D128: A8. Smart home objects / appliances | E128: 2.1 | F128: V25. Inadequate user education, lack of awareness and training particularly in security and privacy; lack of context awareness | G128: 5 | H128: T1. Accidental loss of device | I128: 4
B129: R.A8.V21.T7. | C129: 5 | D129: A8. Smart home objects / appliances | E129: 2 | F129: V21. Reliance on legacy, un-patched systems or integration mistakes | G129: 3 | H129: T7. Malicious (logical) attacks on devices and systems | I129: 2
B130: R.A8.V21.T3. | C130: 8 | D130: A8. Smart home objects / appliances | E130: 2 | F130: V21. Reliance on legacy, un-patched systems or integration mistakes | G130: 3 | H130: T3. Intentional misuse, unauthorised disclosure, modification or destruction of individual’s data | I130: 5
B131: R.A8.V20.T18. | C131: 9 | D131: A8. Smart home objects / appliances | E131: 2 | F131: V20. Increase of (unprotected) data storage capacity in smart-devices | G131: 5 | H131: T18. Monitoring and surveillance | I131: 4
B132: R.A8.V20.T17. | C132: 10 | D132: A8. Smart home objects / appliances | E132: 2 | F132: V20. Increase of (unprotected) data storage capacity in smart-devices | G132: 5 | H132: T17. Data mining and profiling (large-scale, excessive and/or inappropriate) | I132: 5
B133: R.A8.V20.T14. | C133: 9 | D133: A8. Smart home objects / appliances | E133: 2.1 | F133: V20. Increase of (unprotected) data storage capacity in smart-devices | G133: 5 | H133: T14. Individual being negligent, careless, making mistakes; e.g. does not follow procedures appropriately, e.g. clicks through | I133: 4
B134: R.A8.V20.T7. | C134: 7 | D134: A8. Smart home objects / appliances | E134: 2.1 | F134: V20. Increase of (unprotected) data storage capacity in smart-devices | G134: 5 | H134: T7. Malicious (logical) attacks on devices and systems | I134: 2
B135: R.A8.V20.T3. | C135: 10 | D135: A8. Smart home objects / appliances | E135: 2.1 | F135: V20. Increase of (unprotected) data storage capacity in smart-devices | G135: 5 | H135: T3. Intentional misuse, unauthorised disclosure, modification or destruction of individual’s data | I135: 5
B136: R.A8.V16.T18. | C136: 9 | D136: A8. Smart home objects / appliances | E136: 2 | F136: V16. Lack of secure transmission and storage of data; also includes lack of (usable) transmission control (who gets the data) | G136: 5 | H136: T18. Monitoring and surveillance | I136: 4
B137: R.A8.V16.T17. | C137: 10 | D137: A8. Smart home objects / appliances | E137: 2 | F137: V16. Lack of secure transmission and storage of data; also includes lack of (usable) transmission control (who gets the data) | G137: 5 | H137: T17. Data mining and profiling (large-scale, excessive and/or inappropriate) | I137: 5
B138: R.A8.V16.T14. | C138: 9 | D138: A8. Smart home objects / appliances | E138: 2.1 | F138: V16. Lack of secure transmission and storage of data; also includes lack of (usable) transmission control (who gets the data) | G138: 5 | H138: T14. Individual being negligent, careless, making mistakes; e.g. does not follow procedures appropriately, e.g. clicks through | I138: 4
B139: R.A8.V16.T8. | C139: 8 | D139: A8. Smart home objects / appliances | E139: 2.1 | F139: V16. Lack of secure transmission and storage of data; also includes lack of (usable) transmission control (who gets the data) | G139: 5 | H139: T8. Overhearing/recording logging/blogging activity | I139: 3
B140: R.A8.V16.T7. | C140: 7 | D140: A8. Smart home objects / appliances | E140: 2.1 | F140: V16. Lack of secure transmission and storage of data; also includes lack of (usable) transmission control (who gets the data) | G140: 5 | H140: T7. Malicious (logical) attacks on devices and systems | I140: 2
B141: R.A8.V16.T3. | C141: 10 | D141: A8. Smart home objects / appliances | E141: 2.1 | F141: V16. Lack of secure transmission and storage of data; also includes lack of (usable) transmission control (who gets the data) | G141: 5 | H141: T3. Intentional misuse, unauthorised disclosure, modification or destruction of individual’s data | I141: 5
B142: R.A8.V13.T18. | C142: 7 | D142: A8. Smart home objects / appliances | E142: 2 | F142: V13. Lack of revocation/correction/deletion mechanisms | G142: 3 | H142: T18. Monitoring and surveillance | I142: 4
B143: R.A8.V13.T17. | C143: 8 | D143: A8. Smart home objects / appliances | E143: 2 | F143: V13. Lack of revocation/correction/deletion mechanisms | G143: 3 | H143: T17. Data mining and profiling (large-scale, excessive and/or inappropriate) | I143: 5
B144: R.A8.V11.T18. | C144: 8 | D144: A8. Smart home objects / appliances | E144: 2 | F144: V11. PC and home infrastructure vulnerabilities | G144: 4 | H144: T18. Monitoring and surveillance | I144: 4
B145: R.A8.V11.T7. | C145: 6 | D145: A8. Smart home objects / appliances | E145: 2.1 | F145: V11. PC and home infrastructure vulnerabilities | G145: 4 | H145: T7. Malicious (logical) attacks on devices and systems | I145: 2
B146: R.A8.V11.T6. | C146: 8 | D146: A8. Smart home objects / appliances | E146: 2.1 | F146: V11. PC and home infrastructure vulnerabilities | G146: 4 | H146: T6. Malicious physical attacks (theft, vandalism, misuse, etc.) | I146: 4
B147: R.A8.V11.T3. | C147: 9 | D147: A8. Smart home objects / appliances | E147: 2.1 | F147: V11. PC and home infrastructure vulnerabilities | G147: 4 | H147: T3. Intentional misuse, unauthorised disclosure, modification or destruction of individual’s data | I147: 5
B148: R.A8.V9.T9. | C148: 5 | D148: A8. Smart home objects / appliances | E148: 2.1 | F148: V9. Lack of third party system reviews and software integrity certification | G148: 3 | H148: T9. Exploring new ‘vulnerabilities’ in the new applications | I148: 2
B149: R.A8.V9.T7. | C149: 5 | D149: A8. Smart home objects / appliances | E149: 2.1 | F149: V9. Lack of third party system reviews and software integrity certification | G149: 3 | H149: T7. Malicious (logical) attacks on devices and systems | I149: 2
B150: R.A8.V9.T3. | C150: 8 | D150: A8. Smart home objects / appliances | E150: 2.1 | F150: V9. Lack of third party system reviews and software integrity certification | G150: 3 | H150: T3. Intentional misuse, unauthorised disclosure, modification or destruction of individual’s data | I150: 5
B151: R.A8.V8.T18. | C151: 9 | D151: A8. Smart home objects / appliances | E151: 2 | F151: V8. Lack of or inadequate user identification, authentication and access controls; e.g. use of new devices as authentication tools | G151: 5 | H151: T18. Monitoring and surveillance | I151: 4
B152: R.A8.V8.T14. | C152: 9 | D152: A8. Smart home objects / appliances | E152: 2.1 | F152: V8. Lack of or inadequate user identification, authentication and access controls; e.g. use of new devices as authentication tools | G152: 5 | H152: T14. Individual being negligent, careless, making mistakes; e.g. does not follow procedures appropriately, e.g. clicks through | I152: 4
B153: R.A8.V5.T8. | C153: 8 | D153: A8. Smart home objects / appliances | E153: 2.1 | F153: V5. Inherent features of smart devices (size, material etc.): easy to lose or steal | G153: 5 | H153: T8. Overhearing/recording logging/blogging activity | I153: 3
B154: R.A8.V3.T8. | C154: 6 | D154: A8. Smart home objects / appliances | E154: 2.1 | F154: V3. Inadequate privacy/security interfaces (poor interface design) | G154: 3 | H154: T8. Overhearing/recording logging/blogging activity | I154: 3
B155: R.A8.V1.T9. | C155: 5 | D155: A8. Smart home objects / appliances | E155: 2.1 | F155: V1. Flawed/insufficient design, implementation and/or capacity of devices and systems. Includes software bugs and design flaws. | G155: 3 | H155: T9. Exploring new ‘vulnerabilities’ in the new applications | I155: 2
B156: R.A8.V1.T3. | C156: 8 | D156: A8. Smart home objects / appliances | E156: 2.1 | F156: V1. Flawed/insufficient design, implementation and/or capacity of devices and systems. Includes software bugs and design flaws. | G156: 3 | H156: T3. Intentional misuse, unauthorised disclosure, modification or destruction of individual’s data | I156: 5
B157: R.A6.V16.T18. | C157: 10 | D157: A6. Life-logging services | E157: 3 | F157: V16. Lack of secure transmission and storage of data; also includes lack of (usable) transmission control (who gets the data) | G157: 5 | H157: T18. Monitoring and surveillance | I157: 4
B158: R.A6.V16.T17. | C158: 11 | D158: A6. Life-logging services | E158: 3 | F158: V16. Lack of secure transmission and storage of data; also includes lack of (usable) transmission control (who gets the data) | G158: 5 | H158: T17. Data mining and profiling (large-scale, excessive and/or inappropriate) | I158: 5
B159: R.A6.V8.T18. | C159: 10 | D159: A6. Life-logging services | E159: 3 | F159: V8. Lack of or inadequate user identification, authentication and access controls; e.g. use of new devices as authentication tools | G159: 5 | H159: T18. Monitoring and surveillance | I159: 4
B160: R.A8.V25.T18. | C160: 9 | D160: A8. Smart home objects / appliances | E160: 2 | F160: V25. Inadequate user education, lack of awareness and training particularly in security and privacy; lack of context awareness | G160: 5 | H160: T18. Monitoring and surveillance | I160: 4
B161: R.A8.V25.T17. | C161: 10 | D161: A8. Smart home objects / appliances | E161: 2.1 | F161: V25. Inadequate user education, lack of awareness and training particularly in security and privacy; lack of context awareness | G161: 5 | H161: T17. Data mining and profiling (large-scale, excessive and/or inappropriate) | I161: 5
B162: R.A8.V3.T17. | C162: 8 | D162: A8. Smart home objects / appliances | E162: 2.1 | F162: V3. Inadequate privacy/security interfaces (poor interface design) | G162: 3 | H162: T17. Data mining and profiling (large-scale, excessive and/or inappropriate) | I162: 5
B163: R.A9.V25.T17. | C163: 11 | D163: A9. Laptops and PC computers | E163: 2.8 | F163: V25. Inadequate user education, lack of awareness and training particularly in security and privacy; lack of context awareness | G163: 5 | H163: T17. Data mining and profiling (large-scale, excessive and/or inappropriate) | I163: 5
B164: R.A9.V25.T14. | C164: 10 | D164: A9. Laptops and PC computers | E164: 2.8 | F164: V25. Inadequate user education, lack of awareness and training particularly in security and privacy; lack of context awareness | G164: 5 | H164: T14. Individual being negligent, careless, making mistakes; e.g. does not follow procedures appropriately, e.g. clicks through | I164: 4
B165: R.A9.V21.T7. | C165: 6 | D165: A9. Laptops and PC computers | E165: 3 | F165: V21. Reliance on legacy, un-patched systems or integration mistakes | G165: 3 | H165: T7. Malicious (logical) attacks on devices and systems | I165: 2
B166: R.A9.V21.T3. | C166: 9 | D166: A9. Laptops and PC computers | E166: 3 | F166: V21. Reliance on legacy, un-patched systems or integration mistakes | G166: 3 | H166: T3. Intentional misuse, unauthorised disclosure, modification or destruction of individual’s data | I166: 5
B167: R.A9.V16.T18. | C167: 10 | D167: A9. Laptops and PC computers | E167: 3 | F167: V16. Lack of secure transmission and storage of data; also includes lack of (usable) transmission control (who gets the data) | G167: 5 | H167: T18. Monitoring and surveillance | I167: 4
B168: R.A9.V16.T17. | C168: 11 | D168: A9. Laptops and PC computers | E168: 3 | F168: V16. Lack of secure transmission and storage of data; also includes lack of (usable) transmission control (who gets the data) | G168: 5 | H168: T17. Data mining and profiling (large-scale, excessive and/or inappropriate) | I168: 5
B169: R.A9.V16.T14. | C169: 10 | D169: A9. Laptops and PC computers | E169: 3 | F169: V16. Lack of secure transmission and storage of data; also includes lack of (usable) transmission control (who gets the data) | G169: 5 | H169: T14. Individual being negligent, careless, making mistakes; e.g. does not follow procedures appropriately, e.g. clicks through | I169: 4
B170: R.A9.V16.T8. | C170: 9 | D170: A9. Laptops and PC computers | E170: 3 | F170: V16. Lack of secure transmission and storage of data; also includes lack of (usable) transmission control (who gets the data) | G170: 5 | H170: T8. Overhearing/recording logging/blogging activity | I170: 3
B171: R.A9.V16.T7. | C171: 8 | D171: A9. Laptops and PC computers | E171: 3 | F171: V16. Lack of secure transmission and storage of data; also includes lack of (usable) transmission control (who gets the data) | G171: 5 | H171: T7. Malicious (logical) attacks on devices and systems | I171: 2
B172: R.A9.V16.T3. | C172: 11 | D172: A9. Laptops and PC computers | E172: 3 | F172: V16. Lack of secure transmission and storage of data; also includes lack of (usable) transmission control (who gets the data) | G172: 5 | H172: T3. Intentional misuse, unauthorised disclosure, modification or destruction of individual’s data | I172: 5
B173: R.A9.V3.T17. | C173: 9 | D173: A9. Laptops and PC computers | E173: 2.8 | F173: V3. Inadequate privacy/security interfaces (poor interface design) | G173: 3 | H173: T17. Data mining and profiling (large-scale, excessive and/or inappropriate) | I173: 5
B174: R.A9.V3.T14. | C174: 8 | D174: A9. Laptops and PC computers | E174: 2.8 | F174: V3. Inadequate privacy/security interfaces (poor interface design) | G174: 3 | H174: T14. Individual being negligent, careless, making mistakes; e.g. does not follow procedures appropriately, e.g. clicks through | I174: 4
B175: R.A9.V1.T9. | C175: 6 | D175: A9. Laptops and PC computers | E175: 3 | F175: V1. Flawed/insufficient design, implementation and/or capacity of devices and systems. Includes software bugs and design flaws. | G175: 3 | H175: T9. Exploring new ‘vulnerabilities’ in the new applications | I175: 2
B176: R.A8.V13.T3. | C176: 8 | D176: A8. Smart home objects / appliances | E176: 2.1 | F176: V13. Lack of revocation/correction/deletion mechanisms | G176: 3 | H176: T3. Intentional misuse, unauthorised disclosure, modification or destruction of individual’s data | I176: 5
B177: R.A8.V8.T3. | C177: 10 | D177: A8. Smart home objects / appliances | E177: 2.1 | F177: V8. Lack of or inadequate user identification, authentication and access controls; e.g. use of new devices as authentication tools | G177: 5 | H177: T3. Intentional misuse, unauthorised disclosure, modification or destruction of individual’s data | I177: 5
B178: R.A8.V8.T2. | C178: 9 | D178: A8. Smart home objects / appliances | E178: 2.1 | F178: V8. Lack of or inadequate user identification, authentication and access controls; e.g. use of new devices as authentication tools | G178: 5 | H178: T2. Identity theft | I178: 4
B179: R.A8.V5.T18. | C179: 9 | D179: A8. Smart home objects / appliances | E179: 2 | F179: V5. Inherent features of smart devices (size, material etc.): easy to lose or steal | G179: 5 | H179: T18. Monitoring and surveillance | I179: 4
B180: R.A8.V5.T14. | C180: 9 | D180: A8. Smart home objects / appliances | E180: 2.1 | F180: V5. Inherent features of smart devices (size, material etc.): easy to lose or steal | G180: 5 | H180: T14. Individual being negligent, careless, making mistakes; e.g. does not follow procedures appropriately, e.g. clicks through | I180: 4
B181: R.A8.V5.T6. | C181: 9 | D181: A8. Smart home objects / appliances | E181: 2.1 | F181: V5. Inherent features of smart devices (size, material etc.): easy to lose or steal | G181: 5 | H181: T6. Malicious physical attacks (theft, vandalism, misuse, etc.) | I181: 4
B182: R.A8.V5.T3. | C182: 10 | D182: A8. Smart home objects / appliances | E182: 2.1 | F182: V5. Inherent features of smart devices (size, material etc.): easy to lose or steal | G182: 5 | H182: T3. Intentional misuse, unauthorised disclosure, modification or destruction of individual’s data | I182: 5
B183: R.A8.V5.T2. | C183: 9 | D183: A8. Smart home objects / appliances | E183: 2.1 | F183: V5. Inherent features of smart devices (size, material etc.): easy to lose or steal | G183: 5 | H183: T2. Identity theft | I183: 4
B184: R.A8.V5.T1. | C184: 9 | D184: A8. Smart home objects / appliances | E184: 2.1 | F184: V5. Inherent features of smart devices (size, material etc.): easy to lose or steal | G184: 5 | H184: T1. Accidental loss of device | I184: 4
B185: R.A8.V3.T18. | C185: 7 | D185: A8. Smart home objects / appliances | E185: 2 | F185: V3. Inadequate privacy/security interfaces (poor interface design) | G185: 3 | H185: T18. Monitoring and surveillance | I185: 4
B186: R.A8.V3.T14. | C186: 7 | D186: A8. Smart home objects / appliances | E186: 2.1 | F186: V3. Inadequate privacy/security interfaces (poor interface design) | G186: 3 | H186: T14. Individual being negligent, careless, making mistakes; e.g. does not follow procedures appropriately, e.g. clicks through | I186: 4
B187: R.A8.V3.T3. | C187: 8 | D187: A8. Smart home objects / appliances | E187: 2.1 | F187: V3. Inadequate privacy/security interfaces (poor interface design) | G187: 3 | H187: T3. Intentional misuse, unauthorised disclosure, modification or destruction of individual’s data | I187: 5
B188: R.A8.V3.T2. | C188: 7 | D188: A8. Smart home objects / appliances | E188: 2.1 | F188: V3. Inadequate privacy/security interfaces (poor interface design) | G188: 3 | H188: T2. Identity theft | I188: 4
B189: R.A1.V28.T18. | C189: 8 | D189: A1. Actors’ digital presence not including social or professional reputation | E189: 3 | F189: V28. Data linkability / lifelogging data can be aggregated with other data | G189: 3 | H189: T18. Monitoring and surveillance | I189: 4
B190: R.A1.V28.T17. | C190: 9 | D190: A1. Actors’ digital presence not including social or professional reputation | E190: 3 | F190: V28. Data linkability / lifelogging data can be aggregated with other data | G190: 3 | H190: T17. Data mining and profiling (large-scale, excessive and/or inappropriate) | I190: 5
B191: R.A1.V28.T8. | C191: 7 | D191: A1. Actors’ digital presence not including social or professional reputation | E191: 3 | F191: V28. Data linkability / lifelogging data can be aggregated with other data | G191: 3 | H191: T8. Overhearing/recording logging/blogging activity | I191: 3
B192: R.A1.V28.T3. | C192: 9 | D192: A1. Actors’ digital presence not including social or professional reputation | E192: 3 | F192: V28. Data linkability / lifelogging data can be aggregated with other data | G192: 3 | H192: T3. Intentional misuse, unauthorised disclosure, modification or destruction of individual’s data | I192: 5
B193: R.A1.V28.T2. | C193: 8 | D193: A1. Actors’ digital presence not including social or professional reputation | E193: 3 | F193: V28. Data linkability / lifelogging data can be aggregated with other data | G193: 3 | H193: T2. Identity theft | I193: 4
B194: R.A1.V12.T18. | C194: 10 | D194: A1. Actors’ digital presence not including social or professional reputation | E194: 3 | F194: V12. Smart phone vulnerabilities | G194: 5 | H194: T18. Monitoring and surveillance | I194: 4
B195: R.A1.V11.T18. | C195: 9 | D195: A1. Actors’ digital presence not including social or professional reputation | E195: 3 | F195: V11. PC and home infrastructure vulnerabilities | G195: 4 | H195: T18. Monitoring and surveillance | I195: 4
B196: R.A1.V8.T18. | C196: 10 | D196: A1. Actors’ digital presence not including social or professional reputation | E196: 3 | F196: V8. Lack of or inadequate user identification, authentication and access controls; e.g. use of new devices as authentication tools | G196: 5 | H196: T18. Monitoring and surveillance | I196: 4
B197: R.A1.V5.T18. | C197: 10 | D197: A1. Actors’ digital presence not including social or professional reputation | E197: 3 | F197: V5. Inherent features of smart devices (size, material etc.): easy to lose or steal | G197: 5 | H197: T18. Monitoring and surveillance | I197: 4
B198: R.A2.V12.T18. | C198: 11 | D198: A2. Social reputation | E198: 4 | F198: V12. Smart phone vulnerabilities | G198: 5 | H198: T18. Monitoring and surveillance | I198: 4
B199: R.A2.V11.T18. | C199: 10 | D199: A2. Social reputation | E199: 4 | F199: V11. PC and home infrastructure vulnerabilities | G199: 4 | H199: T18. Monitoring and surveillance | I199: 4
B200: R.A2.V8.T18. | C200: 11 | D200: A2. Social reputation | E200: 4 | F200: V8. Lack of or inadequate user identification, authentication and access controls; e.g. use of new devices as authentication tools | G200: 5 | H200: T18. Monitoring and surveillance | I200: 4
B201: R.A2.V5.T18. | C201: 11 | D201: A2. Social reputation | E201: 4 | F201: V5. Inherent features of smart devices (size, material etc.): easy to lose or steal | G201: 5 | H201: T18. Monitoring and surveillance | I201: 4
B202: R.A3.V12.T18. | C202: 11 | D202: A3. Professional reputation | E202: 4 | F202: V12. Smart phone vulnerabilities | G202: 5 | H202: T18. Monitoring and surveillance | I202: 4
... 211 more rows

Sheet R4
B3: Risk-ID | C3: Risk Value | D3: Asset Description | E3: Asset Value | F3: Vulnerability Description | G3: Vulnerability Value | H3: Threat Description | I3: Threat Value | K3: Values | L3: Counts | M3: Weighting factor
B4: R.A2.V10.T3. | C4: 11 | D4: A2. Social reputation | E4: 4 | F4: V10. Over reliance and excessive dependency on electronic devices and systems | G4: 4 | H4: T3. Intentional misuse, unauthorised disclosure, modification or destruction of individual’s data | I4: 5 | K4: 1 | L4: =COUNTIF($C$4:$C$329,K4) -> 0 | M4: =SUMPRODUCT(K4:K16,L4:L16)/L17 -> 9.02991453
B5: R.A2.V8.T14. | C5: 11 | D5: A2. Social reputation | E5: 4 | F5: V8. Lack of or inadequate user identification, authentication and access controls; e.g. use of new devices as authentication tools | G5: 5 | H5: T14. Individual being negligent, careless, making mistakes; e.g. does not follow procedures appropriately, e.g. clicks through | I5: 4 | K5: 2 | L5: =COUNTIF($C$4:$C$329,K5) -> 0
B6: R.A2.V8.T3. | C6: 12 | D6: A2. Social reputation | E6: 4 | F6: V8. Lack of or inadequate user identification, authentication and access controls; e.g. use of new devices as authentication tools | G6: 5 | H6: T3. Intentional misuse, unauthorised disclosure, modification or destruction of individual’s data | I6: 5 | K6: 3 | L6: 0
B7: R.A2.V3.T14. | C7: 9 | D7: A2. Social reputation | E7: 4 | F7: V3. Inadequate privacy/security interfaces (poor interface design) | G7: 3 | H7: T14. Individual being negligent, careless, making mistakes; e.g. does not follow procedures appropriately, e.g. clicks through | I7: 4 | K7: 4 | L7: 0
B8: R.A2.V3.T8. | C8: 8 | D8: A2. Social reputation | E8: 4 | F8: V3. Inadequate privacy/security interfaces (poor interface design) | G8: 3 | H8: T8. Overhearing/recording logging/blogging activity | I8: 3 | K8: 5 | L8: 0
B9: R.A2.V3.T3. | C9: 10 | D9: A2. Social reputation | E9: 4 | F9: V3. Inadequate privacy/security interfaces (poor interface design) | G9: 3 | H9: T3. Intentional misuse, unauthorised disclosure, modification or destruction of individual’s data | I9: 5 | K9: 6 | L9: 5
B10: R.A3.V10.T3. | C10: 11 | D10: A3. Professional reputation | E10: 4 | F10: V10. Over reliance and excessive dependency on electronic devices and systems | G10: 4 | H10: T3. Intentional misuse, unauthorised disclosure, modification or destruction of individual’s data | I10: 5 | K10: 7 | L10: 24
B11: R.A3.V8.T14. | C11: 11 | D11: A3. Professional reputation | E11: 4 | F11: V8. Lack of or inadequate user identification, authentication and access controls; e.g. use of new devices as authentication tools | G11: 5 | H11: T14. Individual being negligent, careless, making mistakes; e.g. does not follow procedures appropriately, e.g. clicks through | I11: 4 | K11: 8 | L11: 51
B12: R.A3.V8.T3. | C12: 12 | D12: A3. Professional reputation | E12: 4 | F12: V8. Lack of or inadequate user identification, authentication and access controls; e.g. use of new devices as authentication tools | G12: 5 | H12: T3. Intentional misuse, unauthorised disclosure, modification or destruction of individual’s data | I12: 5 | K12: 9 | L12: 72
B13: R.A3.V3.T14. | C13: 9 | D13: A3. Professional reputation | E13: 4 | F13: V3. Inadequate privacy/security interfaces (poor interface design) | G13: 3 | H13: T14. Individual being negligent, careless, making mistakes; e.g. does not follow procedures appropriately, e.g. clicks through | I13: 4 | K13: 10 | L13: 49
B14: R.A3.V3.T8. | C14: 8 | D14: A3. Professional reputation | E14: 4 | F14: V3. Inadequate privacy/security interfaces (poor interface design) | G14: 3 | H14: T8. Overhearing/recording logging/blogging activity | I14: 3 | K14: 11 | L14: 27
B15: R.A3.V3.T3. | C15: 10 | D15: A3. Professional reputation | E15: 4 | F15: V3. Inadequate privacy/security interfaces (poor interface design) | G15: 3 | H15: T3. Intentional misuse, unauthorised disclosure, modification or destruction of individual’s data | I15: 5 | K15: 12 | L15: 6
B16: R.A6.V10.T3. | C16: 10 | D16: A6. Life-logging services | E16: 3 | F16: V10. Over reliance and excessive dependency on electronic devices and systems | G16: 4 | H16: T3. Intentional misuse, unauthorised disclosure, modification or destruction of individual’s data | I16: 5 | K16: 13 | L16: 0
B17: R.A6.V8.T14. | C17: 10 | D17: A6. Life-logging services | E17: 3 | F17: V8. Lack of or inadequate user identification, authentication and access controls; e.g. use of new devices as authentication tools | G17: 5 | H17: T14. Individual being negligent, careless, making mistakes; e.g. does not follow procedures appropriately, e.g. clicks through | I17: 4 | L17: =SUM(L4:L16) -> 234
B18: R.A6.V8.T3. | C18: 11 | D18: A6. Life-logging services | E18: 3 | F18: V8. Lack of or inadequate user identification, authentication and access controls; e.g. use of new devices as authentication tools | G18: 5 | H18: T3. Intentional misuse, unauthorised disclosure, modification or destruction of individual’s data | I18: 5
B19: R.A6.V3.T14. | C19: 8 | D19: A6. Life-logging services | E19: 3 | F19: V3. Inadequate privacy/security interfaces (poor interface design) | G19: 3 | H19: T14. Individual being negligent, careless, making mistakes; e.g. does not follow procedures appropriately, e.g. clicks through | I19: 4
B20: R.A6.V3.T8. | C20: 7 | D20: A6. Life-logging services | E20: 3 | F20: V3. Inadequate privacy/security interfaces (poor interface design) | G20: 3 | H20: T8. Overhearing/recording logging/blogging activity | I20: 3
B21: R.A6.V3.T3. | C21: 9 | D21: A6. Life-logging services | E21: 3 | F21: V3. Inadequate privacy/security interfaces (poor interface design) | G21: 3 | H21: T3. Intentional misuse, unauthorised disclosure, modification or destruction of individual’s data | I21: 5
B22: R.A6.V16.T18. | C22: 10 | D22: A6. Life-logging services | E22: 3 | F22: V16. Lack of secure transmission and storage of data; also includes lack of (usable) transmission control (who gets the data) | G22: 5 | H22: T18. Monitoring and surveillance | I22: 4
B23: R.A6.V16.T17. | C23: 11 | D23: A6. Life-logging services | E23: 3 | F23: V16. Lack of secure transmission and storage of data; also includes lack of (usable) transmission control (who gets the data) | G23: 5 | H23: T17. Data mining and profiling (large-scale, excessive and/or inappropriate) | I23: 5
B24: R.A6.V15.T13. | C24: 8 | D24: A6. Life-logging services | E24: 3 | F24: V15. Lack of (usable) logging controls/policies/ reminders. E.g. capturing some embarrassing scene of someone else or yourself | G24: 3 | H24: T13. Peer-pressure and social pressure to constantly share data and conform; fear of violent response / or ridicule from peers, friends etc; | I24: 4
B25: R.A6.V14.T12. | C25: 7 | D25: A6. Life-logging services | E25: 3 | F25: V14. Lack of (usable) privacy controls, e.g., overly permissive defaults, too coarse granularity, ... | G25: 2 | H25: T12. Vested interests | I25: 4
B26: R.A6.V8.T18. | C26: 10 | D26: A6. Life-logging services | E26: 3 | F26: V8. Lack of or inadequate user identification, authentication and access controls; e.g. use of new devices as authentication tools | G26: 5 | H26: T18. Monitoring and surveillance | I26: 4
B27: R.A6.V7.T8. | C27: 9 | D27: A6. Life-logging services | E27: 3 | F27: V7. Lack of interoperability between devices/ services/ technologies and/or systems | G27: 5 | H27: T8. Overhearing/recording logging/blogging activity | I27: 3
B28: R.A6.V4.T12. | C28: 9 | D28: A6. Life-logging services | E28: 3 | F28: V4. Increase in centralization of data storage and processing and over-reliance on these centralised facilities | G28: 4 | H28: T12. Vested interests | I28: 4
B29: R.A15.V16.T18. | C29: 10 | D29: A15. Databases of aggregated data | E29: 3.2 | F29: V16. Lack of secure transmission and storage of data; also includes lack of (usable) transmission control (who gets the data) | G29: 5 | H29: T18. Monitoring and surveillance | I29: 4
B30: R.A15.V16.T17. | C30: 11 | D30: A15. Databases of aggregated data | E30: 3.2 | F30: V16. Lack of secure transmission and storage of data; also includes lack of (usable) transmission control (who gets the data) | G30: 5 | H30: T17. Data mining and profiling (large-scale, excessive and/or inappropriate) | I30: 5
B31: R.A15.V16.T3. | C31: 11 | D31: A15. Databases of aggregated data | E31: 3.2 | F31: V16. Lack of secure transmission and storage of data; also includes lack of (usable) transmission control (who gets the data) | G31: 5 | H31: T3. Intentional misuse, unauthorised disclosure, modification or destruction of individual’s data | I31: 5
B32: R.A15.V8.T18. | C32: 10 | D32: A15. Databases of aggregated data | E32: 3.2 | F32: V8. Lack of or inadequate user identification, authentication and access controls; e.g. use of new devices as authentication tools | G32: 5 | H32: T18. Monitoring and surveillance | I32: 4
B33: R.A15.V8.T3. | C33: 11 | D33: A15. Databases of aggregated data | E33: 3.2 | F33: V8. Lack of or inadequate user identification, authentication and access controls; e.g. use of new devices as authentication tools | G33: 5 | H33: T3. Intentional misuse, unauthorised disclosure, modification or destruction of individual’s data | I33: 5
B34: R.A15.V7.T12. | C34: 10 | D34: A15. Databases of aggregated data | E34: 3.2 | F34: V7. Lack of interoperability between devices/ services/ technologies and/or systems | G34: 5 | H34: T12. Vested interests | I34: 4
B35: R.A15.V7.T8. | C35: 9 | D35: A15. Databases of aggregated data | E35: 3.2 | F35: V7. Lack of interoperability between devices/ services/ technologies and/or systems | G35: 5 | H35: T8. Overhearing/recording logging/blogging activity | I35: 3
B36: R.A15.V6.T12. | C36: 8 | D36: A15. Databases of aggregated data | E36: 3.2 | F36: V6. Lack of appropriate, common or harmonized legislation in EU Member States | G36: 3 | H36: T12. Vested interests | I36: 4
B37: R.A15.V4.T12. | C37: 9 | D37: A15. Databases of aggregated data | E37: 3.2 | F37: V4. Increase in centralization of data storage and processing and over-reliance on these centralised facilities | G37: 4 | H37: T12. Vested interests | I37: 4
B38: R.A15.V2.T12. | C38: 7 | D38: A15. Databases of aggregated data | E38: 3.2 | F38: V2. Inadequate policy framework | G38: 2 | H38: T12. Vested interests | I38: 4
B39: R.A3.V15.T13. | C39: 9 | D39: A3. Professional reputation | E39: 4 | F39: V15. Lack of (usable) logging controls/policies/ reminders. E.g. capturing some embarrassing scene of someone else or yourself | G39: 3 | H39: T13. Peer-pressure and social pressure to constantly share data and conform; fear of violent response / or ridicule from peers, friends etc; | I39: 4
B40: R.A2.V15.T13. | C40: 9 | D40: A2. Social reputation | E40: 4 | F40: V15. Lack of (usable) logging controls/policies/ reminders. E.g. capturing some embarrassing scene of someone else or yourself | G40: 3 | H40: T13. Peer-pressure and social pressure to constantly share data and conform; fear of violent response / or ridicule from peers, friends etc; | I40: 4
B41: R.A4.V15.T14. | C41: 9 | D41: A4. Sentiments | E41: 4 | F41: V15. Lack of (usable) logging controls/policies/ reminders. E.g. capturing some embarrassing scene of someone else or yourself | G41: 3 | H41: T14. Individual being negligent, careless, making mistakes; e.g. does not follow procedures appropriately, e.g. clicks through | I41: 4
B42: R.A4.V10.T3. | C42: 11 | D42: A4. Sentiments | E42: 4 | F42: V10. Over reliance and excessive dependency on electronic devices and systems | G42: 4 | H42: T3. Intentional misuse, unauthorised disclosure, modification or destruction of individual’s data | I42: 5
B43: R.A4.V3.T14. | C43: 9 | D43: A4. Sentiments | E43: 4 | F43: V3. Inadequate privacy/security interfaces (poor interface design) | G43: 3 | H43: T14. Individual being negligent, careless, making mistakes; e.g. does not follow procedures appropriately, e.g. clicks through | I43: 4
B44: R.A4.V3.T3. | C44: 10 | D44: A4. Sentiments | E44: 4 | F44: V3. Inadequate privacy/security interfaces (poor interface design) | G44: 3 | H44: T3. Intentional misuse, unauthorised disclosure, modification or destruction of individual’s data | I44: 5
B45: R.A6.V7.T12. | C45: 10 | D45: A6. Life-logging services | E45: 3 | F45: V7. Lack of interoperability between devices/ services/ technologies and/or systems | G45: 5 | H45: T12. Vested interests | I45: 4
B46: R.A7.V7.T12. | C46: 10 | D46: A7. Social networking services | E46: 3.2 | F46: V7. Lack of interoperability between devices/ services/ technologies and/or systems | G46: 5 | H46: T12. Vested interests | I46: 4
B47: R.A7.V6.T12. | C47: 8 | D47: A7. Social networking services | E47: 3.2 | F47: V6. Lack of appropriate, common or harmonized legislation in EU Member States | G47: 3 | H47: T12. Vested interests | I47: 4
B48: R.A7.V2.T12. | C48: 7 | D48: A7. Social networking services | E48: 3.2 | F48: V2. Inadequate policy framework | G48: 2 | H48: T12. Vested interests | I48: 4
B49: R.A2.V8.T18. | C49: 11 | D49: A2. Social reputation | E49: 4 | F49: V8. Lack of or inadequate user identification, authentication and access controls; e.g. use of new devices as authentication tools | G49: 5 | H49: T18. Monitoring and surveillance | I49: 4
B50: R.A3.V8.T18. | C50: 11 | D50: A3. Professional reputation | E50: 4 | F50: V8. Lack of or inadequate user identification, authentication and access controls; e.g. use of new devices as authentication tools | G50: 5 | H50: T18. Monitoring and surveillance | I50: 4
B51: R.A6.V14.T18. | C51: 7 | D51: A6. Life-logging services | E51: 3 | F51: V14. Lack of (usable) privacy controls, e.g., overly permissive defaults, too coarse granularity, ... | G51: 2 | H51: T18. Monitoring and surveillance | I51: 4
B52: R.A6.V14.T17. | C52: 8 | D52: A6. Life-logging services | E52: 3 | F52: V14. Lack of (usable) privacy controls, e.g., overly permissive defaults, too coarse granularity, ... | G52: 2 | H52: T17. Data mining and profiling (large-scale, excessive and/or inappropriate) | I52: 5
B53: R.A6.V14.T16. | C53: 7 | D53: A6. Life-logging services | E53: 3 | F53: V14. Lack of (usable) privacy controls, e.g., overly permissive defaults, too coarse granularity, ... | G53: 2 | H53: T16. Changes in perception of privacy and / or privacy needs | I53: 4
B54: R.A6.V14.T14. | C54: 7 | D54: A6. Life-logging services | E54: 3 | F54: V14. Lack of (usable) privacy controls, e.g., overly permissive defaults, too coarse granularity, ... | G54: 2 | H54: T14. Individual being negligent, careless, making mistakes; e.g. does not follow procedures appropriately, e.g. clicks through | I54: 4
B55: R.A6.V14.T8. | C55: 6 | D55: A6. Life-logging services | E55: 3 | F55: V14. Lack of (usable) privacy controls, e.g., overly permissive defaults, too coarse granularity, ... | G55: 2 | H55: T8. Overhearing/recording logging/blogging activity | I55: 3
B56: R.A6.V14.T3. | C56: 8 | D56: A6. Life-logging services | E56: 3 | F56: V14. Lack of (usable) privacy controls, e.g., overly permissive defaults, too coarse granularity, ... | G56: 2 | H56: T3. Intentional misuse, unauthorised disclosure, modification or destruction of individual’s data | I56: 5
B57: R.A6.V13.T18. | C57: 8 | D57: A6. Life-logging services | E57: 3 | F57: V13. Lack of revocation/correction/deletion mechanisms | G57: 3 | H57: T18. Monitoring and surveillance | I57: 4
B58: R.A6.V13.T17. | C58: 9 | D58: A6. Life-logging services | E58: 3 | F58: V13. Lack of revocation/correction/deletion mechanisms | G58: 3 | H58: T17. Data mining and profiling (large-scale, excessive and/or inappropriate) | I58: 5
B59: R.A6.V13.T3. | C59: 9 | D59: A6. Life-logging services | E59: 3 | F59: V13. Lack of revocation/correction/deletion mechanisms | G59: 3 | H59: T3. Intentional misuse, unauthorised disclosure, modification or destruction of individual’s data | I59: 5
B60: R.A6.V6.T8. | C60: 7 | D60: A6. Life-logging services | E60: 3 | F60: V6. Lack of appropriate, common or harmonized legislation in EU Member States | G60: 3 | H60: T8. Overhearing/recording logging/blogging activity | I60: 3
B61: R.A6.V6.T3. | C61: 9 | D61: A6. Life-logging services | E61: 3 | F61: V6. Lack of appropriate, common or harmonized legislation in EU Member States | G61: 3 | H61: T3. Intentional misuse, unauthorised disclosure, modification or destruction of individual’s data | I61: 5
B62: R.A6.V4.T18. | C62: 9 | D62: A6. Life-logging services | E62: 3 | F62: V4. Increase in centralization of data storage and processing and over-reliance on these centralised facilities | G62: 4 | H62: T18. Monitoring and surveillance | I62: 4
B63: R.A6.V4.T17. | C63: 10 | D63: A6. Life-logging services | E63: 3 | F63: V4. Increase in centralization of data storage and processing and over-reliance on these centralised facilities | G63: 4 | H63: T17. Data mining and profiling (large-scale, excessive and/or inappropriate) | I63: 5
B64: R.A6.V4.T16. | C64: 9 | D64: A6. Life-logging services | E64: 3 | F64: V4. Increase in centralization of data storage and processing and over-reliance on these centralised facilities | G64: 4 | H64: T16. Changes in perception of privacy and / or privacy needs | I64: 4
B65: R.A6.V4.T3. | C65: 10 | D65: A6. Life-logging services | E65: 3 | F65: V4. Increase in centralization of data storage and processing and over-reliance on these centralised facilities | G65: 4 | H65: T3. Intentional misuse, unauthorised disclosure, modification or destruction of individual’s data | I65: 5
B66: R.A6.V3.T18. | C66: 8 | D66: A6. Life-logging services | E66: 3 | F66: V3. Inadequate privacy/security interfaces (poor interface design) | G66: 3 | H66: T18. Monitoring and surveillance | I66: 4
B67: R.A6.V2.T8. | C67: 6 | D67: A6. Life-logging services | E67: 3 | F67: V2. Inadequate policy framework | G67: 2 | H67: T8. Overhearing/recording logging/blogging activity | I67: 3
B68: R.A6.V2.T3. | C68: 8 | D68: A6. Life-logging services | E68: 3 | F68: V2. Inadequate policy framework | G68: 2 | H68: T3. Intentional misuse, unauthorised disclosure, modification or destruction of individual’s data | I68: 5
B69: R.A7.V14.T18. | C69: 7 | D69: A7. Social networking services | E69: 3.2 | F69: V14. Lack of (usable) privacy controls, e.g., overly permissive defaults, too coarse granularity, ... | G69: 2 | H69: T18. Monitoring and surveillance | I69: 4
B70: R.A7.V14.T17. | C70: 8 | D70: A7. Social networking services | E70: 3.2 | F70: V14. Lack of (usable) privacy controls, e.g., overly permissive defaults, too coarse granularity, ... | G70: 2 | H70: T17. Data mining and profiling (large-scale, excessive and/or inappropriate) | I70: 5
B71: R.A7.V14.T16. | C71: 7 | D71: A7. Social networking services | E71: 3.2 | F71: V14. Lack of (usable) privacy controls, e.g., overly permissive defaults, too coarse granularity, ... | G71: 2 | H71: T16. Changes in perception of privacy and / or privacy needs | I71: 4
B72: R.A7.V14.T14. | C72: 7 | D72: A7. Social networking services | E72: 3.2 | F72: V14. Lack of (usable) privacy controls, e.g., overly permissive defaults, too coarse granularity, ... | G72: 2 | H72: T14. Individual being negligent, careless, making mistakes; e.g. does not follow procedures appropriately, e.g. clicks through | I72: 4
B73: R.A7.V14.T8. | C73: 6 | D73: A7. Social networking services | E73: 3.2 | F73: V14. Lack of (usable) privacy controls, e.g., overly permissive defaults, too coarse granularity, ... | G73: 2 | H73: T8. Overhearing/recording logging/blogging activity | I73: 3
B74: R.A7.V14.T3. | C74: 8 | D74: A7. Social networking services | E74: 3.2 | F74: V14. Lack of (usable) privacy controls, e.g., overly permissive defaults, too coarse granularity, ... | G74: 2 | H74: T3. Intentional misuse, unauthorised disclosure, modification or destruction of individual’s data | I74: 5
B75: R.A7.V13.T18. | C75: 8 | D75: A7. Social networking services | E75: 3.2 | F75: V13. Lack of revocation/correction/deletion mechanisms | G75: 3 | H75: T18. Monitoring and surveillance | I75: 4
B76: R.A7.V13.T17. | C76: 9 | D76: A7. Social networking services | E76: 3.2 | F76: V13. Lack of revocation/correction/deletion mechanisms | G76: 3 | H76: T17. Data mining and profiling (large-scale, excessive and/or inappropriate) | I76: 5
B77: R.A7.V13.T3. | C77: 9 | D77: A7. Social networking services | E77: 3.2 | F77: V13. Lack of revocation/correction/deletion mechanisms | G77: 3 | H77: T3. Intentional misuse, unauthorised disclosure, modification or destruction of individual’s data | I77: 5
B78: R.A7.V8.T18. | C78: 10 | D78: A7. Social networking services | E78: 3.2 | F78: V8. Lack of or inadequate user identification, authentication and access controls; e.g. use of new devices as authentication tools | G78: 5 | H78: T18. Monitoring and surveillance | I78: 4
B79: R.A7.V8.T14. | C79: 10 | D79: A7. Social networking services | E79: 3.2 | F79: V8. Lack of or inadequate user identification, authentication and access controls; e.g. use of new devices as authentication tools | G79: 5 | H79: T14. Individual being negligent, careless, making mistakes; e.g. does not follow procedures appropriately, e.g. clicks through | I79: 4
B80: R.A7.V8.T3. | C80: 11 | D80: A7. Social networking services | E80: 3.2 | F80: V8. Lack of or inadequate user identification, authentication and access controls; e.g. use of new devices as authentication tools | G80: 5 | H80: T3. Intentional misuse, unauthorised disclosure, modification or destruction of individual’s data | I80: 5
B81: R.A7.V6.T18. | C81: 8 | D81: A7. Social networking services | E81: 3.2 | F81: V6. Lack of appropriate, common or harmonized legislation in EU Member States | G81: 3 | H81: T18. Monitoring and surveillance | I81: 4
B82: R.A7.V6.T17. | C82: 9 | D82: A7. Social networking services | E82: 3.2 | F82: V6. Lack of appropriate, common or harmonized legislation in EU Member States | G82: 3 | H82: T17. Data mining and profiling (large-scale, excessive and/or inappropriate) | I82: 5
B83: R.A7.V6.T8. | C83: 7 | D83: A7. Social networking services | E83: 3.2 | F83: V6. Lack of appropriate, common or harmonized legislation in EU Member States | G83: 3 | H83: T8. Overhearing/recording logging/blogging activity | I83: 3
B84: R.A7.V6.T3. | C84: 9 | D84: A7. Social networking services | E84: 3.2 | F84: V6. Lack of appropriate, common or harmonized legislation in EU Member States | G84: 3 | H84: T3. Intentional misuse, unauthorised disclosure, modification or destruction of individual’s data | I84: 5
B85: R.A7.V3.T18. | C85: 8 | D85: A7. Social networking services | E85: 3.2 | F85: V3. Inadequate privacy/security interfaces (poor interface design) | G85: 3 | H85: T18. Monitoring and surveillance | I85: 4
B86: R.A7.V3.T17. | C86: 9 | D86: A7. Social networking services | E86: 3.2 | F86: V3. Inadequate privacy/security interfaces (poor interface design) | G86: 3 | H86: T17. Data mining and profiling (large-scale, excessive and/or inappropriate) | I86: 5
B87: R.A7.V3.T16. | C87: 8 | D87: A7. Social networking services | E87: 3.2 | F87: V3. Inadequate privacy/security interfaces (poor interface design) | G87: 3 | H87: T16. Changes in perception of privacy and / or privacy needs | I87: 4
B88: R.A7.V3.T14. | C88: 8 | D88: A7. Social networking services | E88: 3.2 | F88: V3. Inadequate privacy/security interfaces (poor interface design) | G88: 3 | H88: T14. Individual being negligent, careless, making mistakes; e.g. does not follow procedures appropriately, e.g. clicks through | I88: 4
B89: R.A7.V3.T8. | C89: 7 | D89: A7. Social networking services | E89: 3.2 | F89: V3. Inadequate privacy/security interfaces (poor interface design) | G89: 3 | H89: T8. Overhearing/recording logging/blogging activity | I89: 3
B90: R.A7.V3.T3. | C90: 9 | D90: A7. Social networking services | E90: 3.2 | F90: V3. Inadequate privacy/security interfaces (poor interface design) | G90: 3 | H90: T3. Intentional misuse, unauthorised disclosure, modification or destruction of individual’s data | I90: 5
B91: R.A7.V2.T18. | C91: 7 | D91: A7. Social networking services | E91: 3.2 | F91: V2. Inadequate policy framework | G91: 2 | H91: T18. Monitoring and surveillance | I91: 4
B92: R.A7.V2.T17. | C92: 8 | D92: A7. Social networking services | E92: 3.2 | F92: V2. Inadequate policy framework | G92: 2 | H92: T17. Data mining and profiling (large-scale, excessive and/or inappropriate) | I92: 5
B93: R.A7.V2.T8. | C93: 6 | D93: A7. Social networking services | E93: 3.2 | F93: V2. Inadequate policy framework | G93: 2 | H93: T8. Overhearing/recording logging/blogging activity | I93: 3
B94: R.A7.V2.T3. | C94: 8 | D94: A7. Social networking services | E94: 3.2 | F94: V2. Inadequate policy framework | G94: 2 | H94: T3. Intentional misuse, unauthorised disclosure, modification or destruction of individual’s data | I94: 5
B95: R.A15.V13.T18. | C95: 8 | D95: A15. Databases of aggregated data | E95: 3.2 | F95: V13. Lack of revocation/correction/deletion mechanisms | G95: 3 | H95: T18. Monitoring and surveillance | I95: 4
B96: R.A15.V13.T17. | C96: 9 | D96: A15. Databases of aggregated data | E96: 3.2 | F96: V13. Lack of revocation/correction/deletion mechanisms | G96: 3 | H96: T17. Data mining and profiling (large-scale, excessive and/or inappropriate) | I96: 5
